Workbook

Sheet About
I3: ='Attributes (T1)'!C3 -> Tarobi LMMA
B17: Country | D17: Papua New Guinea
B18: Protected Area | D18: Tarobi LMMA
B19: Year | D19: 2021

Sheet Dashboard Graphics
D19: =Dashboard!B113 -> METT Category | E19: =Dashboard!C113 -> % Weighted Score
D20: =Dashboard!B114 -> Planning | E20: =Dashboard!C114 -> 66.84210526
D21: =Dashboard!B115 -> Input | E21: =Dashboard!C115 -> 16.66666667
D22: =Dashboard!B116 -> Process | E22: =Dashboard!C116 -> 29.44932163
D23: =Dashboard!B117 -> Output | E23: =Dashboard!C117 -> 51.5625
D24: =Dashboard!B118 -> Outcome | E24: =Dashboard!C118 -> 91.66666667
D25: =Dashboard!B119 -> Governance | E25: =Dashboard!C119 -> 33.8028169
D26: =Dashboard!B120 -> TOTAL | E26: =Dashboard!C120 -> 39.89431968
A89: All threat categories | B89: Severity
A90: 1.1 Housing and settlement | B90: 0
A91: 1.2 Commercial and industrial areas | B91: 0
A92: 1.3 Tourism and recreation infrastructure (e.g. structures) | B92: 0
A93: 1.4 Population increase in the protected area community | B93: 2
A94: 2.1 Customary landowner and community gardens and small crops | B94: 0 | W94: METT score | AA94: Threat severity
A95: 2.2 Drug cultivation | B95: 0 | X95: 1. Low | AB95: 1. Low
A96: 2.3 Wood and pulp plantations | B96: 0 | X96: 2. Medium | AB96: 2. Medium
A97: 2.4 Livestock farming and grazing | B97: 0 | X97: 3. High | AB97: 3. High
A98: 2.5 Marine and freshwater aquaculture | B98: 0 | X98: 4. Very high | AB98: 4. Very high
A99: 2.6 Commercial plantations | B99: 0
A100: 3.1 Oil and gas drilling and pipeline construction | B100: 0
A101: 3.2 Mining and quarrying | B101: 0
A102: 3.3 Energy generation | B102: 0
A103: 4.1 Roads, railroads and paths/tracks | B103: 0
A104: 4.2 Utility and service lines | B104: 0
A105: 4.3 Shipping lanes and canals | B105: 0
A106: 4.4 Flight paths | B106: 0
A107: 5.1 Hunting, killing and collecting terrestrial (native) animals (including for ceremonial purposes and commercial use) | B107: 0
A108: 5.2 Gathering terrestrial (native) plants or plant products (non-timber) (including for ceremonial purposes and commercial use) | B108: 0
A109: 5.3a Logging and wood harvesting for local/customary use | B109: 2
A110: 5.3b Logging and wood harvesting – commercial logging | B110: 0
A111: 5.4a Fishing, killing and harvesting (native) aquatic (includes marine?) resources for local/customary use | B111: 3
A112: 5.4b Fishing, killing and harvesting (native) aquatic resources for commercial use | B112: 1
A113: 6.1 Recreational and tourism activities | B113: 0
A114: 6.2 War, civil unrest and military exercises | B114: 0
A115: 6.3 Research, education and other work-related activities in the protected area | B115: 0
A116: 6.4 Activities of the protected area managers (e.g. construction or vehicle use) | B116: 0
A117: 6.5 Deliberate destructive activities or threats to protected area staff and visitors | B117: 0
A118: 6.6 Impacts from cultural and religious tourism | B118: 0
A119: 7.1 Habitat clearing | B119: 1
A120: 7.2 Fire and fire suppression | B120: 0
A121: 7.3 Dams, water flow modification and water management/use | B121: 0
A122: 7.4 Increased fragmentation within the protected area | B122: 0
A123: 7.5 The protected area is separated from other natural habitat | B123: 0
A124: 7.6 Other ‘edge effects’ (impacts) happening on the boundary of the protected area | B124: 2
A125: 7.7 Loss of keystone species | B125: 0
A126: 8.1 Introduced (pest) plants | B126: 0
A127: 8.2 Introduced (pest) animals | B127: 0
A128: 8.3 Diseases such as fungus or viruses that make native plants or animals sick | B128: 0
A129: 8.4 Introduced genetic material | B129: 0
A130: 9.1 Household sewage and urban/village waste water | B130: 0
A131: 9.2 Sewage and waste water from protected area facilities | B131: 0
A132: 9.3 Industrial, mining and military effluents and discharges | B132: 0
A133: 9.4 Agricultural and forestry effluents | B133: 2
A134: 9.5 Garbage and solid waste | B134: 0
A135: 9.6 Air-borne pollutants | B135: 0
A136: 9.7 Excess energy | B136: 0
A137: 9.8 Sound pollution (especially from roads) | B137: 0
A138: 10.1 Volcanoes (ash and lava) | B138: 0
A139: 10.2 Earthquakes/Tsunamis | B139: 1
A140: 10.3 Avalanches/ Landslides | B140: 1
A141: 10.4 Erosion and deposition | B141: 2
A142: 11.1 Habitat shifting and alteration | B142: 2
A143: 11.2 Droughts | B143: 0
A144: 11.3 Temperature extremes | B144: 0
A145: 11.4 Storms and flooding | B145: 0
A146: 11.5 Ocean acidification | B146: 0
A147: 11.6 Sea level rise | B147: 3
A148: 11.7 Coral bleaching | B148: 1
A149: 11.8 Saltwater coming into the protected area | B149: 0
A150: 11.9 Other climate changes | B150: 2
A151: 12.1 Loss of cultural links, traditional knowledge, language, dress, sing sings, respect and/or management practices | B151: 3
A152: 12.2 Natural deterioration of important cultural site values | B152: 0
A153: 12.3 Destruction of cultural heritage buildings, gardens, sites etc | B153: 0
A154: 12.4 Loss of land tenure | B154: 0
A155: 12.5 Other cultural/social threats | B155: 3
A156: 13.1 Conflicting policies across sectors | B156: 0
A157: 13.2 Confusion about government roles and responsibilities | B157: 4
A158: 13.3 Lack of coordination across all levels of government | B158: 4
A161: Identified threats | B161: Severity
A162: 1.4 Population increase in PA community | B162: 2
A163: 5.3a Logging/wood harvesting for customary use | B163: 2
A164: 5.4a Fishing, killing & harvesting aquatic resources for customary use | B164: 3
A165: 5.4b Fishing, killing harvesting aquatic resources for commercial use | B165: 1
A166: 7.1 Habitat clearing | B166: 1
A167: 7.6 Other ‘edge effects’ | B167: 2
A168: 9.4 Agricultural & forestry effluents | B168: 2
A169: 10.2 Earthquakes/Tsunamis | B169: 1
A170: 10.3 Avalanches/ Landslides | B170: 1
A171: 10.4 Erosion & deposition | B171: 2
A172: 11.1 Habitat shifting & alteration | B172: 2
A173: 11.6 Sea level rise | B173: 3 | H173: 1. Low
A174: 11.7 Coral bleaching | B174: 1 | H174: 2. Medium
A175: 11.9 Other climate changes | B175: 2 | H175: 3. High
A176: 12.1 Loss of cultural links, language etc &/or management practices | B176: 3 | H176: 4. Very high
A177: 12.5 Other cultural/social threats | B177: 3
A178: 13.2 Confusion about government roles & responsibilities | B178: 4
A179: 13.3 Lack of coordination across all levels of government | B179: 4

Sheet Dashboard
A1: Category | B1: Issue | C1: Possible Score | D1: Score | E1: Possible Weighted Score | F1: Weighted Score | I1: Categories for reporting
A2: Planning | B2: 1. Legal status | C2: ='Scorecard (T8)'!G3 -> 3 | D2: ='Scorecard (T8)'!F3 -> 3 | E2: ='Scorecard (T8)'!I3 -> 3 | F2: ='Scorecard (T8)'!J3 -> 3 | I2: Design & establishment
A3: Planning | B3: 2. PA objectives | C3: ='Scorecard (T8)'!G4 -> 3 | D3: ='Scorecard (T8)'!F4 -> 2 | E3: ='Scorecard (T8)'!I4 -> 3 | F3: ='Scorecard (T8)'!J4 -> 2 | I3: Planning & objectives
A4: Process | B4: 3. PA regulations or customary laws/rules | C4: ='Scorecard (T8)'!G5 -> 3 | D4: ='Scorecard (T8)'!F5 -> 1 | E4: ='Scorecard (T8)'!I5 -> 3 | F4: ='Scorecard (T8)'!J5 -> 1 | I4: Legislation, control & enforcement
A5: Governance | B5: 3a. Clearly defined rules | C5: ='Scorecard (T8)'!G6 -> 3 | D5: ='Scorecard (T8)'!F6 -> 1 | E5: ='Scorecard (T8)'!I6 -> 1.5 | F5: ='Scorecard (T8)'!J6 -> 0.5 | I5: Legislation, control & enforcement
A6: Governance | B6: 3b. Clearly defined user/access rights | C6: ='Scorecard (T8)'!G7 -> 3 | D6: ='Scorecard (T8)'!F7 -> 3 | E6: ='Scorecard (T8)'!I7 -> 0.75 | F6: ='Scorecard (T8)'!J7 -> 0.75 | I6: Legislation, control & enforcement
A7: Governance | B7: 3c. Awareness of user/access rights | C7: ='Scorecard (T8)'!G8 -> 3 | D7: ='Scorecard (T8)'!F8 -> 3 | E7: ='Scorecard (T8)'!I8 -> 0.75 | F7: ='Scorecard (T8)'!J8 -> 0.75 | I7: Legislation, control & enforcement
A8: Planning | B8: 4. Planning for land use or coastal/marine activities that occur outside the PA | C8: ='Scorecard (T8)'!G9 -> 1 | D8: ='Scorecard (T8)'!F9 -> 1 | E8: ='Scorecard (T8)'!I9 -> 1 | F8: ='Scorecard (T8)'!J9 -> 1 | I8: Planning & objectives
A9: Planning | B9: 4a. Land & water planning for habitat conservation | C9: ='Scorecard (T8)'!G10 -> 1 | D9: ='Scorecard (T8)'!F10 -> 1 | E9: ='Scorecard (T8)'!I10 -> 0.4 | F9: ='Scorecard (T8)'!J10 -> 0.4 | I9: Planning & objectives
A10: Planning | B10: 4b. Land & water planning for connectivity | C10: ='Scorecard (T8)'!G11 -> 1 | D10: ='Scorecard (T8)'!F11 -> 0 | E10: ='Scorecard (T8)'!I11 -> 0.3 | F10: ='Scorecard (T8)'!J11 -> 0 | I10: Planning & objectives
A11: Planning | B11: 4c. Land and water planning for ecosystem services and species conservation | C11: ='Scorecard (T8)'!G12 -> 1 | D11: ='Scorecard (T8)'!F12 -> 1 | E11: ='Scorecard (T8)'!I12 -> 0.3 | F11: ='Scorecard (T8)'!J12 -> 0.3 | I11: Planning & objectives
A12: Planning | B12: 5. PA design | C12: ='Scorecard (T8)'!G13 -> 3 | D12: ='Scorecard (T8)'!F13 -> 2 | E12: ='Scorecard (T8)'!I13 -> 3 | F12: ='Scorecard (T8)'!J13 -> 2 | I12: Design & establishment
A13: Process | B13: 6a. On ground boundary marking of PA | C13: ='Scorecard (T8)'!G14 -> 3 | D13: ='Scorecard (T8)'!F14 -> 1 | E13: ='Scorecard (T8)'!I14 -> 0.9 | F13: ='Scorecard (T8)'!J14 -> 0.3 | I13: Design & establishment
A14: Process | B14: 6b. Map of PA boundaries | C14: ='Scorecard (T8)'!G15 -> 1 | D14: ='Scorecard (T8)'!F15 -> 1 | E14: ='Scorecard (T8)'!I15 -> 0.4 | F14: ='Scorecard (T8)'!J15 -> 0.4 | I14: Design & establishment
A15: Process | B15: 6c. GIS mapping of PA boundaries | C15: ='Scorecard (T8)'!G16 -> 1 | D15: ='Scorecard (T8)'!F16 -> 1 | E15: ='Scorecard (T8)'!I16 -> 0.3 | F15: ='Scorecard (T8)'!J16 -> 0.3 | I15: Design & establishment
A16: Process | B16: 6d. Boundary awareness of people who own the PA | C16: ='Scorecard (T8)'!G17 -> 3 | D16: ='Scorecard (T8)'!F17 -> 3 | E16: ='Scorecard (T8)'!I17 -> 1.5 | F16: ='Scorecard (T8)'!J17 -> 1.5 | I16: Design & establishment
A17: Process | B17: 6e. Boundary awareness among surrounding communities | C17: ='Scorecard (T8)'!G18 -> 3 | D17: ='Scorecard (T8)'!F18 -> 3 | E17: ='Scorecard (T8)'!I18 -> 1.5 | F17: ='Scorecard (T8)'!J18 -> 1.5 | I17: Design & establishment
A18: Process | B18: 6f. Respect of boundary by surrounding communities | C18: ='Scorecard (T8)'!G19 -> 3 | D18: ='Scorecard (T8)'!F19 -> 1 | E18: ='Scorecard (T8)'!I19 -> 1.2 | F18: ='Scorecard (T8)'!J19 -> 0.4 | I18: Design & establishment
A19: Process | B19: 6g. Respect of boundaries by Local Level Government | C19: ='Scorecard (T8)'!G20 -> 1 | D19: ='Scorecard (T8)'!F20 -> 1 | E19: ='Scorecard (T8)'!I20 -> 0.3 | F19: ='Scorecard (T8)'!J20 -> 0.3 | I19: Design & establishment
A20: Process | B20: 6h. Respect of boundaries at the District level | C20: ='Scorecard (T8)'!G21 -> 1 | D20: ='Scorecard (T8)'!F21 -> 0 | E20: ='Scorecard (T8)'!I21 -> 0.3 | F20: ='Scorecard (T8)'!J21 -> 0 | I20: Design & establishment
A21: Planning | B21: 7. Management planning | C21: ='Scorecard (T8)'!G22 -> 3 | D21: ='Scorecard (T8)'!F22 -> 2 | E21: ='Scorecard (T8)'!I22 -> 3 | F21: ='Scorecard (T8)'!J22 -> 2 | I21: Planning & objectives
A22: Planning | B22: 7a. Community/key people input into management plan | C22: ='Scorecard (T8)'!G23 -> 1 | D22: ='Scorecard (T8)'!F23 -> 1 | E22: ='Scorecard (T8)'!I23 -> 1 | F22: ='Scorecard (T8)'!J23 -> 1 | I22: Planning & objectives
A23: Planning | B23: 7b. Plan review of the management plan | C23: ='Scorecard (T8)'!G24 -> 1 | D23: ='Scorecard (T8)'!F24 -> 1 | E23: ='Scorecard (T8)'!I24 -> 1 | F23: ='Scorecard (T8)'!J24 -> 1 | I23: Planning & objectives
A24: Process | B24: 7c. Functioning protected area Management Committee | C24: ='Scorecard (T8)'!G25 -> 1 | D24: ='Scorecard (T8)'!F25 -> 1 | E24: ='Scorecard (T8)'!I25 -> 0.25 | F24: ='Scorecard (T8)'!J25 -> 0.25 | I24: Planning & objectives
A25: Governance | B25: 7d. Structures & processes of Management Committee & related PA decision making are clearly documented | C25: ='Scorecard (T8)'!G26 -> 1 | D25: ='Scorecard (T8)'!F26 -> 1 | E25: ='Scorecard (T8)'!I26 -> 0.25 | F25: ='Scorecard (T8)'!J26 -> 0.25 | I25: Planning & objectives
A26: Governance | B26: 7e. Decision-making structures and processes in relation to the management committee | C26: ='Scorecard (T8)'!G27 -> 3 | D26: ='Scorecard (T8)'!F27 -> 3 | E26: ='Scorecard (T8)'!I27 -> 0.75 | F26: ='Scorecard (T8)'!J27 -> 0.75 | I26: Planning & objectives
A27: Governance | B27: 7f. Access to Management Committee decisions | C27: ='Scorecard (T8)'!G28 -> 1 | D27: ='Scorecard (T8)'!F28 -> 1 | E27: ='Scorecard (T8)'!I28 -> 0.25 | F27: ='Scorecard (T8)'!J28 -> 0.25 | I27: Planning & objectives
A28: Planning | B28: 8. Regular work plan | C28: ='Scorecard (T8)'!G29 -> 3 | D28: ='Scorecard (T8)'!F29 -> 0 | E28: ='Scorecard (T8)'!I29 -> 3 | F28: ='Scorecard (T8)'!J29 -> 0 | I28: Planning & objectives
A29: Input | B29: 9. Resource inventory | C29: ='Scorecard (T8)'!G30 -> 3 | D29: ='Scorecard (T8)'!F30 -> 1 | E29: ='Scorecard (T8)'!I30 -> 3 | F29: ='Scorecard (T8)'!J30 -> 1 | I29: Resource management
A30: Input | B30: 10. Staff numbers | C30: ='Scorecard (T8)'!G31 -> 3 | D30: ='Scorecard (T8)'!F31 -> 0 | E30: ='Scorecard (T8)'!I31 -> 3 | F30: ='Scorecard (T8)'!J31 -> 0 | I30: Human resources
A31: Input | B31: 10a. Other unpaid people working on PA | C31: ='Scorecard (T8)'!G32 -> 3 | D31: ='Scorecard (T8)'!F32 -> 1 | E31: ='Scorecard (T8)'!I32 -> 3 | F31: ='Scorecard (T8)'!J32 -> 1 | I31: Human resources
A32: Input | B32: 11. Knowledge and skills | C32: ='Scorecard (T8)'!G33 -> 3 | D32: ='Scorecard (T8)'!F33 -> 2 | E32: ='Scorecard (T8)'!I33 -> 3 | F32: ='Scorecard (T8)'!J33 -> 2 | I32: Human resources
A33: Input | B33: 12. Current budget | C33: ='Scorecard (T8)'!G34 -> 3 | D33: ='Scorecard (T8)'!F34 -> 0 | E33: ='Scorecard (T8)'!I34 -> 3 | F33: ='Scorecard (T8)'!J34 -> 0 | I33: Budget, infrastructure & equipment
A34: Input | B34: 13. Security of budget | C34: ='Scorecard (T8)'!G35 -> 3 | D34: ='Scorecard (T8)'!F35 -> 0 | E34: ='Scorecard (T8)'!I35 -> 3 | F34: ='Scorecard (T8)'!J35 -> 0 | I34: Budget, infrastructure & equipment
A35: Process | B35: 14. Management of budget | C35: ='Scorecard (T8)'!G36 -> 0 | D35: ='Scorecard (T8)'!F36 -> not relevant | E35: ='Scorecard (T8)'!I36 -> 0 | F35: ='Scorecard (T8)'!J36 ->  | I35: Budget, infrastructure & equipment
A36: Input | B36: 15a. Equipment and facilities | C36: ='Scorecard (T8)'!G37 -> 3 | D36: ='Scorecard (T8)'!F37 -> 0 | E36: ='Scorecard (T8)'!I37 -> 3 | F36: ='Scorecard (T8)'!J37 -> 0 | I36: Budget, infrastructure & equipment
A37: Process | B37: 15b. Maintenance of equipment and facilities | C37: ='Scorecard (T8)'!G38 -> 3 | D37: ='Scorecard (T8)'!F38 -> 0 | E37: ='Scorecard (T8)'!I38 -> 3 | F37: ='Scorecard (T8)'!J38 -> 0 | I37: Budget, infrastructure & equipment
A38: Process | B38: 16. Law enforcement | C38: ='Scorecard (T8)'!G39 -> 3 | D38: ='Scorecard (T8)'!F39 -> 0 | E38: ='Scorecard (T8)'!I39 -> 3 | F38: ='Scorecard (T8)'!J39 -> 0 | I38: Legislation, control & enforcement
A39: Governance | B39: 16a. Coordination of law enforcement | C39: ='Scorecard (T8)'!G40 -> 3 | D39: ='Scorecard (T8)'!F40 -> 1 | E39: ='Scorecard (T8)'!I40 -> 1.5 | F39: ='Scorecard (T8)'!J40 -> 0.5 | I39: Legislation, control & enforcement
A40: Governance | B40: 16b. Solving disputes or disagreements - documentation of processes | C40: ='Scorecard (T8)'!G41 -> 3 | D40: ='Scorecard (T8)'!F41 -> 2 | E40: ='Scorecard (T8)'!I41 -> 1.5 | F40: ='Scorecard (T8)'!J41 -> 1 | I40: Legislation, control & enforcement
A41: Governance | B41: 16c. Solving disputes or disagreements – suitability of the process | C41: ='Scorecard (T8)'!G42 -> 3 | D41: ='Scorecard (T8)'!F42 -> 2 | E41: ='Scorecard (T8)'!I42 -> 0.75 | F41: ='Scorecard (T8)'!J42 -> 0.5 | I41: Legislation, control & enforcement
A42: Governance | B42: 16d. Solving disputes or disagreements - success | C42: ='Scorecard (T8)'!G43 -> 3 | D42: ='Scorecard (T8)'!F43 -> 1 | E42: ='Scorecard (T8)'!I43 -> 0.75 | F42: ='Scorecard (T8)'!J43 -> 0.25 | I42: Legislation, control & enforcement
A43: Governance | B43: 16e. Prosecution of law breakers | C43: ='Scorecard (T8)'!G44 -> 3 | D43: ='Scorecard (T8)'!F44 -> 0 | E43: ='Scorecard (T8)'!I44 -> 1.5 | F43: ='Scorecard (T8)'!J44 -> 0 | I43: Legislation, control & enforcement
A44: Governance | B44: 16f. Prosecution of law breakers | C44: ='Scorecard (T8)'!G45 -> 1 | D44: ='Scorecard (T8)'!F45 -> 0 | E44: ='Scorecard (T8)'!I45 -> 0.5 | F44: ='Scorecard (T8)'!J45 -> 0 | I44: Legislation, control & enforcement
A45: Process | B45: 17. Protection systems/law enforcement - effectiveness | C45: ='Scorecard (T8)'!G46 -> 3 | D45: ='Scorecard (T8)'!F46 -> 1 | E45: ='Scorecard (T8)'!I46 -> 3 | F45: ='Scorecard (T8)'!J46 -> 1 | I45: Legislation, control & enforcement
A46: Governance | B46: 17a. Reporting incidents | C46: ='Scorecard (T8)'!G47 -> 3 | D46: ='Scorecard (T8)'!F47 -> 0 | E46: ='Scorecard (T8)'!I47 -> 1.5 | F46: ='Scorecard (T8)'!J47 -> 0 | I46: Legislation, control & enforcement
A47: Process | B47: 18. Staff safety | C47: ='Scorecard (T8)'!G48 -> 3 | D47: ='Scorecard (T8)'!F48 -> 2 | E47: ='Scorecard (T8)'!I48 -> 3 | F47: ='Scorecard (T8)'!J48 -> 2 | I47: Human resources
A48: Process | B48: 19. Research | C48: ='Scorecard (T8)'!G49 -> 3 | D48: ='Scorecard (T8)'!F49 -> 0 | E48: ='Scorecard (T8)'!I49 -> 3 | F48: ='Scorecard (T8)'!J49 -> 0 | I48: Resource management
A49: Process | B49: 20. Monitoring & evaluation (of management activities) | C49: ='Scorecard (T8)'!G50 -> 3 | D49: ='Scorecard (T8)'!F50 -> 0 | E49: ='Scorecard (T8)'!I50 -> 3 | F49: ='Scorecard (T8)'!J50 -> 0 | I49: Resource management
A50: Process | B50: 21. Resource management | C50: ='Scorecard (T8)'!G51 -> 3 | D50: ='Scorecard (T8)'!F51 -> 1 | E50: ='Scorecard (T8)'!I51 -> 3 | F50: ='Scorecard (T8)'!J51 -> 1 | I50: Resource management
A51: Process | B51: 22. Climate change | C51: ='Scorecard (T8)'!G52 -> 3 | D51: ='Scorecard (T8)'!F52 -> 1 | E51: ='Scorecard (T8)'!I52 -> 3 | F51: ='Scorecard (T8)'!J52 -> 1 | I51: Resource management
A52: Process | B52: 23a. Carbon capture | C52: ='Scorecard (T8)'!G53 -> 3 | D52: ='Scorecard (T8)'!F53 -> 0 | E52: ='Scorecard (T8)'!I53 -> 1.5 | F52: ='Scorecard (T8)'!J53 -> 0 | I52: Resource management
A53: Process | B53: 23b. Carbon storage | C53: ='Scorecard (T8)'!G54 -> 3 | D53: ='Scorecard (T8)'!F54 -> 0 | E53: ='Scorecard (T8)'!I54 -> 1.5 | F53: ='Scorecard (T8)'!J54 -> 0 | I53: Resource management
A54: Process | B54: 24. Ecosystem services – benefits are known | C54: ='Scorecard (T8)'!G55 -> 1 | D54: ='Scorecard (T8)'!F55 -> 1 | E54: ='Scorecard (T8)'!I55 -> 0.5 | F54: ='Scorecard (T8)'!J55 -> 0.5 | I54: Resource management
A55: Process | B55: 24a. Ecosystem services | C55: ='Scorecard (T8)'!G56 -> 3 | D55: ='Scorecard (T8)'!F56 -> 2 | E55: ='Scorecard (T8)'!I56 -> 1.5 | F55: ='Scorecard (T8)'!J56 -> 1 | I55: Resource management
A56: Process | B56: 25. Education & awareness | C56: ='Scorecard (T8)'!G57 -> 3 | D56: ='Scorecard (T8)'!F57 -> 1 | E56: ='Scorecard (T8)'!I57 -> 3 | F56: ='Scorecard (T8)'!J57 -> 1 | I56: Relationships, education & awareness
A57: Process | B57: 26. Government & commercial neighbour cooperation | C57: ='Scorecard (T8)'!G58 -> 3 | D57: ='Scorecard (T8)'!F58 -> 0 | E57: ='Scorecard (T8)'!I58 -> 3 | F57: ='Scorecard (T8)'!J58 -> 0 | I57: Relationships, education & awareness
A58: Process | B58: 27. Commercial tourism operators | C58: ='Scorecard (T8)'!G59 -> 3 | D58: ='Scorecard (T8)'!F59 -> 0 | E58: ='Scorecard (T8)'!I59 -> 3 | F58: ='Scorecard (T8)'!J59 -> 0 | I58: Tourism & recreation
A59: Process | B59: 28. Fees | C59: ='Scorecard (T8)'!G60 -> 3 | D59: ='Scorecard (T8)'!F60 -> 0 | E59: ='Scorecard (T8)'!I60 -> 3 | F59: ='Scorecard (T8)'!J60 -> 0 | I59: Tourism & recreation
A60: Output | B60: 29. Visitor facilities and services | C60: ='Scorecard (T8)'!G61 -> 3 | D60: ='Scorecard (T8)'!F61 -> 0 | E60: ='Scorecard (T8)'!I61 -> 3 | F60: ='Scorecard (T8)'!J61 -> 0 | I60: Tourism & recreation
A61: Process | B61: 30. Customary landowners | C61: ='Scorecard (T8)'!G62 -> 3 | D61: ='Scorecard (T8)'!F62 -> 1 | E61: ='Scorecard (T8)'!I62 -> 3 | F61: ='Scorecard (T8)'!J62 -> 1 | I61: Relationships, education & awareness
A62: Process | B62: 31. Local communities & others with access or user ‘rights’ | C62: ='Scorecard (T8)'!G63 -> 3 | D62: ='Scorecard (T8)'!F63 -> 1 | E62: ='Scorecard (T8)'!I63 -> 3 | F62: ='Scorecard (T8)'!J63 -> 1 | I62: Relationships, education & awareness
A63: Governance | B63: 31a. Proportion of women involved in decision making related to PA | C63: ='Scorecard (T8)'!G64 -> 3 | D63: ='Scorecard (T8)'!F64 -> 0 | E63: ='Scorecard (T8)'!I64 -> 0.75 | F63: ='Scorecard (T8)'!J64 -> 0 | I63: Human resources
A64: Governance | B64: 31b. Participation of women in the full range of PA decisions | C64: ='Scorecard (T8)'!G65 -> 1 | D64: ='Scorecard (T8)'!F65 -> 0 | E64: ='Scorecard (T8)'!I65 -> 0.25 | F64: ='Scorecard (T8)'!J65 -> 0 | I64: Human resources
A65: Governance | B65: 31c. Influence of women in decision making | C65: ='Scorecard (T8)'!G66 -> 3 | D65: ='Scorecard (T8)'!F66 -> 1 | E65: ='Scorecard (T8)'!I66 -> 0.75 | F65: ='Scorecard (T8)'!J66 -> 0.25 | I65: Human resources
A66: Governance | B66: 31d. Participation of young people in the full range of PA decisions | C66: ='Scorecard (T8)'!G67 -> 1 | D66: ='Scorecard (T8)'!F67 -> 0 | E66: ='Scorecard (T8)'!I67 -> 0.25 | F66: ='Scorecard (T8)'!J67 -> 0 | I66: Human resources
A67: Governance | B67: 31e. Influence of young people in decision making | C67: ='Scorecard (T8)'!G68 -> 3 | D67: ='Scorecard (T8)'!F68 -> 1 | E67: ='Scorecard (T8)'!I68 -> 0.75 | F67: ='Scorecard (T8)'!J68 -> 0.25 | I67: Human resources
A68: Governance | B68: 31f. Overall participation of people in full range of PA decisions | C68: ='Scorecard (T8)'!G69 -> 1 | D68: ='Scorecard (T8)'!F69 -> 0 | E68: ='Scorecard (T8)'!I69 -> 0.25 | F68: ='Scorecard (T8)'!J69 -> 0 | I68: Human resources
A69: Output | B69: 31g. Communication & trust between customary landowners & CEPA | C69: ='Scorecard (T8)'!G70 -> 1 | D69: ='Scorecard (T8)'!F70 -> 0 | E69: ='Scorecard (T8)'!I70 -> 0.5 | F69: ='Scorecard (T8)'!J70 -> 0 | I69: Relationships, education & awareness
A70: Output | B70: 31g. Communication & trust between customary landowners & Provincial govt | C70: ='Scorecard (T8)'!G71 -> 1 | D70: ='Scorecard (T8)'!F71 -> 0 | E70: ='Scorecard (T8)'!I71 -> 0.5 | F70: ='Scorecard (T8)'!J71 -> 0 | I70: Relationships, education & awareness
A71: Output | B71: 31g. Communication & trust between customary landowners & LLG | C71: ='Scorecard (T8)'!G72 -> 1 | D71: ='Scorecard (T8)'!F72 -> 0 | E71: ='Scorecard (T8)'!I72 -> 0.25 | F71: ='Scorecard (T8)'!J72 -> 0 | I71: Relationships, education & awareness
A72: Output | B72: 31g. Communication & trust between customary landowners & District reps | C72: ='Scorecard (T8)'!G73 -> 1 | D72: ='Scorecard (T8)'!F73 -> 0 | E72: ='Scorecard (T8)'!I73 -> 0.25 | F72: ='Scorecard (T8)'!J73 -> 0 | I72: Relationships, education & awareness
A73: Output | B73: 31g. Communication & trust between customary landowners & Ward reps | C73: ='Scorecard (T8)'!G74 -> 1 | D73: ='Scorecard (T8)'!F74 -> 1 | E73: ='Scorecard (T8)'!I74 -> 0.25 | F73: ='Scorecard (T8)'!J74 -> 0.25 | I73: Relationships, education & awareness
A74: Output | B74: 31g. Communication & trust between customary landowners & NGOs | C74: ='Scorecard (T8)'!G75 -> 1 | D74: ='Scorecard (T8)'!F75 -> 0 | E74: ='Scorecard (T8)'!I75 -> 0.25 | F74: ='Scorecard (T8)'!J75 -> 0 | I74: Relationships, education & awareness
A75: Output | B75: 31h. Community welfare | C75: ='Scorecard (T8)'!G76 -> 1 | D75: ='Scorecard (T8)'!F76 -> 1 | E75: ='Scorecard (T8)'!I76 -> 1 | F75: ='Scorecard (T8)'!J76 -> 1 | I75: Relationships, education & awareness
A76: Output | B76: 31i. Level of support | C76: ='Scorecard (T8)'!G77 -> 1 | D76: ='Scorecard (T8)'!F77 -> 1 | E76: ='Scorecard (T8)'!I77 -> 1 | F76: ='Scorecard (T8)'!J77 -> 1 | I76: Relationships, education & awareness
A77: Output | B77: 32. Livelihood benefits | C77: ='Scorecard (T8)'!G78 -> 3 | D77: ='Scorecard (T8)'!F78 -> 2 | E77: ='Scorecard (T8)'!I78 -> 3 | F77: ='Scorecard (T8)'!J78 -> 2 | I77: Economic benefit
A78: Governance | B78: 32a. Benefit-sharing arrangements - effectiveness | C78: ='Scorecard (T8)'!G79 -> 3 | D78: ='Scorecard (T8)'!F79 -> 0 | E78: ='Scorecard (T8)'!I79 -> 1.5 | F78: ='Scorecard (T8)'!J79 -> 0 | I78: Economic benefit
A79: Governance | B79: 32b. Distribution of livelihood benefits | C79: ='Scorecard (T8)'!G80 -> 3 | D79: ='Scorecard (T8)'!F80 -> 0 | E79: ='Scorecard (T8)'!I80 -> 0.75 | F79: ='Scorecard (T8)'!J80 -> 0 | I79: Economic benefit
A80: Governance | B80: 32c Change in livelihoods over the past five years | C80: ='Scorecard (T8)'!G81 -> 1 | D80: ='Scorecard (T8)'!F81 -> 0 | E80: ='Scorecard (T8)'!I81 -> 0.25 | F80: ='Scorecard (T8)'!J81 -> 0 | I80: Economic benefit
A81: Output | B81: 33. Threats | C81: ='Scorecard (T8)'!G82 -> 3 | D81: ='Scorecard (T8)'!F82 -> 1 | E81: ='Scorecard (T8)'!I82 -> 3 | F81: ='Scorecard (T8)'!J82 -> 1 | I81: Resource management
A82: Output | B82: 34. Connectivity (linkages to other natural systems) | C82: ='Scorecard (T8)'!G83 -> 3 | D82: ='Scorecard (T8)'!F83 -> 3 | E82: ='Scorecard (T8)'!I83 -> 3 | F82: ='Scorecard (T8)'!J83 -> 3 | I82: Resource management
A83: Outcome | B83: 35. Condition of natural values | C83: ='Scorecard (T8)'!G84 -> 3 | D83: ='Scorecard (T8)'!F84 -> 2 | E83: ='Scorecard (T8)'!I84 -> 3 | F83: ='Scorecard (T8)'!J84 -> 2 | I83: Condition of values
A84: Process | B84: 35a. Condition of natural values | C84: ='Scorecard (T8)'!G85 -> 1 | D84: ='Scorecard (T8)'!F85 -> 1 | E84: ='Scorecard (T8)'!I85 -> 1 | F84: ='Scorecard (T8)'!J85 -> 1 | I84: Condition of values
A85: Process | B85: 35b. Management programmes | C85: ='Scorecard (T8)'!G86 -> 1 | D85: ='Scorecard (T8)'!F86 -> 1 | E85: ='Scorecard (T8)'!I86 -> 1 | F85: ='Scorecard (T8)'!J86 -> 1 | I85: Resource management
A86: Process | B86: 35c. Actions implemented as routine part of management | C86: ='Scorecard (T8)'!G87 -> 1 | D86: ='Scorecard (T8)'!F87 -> 0 | E86: ='Scorecard (T8)'!I87 -> 1 | F86: ='Scorecard (T8)'!J87 -> 0 | I86: Resource management
A87: Outcome | B87: 36. Condition of cultural values | C87: ='Scorecard (T8)'!G88 -> 3 | D87: ='Scorecard (T8)'!F88 -> 3 | E87: ='Scorecard (T8)'!I88 -> 3 | F87: ='Scorecard (T8)'!J88 -> 3 | I87: Condition of values
A88: Process | B88: 36a. Condition of cultural values | C88: ='Scorecard (T8)'!G89 -> 1 | D88: ='Scorecard (T8)'!F89 -> 1 | E88: ='Scorecard (T8)'!I89 -> 1 | F88: ='Scorecard (T8)'!J89 -> 1 | I88: Condition of values
A89: Process | B89: 36b. Management programmes for cultural values | C89: ='Scorecard (T8)'!G90 -> 1 | D89: ='Scorecard (T8)'!F90 -> 0 | E89: ='Scorecard (T8)'!I90 -> 1 | F89: ='Scorecard (T8)'!J90 -> 0 | I89: Resource management
A90: Process | B90: 36c. Actions implemented as routine part of management to protect cultural values | C90: ='Scorecard (T8)'!G91 -> 1 | D90: ='Scorecard (T8)'!F91 -> 0 | E90: ='Scorecard (T8)'!I91 -> 1 | F90: ='Scorecard (T8)'!J91 -> 0 | I90: Resource management
A91: Outcome | B91: 37. Conservation status of key plant or animal species | C91: ='Scorecard (T8)'!G92 -> 3 | D91: ='Scorecard (T8)'!F92 -> 3 | E91: ='Scorecard (T8)'!I92 -> 3 | F91: ='Scorecard (T8)'!J92 -> 3 | I91: Condition of values
A92: Outcome | B92: 38. Conservation status of habitats | C92: ='Scorecard (T8)'!G93 -> 3 | D92: ='Scorecard (T8)'!F93 -> 3 | E92: ='Scorecard (T8)'!I93 -> 3 | F92: ='Scorecard (T8)'!J93 -> 3 | I92: Condition of values
A93: Input | B93: 39a. Level of support - CEPA | C93: ='Scorecard (T8)'!G94 -> 3 | D93: ='Scorecard (T8)'!F94 -> 0 | E93: ='Scorecard (T8)'!I94 -> 0.6 | F93: ='Scorecard (T8)'!J94 -> 0 | I93: Human resources
A94: Input | B94: 39b. Level of support – Provincial Government(s) | C94: ='Scorecard (T8)'!G95 -> 3 | D94: ='Scorecard (T8)'!F95 -> 0 | E94: ='Scorecard (T8)'!I95 -> 0.6 | F94: ='Scorecard (T8)'!J95 -> 0 | I94: Human resources
A95: Input | B95: 39c. Level of support – District(s) | C95: ='Scorecard (T8)'!G96 -> 3 | D95: ='Scorecard (T8)'!F96 -> 0 | E95: ='Scorecard (T8)'!I96 -> 0.6 | F95: ='Scorecard (T8)'!J96 -> 0 | I95: Human resources
A96: Input | B96: 39d. Level of support – LLG(s) | C96: ='Scorecard (T8)'!G97 -> 3 | D96: ='Scorecard (T8)'!F97 -> 0 | E96: ='Scorecard (T8)'!I97 -> 0.6 | F96: ='Scorecard (T8)'!J97 -> 0 | I96: Human resources
A97: Input | B97: 39e. Level of support – NGOs | C97: ='Scorecard (T8)'!G98 -> 3 | D97: ='Scorecard (T8)'!F98 -> 0 | E97: ='Scorecard (T8)'!I98 -> 0.6 | F97: ='Scorecard (T8)'!J98 -> 0 | I97: Human resources
A98: TOTAL | C98: =SUM(C2:C97) -> 219 | D98: =SUM(D2:D97) -> 85 | E98: =SUM(E2:E97) -> 151.4 | F98: =SUM(F2:F97) -> 60.4
B102: METT Category | C102: Score | D102: Possible Score | E102: % Non-weighted score | F102: Weighted Score | G102: Possible Weighted Score | H102: %
B103: Planning | C103: =SUM(D2:D3,D8:D12,D21:D23,D28) -> 14 | D103: =SUM(C2:C3,C8:C12,C21:C23,C28) -> 21 | E103: =C103/D103*100 -> 66.66666667 | F103: =SUM(F2:F3,F8:F12,F21:F23,F28) -> 12.7 | G103: =SUM(E2:E3,E8:E12,E21:E23,E28) -> 19 | H103: =F103/G103*100 -> 66.84210526
B104: Input | C104: =SUM(D29:D34,D36,D93:D97) -> 4 | D104: =SUM(C29:C34,C36,C93:C97) -> 36 | E104: 11.11111111 | F104: =SUM(F29:F34,F36,F93:F97) -> 4 | G104: =SUM(E29:E34,E36,E93:E97) -> 24 | H104: 16.66666667
B105: Process | C105: =SUM(D4,D13:D20,D24,D35,D37:D38,D45,D47:D59,D61:D62,D84:D86,D88:D90) -> 27 | D105: =SUM(C4,C13:C20,C24,C35,C37:C38,C45,C47:C59,C61:C62,C84:C86,C88:C90) -> 78 | E105: 34.61538462 | F105: =SUM(F4,F13:F20,F24,F37:F38,F35,F45,F47:F59,F61:F62,F84:F86,F88:F90) -> 18.45 | G105: =SUM(E4,E13:E20,E24,E35,E37:E38,E45,E47:E59,E61:E62,E84:E86,E88:E90) -> 62.65 | H105: 29.44932163
B106: Output | C106: =SUM(D60,D69:D77,D81:D82) -> 9 | D106: =SUM(C69:C77,C81:C82,C60) -> 20 | E106: 45 | F106: =SUM(F81:F82,F69:F77,F60) -> 8.25 | G106: =SUM(E60,E69:E77,E81:E82) -> 16 | H106: 51.5625
B107: Outcome | C107: =SUM(D83,D87,D91:D92) -> 11 | D107: =SUM(C83,C87,C91:C92) -> 12 | E107: 91.66666667 | F107: =SUM(F91:F92,F87,F83) -> 11 | G107: =SUM(E91:E92,E87,E83) -> 12 | H107: 91.66666667
B108: Governance | C108: =SUM(D5:D7,D25:D27,D39:D44,D46,D63:D68,D78:D80) -> 20 | D108: =SUM(C5:C7,C25:C27,C39:C44,C46,C63:C68,C78:C80) -> 52 | E108: 38.46153846 | F108: =SUM(F5:F7,F25:F27,F39:F44,F46,F63:F68,F78:F80) -> 6 | G108: =SUM(E78:E80,E63:E68,E46,E39:E44,E25:E27,E5:E7) -> 17.75 | H108: 33.8028169
B109: TOTAL | C109: =SUM(C103:C108) -> 85 | D109: =SUM(D103:D108) -> 219 | E109: 38.81278539 | F109: =SUM(F103:F108) -> 60.4 | G109: =SUM(G103:G108) -> 151.4 | H109: 39.89431968
B113: METT Category | C113: % Weighted Score
B114: Planning | C114: =H103 -> 66.84210526
B115: Input | C115: 16.66666667
B116: Process | C116: 29.44932163
B117: Output | C117: 51.5625
B118: Outcome | C118: 91.66666667
B119: Governance | C119: 33.8028169
B120: TOTAL | C120: 39.89431968
B123: Themes | C123: Weighted Score | D123: Possible W'ed Score | E123: % Weighted Score
B124: Design & establishment | C124: =SUM(F2,F12:F20) -> 9.7 | D124: =SUM(E2,E12:E20) -> 12.4 | E124: =C124/D124*100 -> 78.22580645
B125: Planning & objectives | C125: =SUM(F3,F8:F11,F21:F28) -> 9.2 | D125: =SUM(E3,E8:E11,E21:E28) -> 14.5 | E125: =C125/D125*100 -> 63.44827586
B126: Legislation, control & enforcement | C126: =SUM(F4:F7,F38:F46) -> 6.25 | D126: =SUM(E4:E7,E38:E46) -> 20 | E126: 31.25
B127: Resource management | C127: =SUM(F29,F48:F55,F81:F82,F85:F86,F89:F90) -> 9.5 | D127: =SUM(E29,E48:E55,E81:E82,E85:E86,E89:E90) -> 30 | E127: 31.66666667
B128: Human resources | C128: =SUM(F30:F32,F47,F63:F68,F93:F97) -> 5.5 | D128: =SUM(E93:E97,E63:E68,E47,E30:E32) -> 18 | E128: 30.55555556
B129: Budget, infrastructure & equipment | C129: =SUM(F33:F37) -> 0 | D129: =SUM(E33:E37) -> 12 | E129: 0
B130: Relationships, education & awareness | C130: =SUM(F56:F57,F61:F62,F69:F76) -> 5.25 | D130: =SUM(E56:E57,E61:E62,E69:E76) -> 16 | E130: 32.8125
B131: Tourism & recreation | C131: =SUM(F58:F60) -> 0 | D131: =SUM(E58:E60) -> 9 | E131: 0
B132: Economic benefit | C132: =SUM(F77:F80) -> 2 | D132: =SUM(E77:E80) -> 5.5 | E132: 36.36363636
B133: Condition of values | C133: =SUM(F83:F84,F87:F88,F91:F92) -> 13 | D133: =SUM(E83:E84,E87:E88,E91:E92) -> 14 | E133: 92.85714286
B134: TOTAL | C134: =SUM(C124:C133) -> 60.4 | D134: =SUM(D124:D133) -> 151.4 | E134: 39.89431968

Sheet Attributes (T1)
A1: Protected area attributes (Table 1)
B2: Question | C2: Your answer
C3: Tarobi LMMA
A4: 1 | B4: Country | C4: Papua New Guinea
A5: 2 | B5: Location of protected area | C5: The LMMA is located in the Central Nakanai LLG Area in Kimbe Bay. The area is accessed by road from Kimbe and by boat to the LMMA. Tarobi village is situated adjacent to the coastline and is isolated from the main highway, which is about 25km to the south. The existing unsealed road to the community is seasonal, often being impassable during the wet season. There are three villages/hamlets, (Valako, Kololo and Kavutu). The LMMA is made up of the Eastern and Western Tarobi Bays and includes two islands and four reefs, two mangrove sites, one masalai site and one beach.
A6: 2a | B6: Province(s) | C6: West New Britain
A7: 2b | B7: District/s | C7: Talasea
A8: 2c | B8: Local level government(s) | C8: Central Nakanai (Was formerly under Bialla Rural LLG until recently)
A9: 2d | B9: Wards (Name and/or number) | C9: 8
A10: 3 | B10: Name of the protected area | C10: Tarobi Locally Managed Marine Area
A11: 3a | B11: CEPA Protected Area site code | C11: TARO (Marine Division)
A12: 4 | B12: World Database of Protected Areas site code | C12: NA
A13: 5 | B13: Date when the protected area was formally established (dd/mm/yyyy) | C13: 2007-12-11
A14: 5a | B14: Gazettal information or designation information (what does the date above refer to?) | C14: This is the date when the agreement to formally recognise the LMMA was done between Bialla RLLG and Tarobi village. Since moving to Central Nakanai, this component is yet to be formalised as Central Nakanai is yet to have such Environment Law
A15: 6 | B15: What is the size of the protected area (in km2)? | C15: 197.5
A16: 7 | B16: Protected area designation(s): What level or kind of protected area is it? | C16: Locally Managed Marine Area
A17: 8 | B17: IUCN Protected area category | C17: No
A18: 9 | B18: IUCN Protected area category (other) | C18: No
A19: 10 | B19: International designations. Is the site listed under an international designation e.g. World Heritage site or Ramsar site, or WWF Global 2000 etc? (Y/N) | C19: No
A20: 10a | B20: World Heritage site (Y/N) | C20: No
A21: 10b | B21: Ramsar site (Y/N) | C21: No
A22: 10c | B22: UNESCO Man and Biosphere Reserves (Y/N) | C22: No
A23: 11 | B23: Other designations. Is the site listed under any other designation? (Y/N) | C23: No
A24: 12 | B24: Has the site been identified as a site of particular importance for biodiversity? (Y/N) | C24: No
A25: 13 | B25: Who owns the protected area? | C25: Customary Landowners
A26: 13a | B26: If the protected area is owned by customary landowners, please indicate all the relevant Clans. | C26: Customary landowners are made up of 10 clans - 6 major clans (Ugeuge, Kabulbulu, Bualali, Ailili, Gararua & Ababe) and 4 minor clans (Mamapa, Rosarosa, Ilaolao & Mararea)
A27: 13b | B27: How many households live within the protected area? (e.g. 15) | C27: 0
A28: 13c | B28: How many people live within the protected area? (e.g. 367) | C28: 0
A29: 13d | B29: What proportion of the population living within the protected area comprises children (under 18 years old)? | C29: 0
A30: 13e | B30: Briefly outline what surrounds the protected area | C30: Villages, Land Settlement Scheme Blocks (LSS), Estates (Small holder blocks and mini estates) and the sea/ocean. There is also the East and West Tarobi Bays
A31: 14 | B31: Who manages the protected area? | C31: The LMMA is managed by the Tarobi LMMA Management Committee (TLMMAMC). However, it has not been functional (new members have recently been selected). In its absence, the community looks after the LMMA based on their level of understanding of the LMMA (rules, zones etc.) and also on the marine tenureship (matrilineal) of the LMMA. The ten clans (who own or have rights) are very much involved in helping to manage the LMMA. They contribute to decisions by consent at clan level that are taken up to the TLMMAMC. (Tarobi recently became part of the Central Nakanai LLG there its recognition under the Bialla Rural LLG needs to be transferred or worked on)
A32: 15 | B32: Are there any special areas where restrictions or rules are in place that limit the activities that can take place in that area? | C32: Yes, No Take Zone, No Go Zone (Preservation Zones), Conservation Zone, Habitat Protection Zone and specific sites - Spawning aggregation and Sea Turtle nesting sites. (See map attached)
A33: 16 | B33: Briefly describe the cultural system, family, traditions, pasin tumbuna and the way in which customary landowners care for (lukautim) the land/sea in the protected area (i.e. if the protected area is owned by customary landowners). | C33: The marine tenure system here is predominantly matrilineal and includes territorial and resource (fish, shellfish, seaweed and other marine resources) rights over reefs and seas which are controlled communally at the clan level. Access is through the mother’s lineage so that a man has primary rights over his mother’s property, and these rights pass to his sisters’ children on his death (rights vested in his eldest sister’s eldest daughter). Put another way, the eldest daughter inherits the resource tenure rights of her mother, but her brother is the primary person who speaks on her behalf on land and other resource matters. There are also traditions like 'Merarobo' which is a tabu/stop to do fishing, collecting shells etc at a certain reef or site to honour the death of a community member. These Merarobo can be in place from 1-3 years and its opened for access after traditional feast ceremonies. This helps the conservation area but is done using the marine tenureship but is observed by all clans.
A34: 17 | B34: What rights do ‘other’ people have in relation to the protected area? (i.e. those who are not customary landowners) | C34: Everyone including settlers are guided by the Permitted and not Permitted access rule for each site in the PA. These arrangements are captured in the Management Plan which also sets out fines for breaking the laws. Fines vary differently for the same offence by customary land owners, outside communities with customary rights and outsiders with no customary rights.
A35: 18 | B35: What is the process for deciding how land/sea in the protected area is accessed and used? | C35: The PA developed different zonings with permitted activities and not permitted activities in the Management Plan.
A36: 19 | B36: Total number of staff. Does the protected area have staff (paid workers)? (Y/N) | C36: 0
A37: 19a | B37: Number of Permanent paid workers and their positions (e.g. 5 rangers, 1 manager) | C37: 0
A38: 19b | B38: Number of Temporary paid workers and their positions (e.g. 4 caretakers, 5 rangers) | C38: 0
A39: 19c | B39: How many people do work in the protected area on a voluntary basis (not paid)? | C39: 2
A40: 19d | B40: What type of work do these voluntary workers/customary landowners undertake? | C40: Monitoring and service work in the PA
A41: 20 | B41: What is the annual budget (Kina/ USD) for recurrent (operational) funds (excluding staff salary costs)? | C41: 0
A42: 20a | B42: Year for which the budget is reported | C42: NA
A43: 20b | B43: Recurrent (operational) funds | C43: 0
A44: 20c | B44: Project or other supplementary or special funds (excluding staff salary costs) | C44: 0
A45: 21 | B45: How many visitors came to the protected area last calendar year? | C45: 0
A46: 21a | B46: In what year were these visitor numbers reported? (yyyy) | C46: NA
A47: 21b | B47: Describe the main reasons for the tourist visits | C47: NA
A48: 22 | B48: Main value 1 | C48: ='Key Values (T3)'!B4 -> Mangroves (systems)
B49: Main value 2 | C49: ='Key Values (T3)'!B5 -> Sea grass (system)
B50: Main value 3 | C50: ='Key Values (T3)'!B6 -> Coral systems (corals and reefs)
B51: Main value 4 | C51: ='Key Values (T3)'!B7 -> Turtle nesting
B52: Main value 5 | C52: ='Key Values (T3)'!B8 -> Cultural sites
A53: 23 | B53: What are the benefits that arise from having the protected area? | C53: 1. People able to catch fish much more easier/quicker as stocks has returned to normalcy 2. Helps control rise in sea level and other climate change impacts, 3. Return of the culturally recognised dugong, 4. Increase in Kina shells for household consumption, market (cash) and for lime, 5. More sea cucumbers available for harvest during season openings to make a little more money
A54: 24 | B54: Management objective 1 | C54: To use our marine resources in a more sustainable way with consideration for our future generation
B55: Management objective 2 | C55: To protect our culture and traditions that connect us to the marine environment
B56: Management objective 3 | C56: To develop our community through the sustainable use of our LMMA and eco-tourism (NOTE: there are 7 specific management objectives related to 7 targets (values) identified in our management plan.
A57: 25 | B57: Are there any negative impacts or burdens on the wellbeing of customary landowners and others with user/access rights to the protected area that result from the protected area? If so, list them briefly here | C57: A) Reduced and limited accessibility of resources by local owners; B) Disputes/conflicts arising amongst locals (clans and families)
A58: 26 | B58: Total number of people involved in completing or answering the questions in this assessment | C58: 7
A59: 26a | B59: Protected area manager (this includes the management committee members) | C59: Jeffery Laia, Vice Chairman, Tarobi Village, Central Nakanai LLG, 72121089; Dianna Vareo, Treasurer, Tarobi Village, Central Nakanai LLG; Julie Roger, Women's Rep, Tarobi Village, Central Nakanai LLG, 72822704; Joe Pakailu, Secretary, Tarobi Village, Central Nakanai LLG, 70674265; John Bubu, Monitoring and Surveillance, Tarobi Village, Central Nakanai LLG; Cletus Reky, Monitoring and Surveillance, Tarobi Village, Central Nakanai LLG; Mathilda Ilevi, Monitoring and Surveillance, Tarobi Village, Central Nakanai LLG. (NOTE: none of the participants had an email address apart from mobile contacts)
A60: 26b | B60: Protected area staff (paid workers)
A61: 26c | B61: Other Protected Area authority staff
A62: 26d | B62: Volunteer
A63: 26e | B63: NGO
A64: 26f | B64: Customary landowners, including the local community members and clan leaders
A65: 26g | B65: Donors and/or sponsors
A66: 26h | B66: External consultants
A67: 26i | B67: Others
A68: 27 | B68: Please note if the assessment was conducted in association with a particular project, on behalf of an organisation or donor. | C68: GEF/UNDP cycle 6
A69: 28a | B69: The Facilitator Name and position | C69: Elton Kaitokai, Senior Program Officer, Terrestrial Ecosystems Management
A70: 28b | B70: Facilitator - Organisation | C70: Conservation and Environment Protection Authority
A71: 28c | B71: Facilitator - Address, Email, Phone | C71: P.O 6601, Boroko, National Capital District, ekaitokai@gmail.com , 3014500, 7550 8539
A72: 29 | B72: Recorder- Name and position | C72: Martha Wamo, PNG Marine Program CTI-CFF Secretariat Officer
B73: Recorder - Organisation | C73: Conservation and Environment Protection Authority
B74: Recorder - Address, Email, Phone | C74: P.O Box 6601, Boroko, National Capital District mrthwm47@gmail.com, 301 4534, 7549 8043
A75: 30 | B75: Date the assessment carried out (e.g. 29/01/2019) | C75: 19-20/07/2021

Sheet Values (P1,1)
A1: Protected area description - "What I like about the protected area"
A2: PA Name | B2: Description of values
B3: Insert text - this should include the words spoken by the PA representative(s) when they describe what they like about their PA
A4: ='Attributes (T1)'!C10 -> Tarobi Locally Managed Marine Area | B4: Tarobi LMMA is rich in marine resources. We have too many and invite all to come an see! Our marine resources are still intact. Our mangroves have over grown into mangrove forest. The sea grass area has extended. We have turtle nesting sites, fish spawning sites, a coral network including the 'K1 crater reef', and we are the only place with two varieties of anemones, one from the coral reef and one in the sea-grass because we don't eat them like people do in other sites. Our area is away from the main road and being remote, not many people access the area to remove and destroy our marine resources.

Sheet Values Checklist (T2)
A1: Checklist of protected area values and benefits (Table 2)
A2: Q. No. | B2: (Summary Question) | C2: Question: Does the protected area: | D2: Answer (click on arrow) | E2: Score | F2: Total score possible | G2: Comment (to help explain the score)
A3: 1 | B3: Biodiversity | C3: Provide for biodiversity (i.e. have many different kinds of plants, animals and ecosystems)? | D3: A lot | E3: =VLOOKUP(D3,Responses!$K$1:$L$5,2,FALSE) -> 2 | F3: 2 | G3: There are a diverse range of marine species found in the LMMA, including dugong, fish and turtles. There is also mangroves, seagrass and estuaries and island ecosystems.
A4: 2 | B4: Special plants & animals | C4: Have species of plants and animals listed as vulnerable, endangered or critically endangered | D4: A lot | E4: =VLOOKUP(D4,Responses!$K$1:$L$5,2,FALSE) -> 2 | F4: 2 | G4: Leatherback turtle, giant clam shells, dugongs and beche-de-mer.
A5: 3 | B5: Locally endemic plants or animal spp | C5: Have species of plants or animals found only in the protected area or nearby locations? | D5: Some | E5: =VLOOKUP(D5,Responses!$K$1:$L$5,2,FALSE) -> 1 | F5: 2 | G5: Two types of anemones, one in coral reef and one in the seagrass, home of clown fish and sandy bass.
A6: 4 | B6: Important ecosystems | C6: Contain important ecosystems (e.g. wetlands, grasslands, coral reefs etc)? | D6: A lot | E6: =VLOOKUP(D6,Responses!$K$1:$L$5,2,FALSE) -> 2 | F6: 2 | G6: The LMMA has coastal ecosystems, mangrove ecosystems, reefs, islands and a few more. There is also a terrestrial wetland/marshland within site.
A7: 5 | B7: Protect clean, fresh water | C7: Protect clean, fresh water? | D7: Some | E7: =VLOOKUP(D7,Responses!$K$1:$L$5,2,FALSE) -> 1 | F7: 2 | G7: The wetlands and estuaries contribute to the cleaning of water
A8: 6 | B8: Religious or spiritual significance | C8: Have religious or spiritual significance (e.g. tambu places, sacred sites)? | D8: A lot | E8: =VLOOKUP(D8,Responses!$K$1:$L$5,2,FALSE) -> 2 | F8: 2 | G8: Mainly spiritual (masalai and tambu) areas which can be temporary or permanent. The permanent sites are mainly reefs, parts of the mangrove and ends of the islands. The temporary ones are mainly for traditional uses and when there is death.
A9: 7 | B9: Scientific value | C9: Have scientific value? | D9: A lot | E9: =VLOOKUP(D9,Responses!$K$1:$L$5,2,FALSE) -> 2 | F9: 2 | G9: "One Kina Reef" is an extent/dormant volcanic crater Many significant sites relate to this. The main reef types are inshore and barrier reefs, which include corals, fish species and turtles. Mainly based on the biodiversity values of the LMMA (scientific design of the LMMA)
A10: 8 | B10: Source of employment for local communities | C10: Provide a source of employment for local communities? | D10: None | E10: =VLOOKUP(D10,Responses!$K$1:$L$5,2,FALSE) -> 0 | F10: 2 | G10: No paid work. Current work is on voluntary basis without pay.
A11: 9 | B11: Resources for local subsistence | C11: Provide resources for local subsistence (e.g. food, building materials, medicines etc)? | D11: A lot | E11: =VLOOKUP(D11,Responses!$K$1:$L$5,2,FALSE) -> 2 | F11: 2 | G11: This a major reason for the LMMA to keep providing local needs like protein, materials for houses, and goods that can be sold to earn some cash. It also provides cultural connections that maintains local relationships to their marine tenureship (matrilineal).
A12: 10 | B12: Resources for sale & benefits aid community d'ment & well-being | C12: Provide resources for sale, with the benefits used to enable community development and enhance well-being? | D12: A lot | E12: =VLOOKUP(D12,Responses!$K$1:$L$5,2,FALSE) -> 2 | F12: 2 | G12: Commercial products include beche-de-mer and trochus and on a family scale include fish like rabbit fish, reef fish, mullet, sea shells, kina shells, kina shell lime, shell money from the mangroves. So the LMMA resources provide for food security and there is medicinal use of sea grass (helps asthma).
A13: 11 | B13: Foster & attract community d'ment projects to enhance community well-being | C13: Foster and attract community development projects to enhance community well-being? | D13: A lot | E13: =VLOOKUP(D13,Responses!$K$1:$L$5,2,FALSE) -> 2 | F13: 2 | G13: Families try to attract community development. However, selfishness and greed by certain individuals most times affect others.
A14: 12 | B14: Place where culture, language & traditions are practiced | C14: Provide a place where culture, language and traditional practices can be practiced? | D14: A lot | E14: =VLOOKUP(D14,Responses!$K$1:$L$5,2,FALSE) -> 2 | F14: 2 | G14: Still normal. Passing of local knowledge on season, patterns, catch in the absences of modern tech and gear. Also locals reflect in their languages of names of marine resources and those that are associated to their clan stories like dugongs, giant clams and reef areas.
A15: 13 | B15: People who pass on traditional knowledge to future generations | C15: Have people who pass on traditional knowledge to future generations? | D15: Some | E15: =VLOOKUP(D15,Responses!$K$1:$L$5,2,FALSE) -> 1 | F15: 2 | G15: Not many are still alive and the younger people now do not show much interest in learning from the elders
A16: 14 | B16: Plant species of high cultural or economic importance | C16: Have plant species of high cultural or economic importance? | D16: Some | E16: =VLOOKUP(D16,Responses!$K$1:$L$5,2,FALSE) -> 1 | F16: 2 | G16: Mangroves and seaweeds that help pregnant mothers and seaweed for diabetes
A17: 15 | B17: Animal species of high cultural or economic importance | C17: Have animal species of high cultural or economic importance? | D17: A lot | E17: =VLOOKUP(D17,Responses!$K$1:$L$5,2,FALSE) -> 2 | F17: 2 | G17: Economic importance include beche-de-mer, trochus shell, fish (e.g. black bass, grouper, marlin and mullet) and culturally dugongs, giant clam and those that are associated with their clans (taboo to eat, kill or chase such).
A18: 16 | B18: Historical sites | C18: Have historical sites? | D18: Some | E18: =VLOOKUP(D18,Responses!$K$1:$L$5,2,FALSE) -> 1 | F18: 2 | G18: The K1 reef is intact and is not accessed. There are also clan stories associated with areas in the LMMA and nearby.
A19: 17 | B19: Nice scenery | C19: Have nice scenery (naispela hap long lukim)? | D19: A lot | E19: =VLOOKUP(D19,Responses!$K$1:$L$5,2,FALSE) -> 2 | F19: 2 | G19: There are five islands and the scenic marshland provides beautiful scenic views. The coral reefs also provide scenic views for diving and snorkelling.
A20: 18 | B20: Tourism activities now | C20: Have any tourism activities now? | D20: None | E20: =VLOOKUP(D20,Responses!$K$1:$L$5,2,FALSE) -> 0 | F20: 2 | G20: None at the moment
A21: 19 | B21: Potential for tourism activities in the future | C21: Have the potential for tourism activities in the future? | D21: A lot | E21: =VLOOKUP(D21,Responses!$K$1:$L$5,2,FALSE) -> 2 | F21: 2 | G21: There is potential for nature based and ecotourism activities in the LMMA. Dive tourism has high potential and could be explored given reports of Walindi entering their area without formal arrangements. This could be explored to be formalised as a start.
A22: 20 | B22: Role in providing educational opportunities | C22: Have a role in providing educational opportunities? | D22: Some | E22: =VLOOKUP(D22,Responses!$K$1:$L$5,2,FALSE) -> 1 | F22: 2 | G22: Continue awareness and educational involvement of the stakeholders ( Yes at the start of the formation of LMMA, however not so much now). School programs use the LMMA. JCU also did coral reef ecology which has potential for long term partnership if supported.
B23: TOTAL | C23: TOTAL | E23: =SUM(E3:E22) -> 30 | F23: =SUM(F3:F22) -> 40
D26: Legend
D27: 0 | E27: None
D28: 1 | E28: Some
D29: 2 | E29: A lot

Sheet Key Values (T3)
A1: Protected area values (Table 3)
A2: No. | B2: Key values | C2: Brief description
B3: (e.g. only known breeding area for the PNG Heron) | C3: (e.g. large freshwater wetland areas immediately above high tide provide nesting sites and food for rearing chicks. Island location means no interference from feral animals or from vehicles).
A4: 1 | B4: Mangroves (systems) | C4: Fish and other marine resources, if destroyed it can deplete resources. It also acts as a natural barrier from sea level rising, and used for post/ "maternity ward" for marine resources
A5: 2 | B5: Sea grass (system) | C5: Fish feeding site, There are nine species identified. Dugongs also come to grace here.
A6: 3 | B6: Coral systems (corals and reefs) | C6: It provides a dwelling place for a high variety of marine line life. We have almost the highest percent of reef systems in our LMMA from near shore to barrier reef that host a lot of marine life.
A7: 4 | B7: Turtle nesting | C7: Customary value, food source and also monetary value for income. Also for tourism value
A8: 5 | B8: Cultural sites | C8: Sacred sites are restricted from access to preserve cultural beliefs and can only be accessed for cultural ceremonial purposes, e.g. fishing sites for grouper and black brass

Sheet Benefits (T4)
A1: Protected area benefits (Table 4)
A2: No. | B2: Benefit/Positive | C2: Brief description
A4: 1 | B4: People able to catch fish much more easier (quicker) now as population has increased, there is spill over etc. | C4: LMMA zones for fishing activities and banning of destructive fishing methods e.g., poison roots. As a result, fish stocks have returned to normal and the coral reef has rehabilitated and created spill-over effect so we can still fish outside the LMMA or in general use zones (in our areas).
A5: 2 | B5: Helps control rise in sea level rise and other climate change impacts. | C5: Rehabilitation of mangroves forest has reduced the impact of the rising sea level, also saw increase in seagrass area and increase in marine resources in the mangrove e.g., crabs, shells.
A6: 3 | B6: Return of the culturally recognised dugong | C6: Dugong are a source of protein and are associated with many cultural stories in Tarobi. Due to over hunting for its meat, the sightings of dugong had decreased. Since the total ban by NFA on harvesting no one is harvesting. Locals also have pledged to stop hunting dugongs. With the LMMA, they have been seeing a return of the dugong. There is a lot of seagrass for the dugong to feed on and people have stopped hunting them.
A7: 4 | B7: Increase in Kina shells (Makiri) for household consumption, market (cash) and for lime | C7: The meat is collected both for consumption and for sale at informal markets, while the shell is processed into lime (eaten with betel nut) for home consumption and sale at informal markets. Although widely available, there was a decline however the LMMA has restored this through the care of the mangrove systems.
A8: 5 | B8: There are more sea cucumbers available for harvest during season openings and this enables the community to make a little more money | C8: Stock and size increased.

Sheet Negatives (T5)
A1: Protected area negative impacts (Table 5)
A2: No. | B2: Negative impact | C2: Brief description
B3: (e.g. restrictions on fishing) | C3: (explain why this is a negative)
A4: 1 | B4: Reduced and limited accessibility of resources by local owners | C4: Local people with user and access rights now have to abide by the rules of the LMMA. The frequency and freedom to use and harvest in the area is limited now and at times monitored.
A5: 2 | B5: Disputes/conflicts arising amongst locals (clans and families) | C5: Families/clans having disagreements on use and access rights to zones and sites as a result of restrictions place on them throughout he LMMA. Also resulting in illegal takes.

Sheet Threats (T6)
A1: Detailed assessment of threats (Table 6) | L1: Meaning of ratings
A2: Threat category | B2: Threat | C2: Description | D2: Threat extent | E2: Threat extent score | F2: Threat severity | G2: Threat severity score | H2: Management response now | I2: Future management response | J2: Notes including values affected
B3: Sub-categories of threat | C3: If the threat is present, insert details of the threat in the PA | D3: Select from pull down menu | E3: Insert score: VH=4; H=3; M=2; L=1 | F3: Select from pull down menu (leave blank if not applicable) | G3: Insert score: VH=4; H=3; M=2; L=1 | H3: List the management responses that are occurring NOW | I3: List what management needs to do to address the threat | J3: Write additional information here | L3: Extent rating | M3: Meaning: the threat is….
A4: 1: Housing and commercial development within a protected area Threats from human settlements or other non-agricultural land uses | B4: 1.1 Housing and settlement | C4: N/A | D4: select | E4: =VLOOKUP(D4,[1]Responses!$G$21:$H$26,2,FALSE) -> 0 | F4: select | G4: =VLOOKUP(F4,[1]Responses!$G$21:$H$26,2,FALSE) -> 0 | L4: Very high (4) | M4: widespread and affects the value throughout the PA
B5: 1.2 Commercial and industrial areas | C5: N/A | D5: select | E5: =VLOOKUP(D5,[1]Responses!$G$21:$H$26,2,FALSE) -> 0 | F5: select | G5: =VLOOKUP(F5,[1]Responses!$G$21:$H$26,2,FALSE) -> 0 | L5: High (3) | M5: widespread and affects the value at many locations
B6: 1.3 Tourism and recreation infrastructure (e.g. structures) | C6: N/A | D6: select | E6: =VLOOKUP(D6,[1]Responses!$G$21:$H$26,2,FALSE) -> 0 | F6: select | G6: =VLOOKUP(F6,[1]Responses!$G$21:$H$26,2,FALSE) -> 0 | L6: Medium (2) | M6: localised and affects the value at some locations
B7: 1.4 Population increase in the protected area community | C7: Yes, causing high demand for food and income to sustain livelihood | D7: Medium | E7: =VLOOKUP(D7,[1]Responses!$G$21:$H$26,2,FALSE) -> 2 | F7: Medium | G7: =VLOOKUP(F7,[1]Responses!$G$21:$H$26,2,FALSE) -> 2 | H7: Community awareness, Family planning methods to control population increase | I7: Need to revisit the Management plan and revive rules and existing community respect | J7: Community Opinion, Planning documents and Research and monitoring | L7: Low (1) | M7: localised and found in only limited locations and the impact on our values is limited
A8: 2: Agriculture and aquaculture within a protected area Threats to the protected area from all kinds of farming and grazing including plantations, forestry and fishing | B8: 2.1 Customary landowner and community gardens and small crops | C8: NA | D8: select | E8: =VLOOKUP(D8,[1]Responses!$G$21:$H$26,2,FALSE) -> 0 | F8: select | G8: =VLOOKUP(F8,[1]Responses!$G$21:$H$26,2,FALSE) -> 0 | L8: None (0) | M8: threat is not present
B9: 2.2 Drug cultivation | C9: NA | D9: select | E9: =VLOOKUP(D9,[1]Responses!$G$21:$H$26,2,FALSE) -> 0 | F9: select | G9: =VLOOKUP(F9,[1]Responses!$G$21:$H$26,2,FALSE) -> 0 | L9: Severity rating | M9: Meaning: the threat is ….
B10: 2.3 Wood and pulp plantations | C10: NA | D10: select | E10: =VLOOKUP(D10,[1]Responses!$G$21:$H$26,2,FALSE) -> 0 | F10: select | G10: =VLOOKUP(F10,[1]Responses!$G$21:$H$26,2,FALSE) -> 0 | L10: Very high (4) | M10: likely to destroy some protected area value(s) (e.g. it might destroy a type of animal or plant, or your traditional gardens)
B11: 2.4 Livestock farming and grazing | C11: NA | D11: select | E11: =VLOOKUP(D11,[1]Responses!$G$21:$H$26,2,FALSE) -> 0 | F11: select | G11: =VLOOKUP(F11,[1]Responses!$G$21:$H$26,2,FALSE) -> 0 | L11: High (3) | M11: likely to seriously degrade the protected area values where the threat occurs
B12: 2.5 Marine and freshwater aquaculture | C12: NA | D12: select | E12: =VLOOKUP(D12,[1]Responses!$G$21:$H$26,2,FALSE) -> 0 | F12: select | G12: =VLOOKUP(F12,[1]Responses!$G$21:$H$26,2,FALSE) -> 0 | L12: Medium (2) | M12: likely to moderately degrade the protected area values where the threat occurs – they are damaging values but not so badly
B13: 2.6 Commercial plantations | C13: NA | D13: select | E13: =VLOOKUP(D13,[1]Responses!$G$21:$H$26,2,FALSE) -> 0 | F13: select | G13: =VLOOKUP(F13,[1]Responses!$G$21:$H$26,2,FALSE) -> 0 | L13: Low (1) | M13: only slightly impacting on protected areas values
A14: 3. Energy production and mining within a protected area Threats from production of non-biological resources | B14: 3.1 Oil and gas drilling and pipeline construction | C14: NA | D14: select | E14: =VLOOKUP(D14,[1]Responses!$G$21:$H$26,2,FALSE) -> 0 | F14: select | G14: =VLOOKUP(F14,[1]Responses!$G$21:$H$26,2,FALSE) -> 0
B15: 3.2 Mining and quarrying | C15: NA | D15: select | E15: =VLOOKUP(D15,[1]Responses!$G$21:$H$26,2,FALSE) -> 0 | F15: select | G15: =VLOOKUP(F15,[1]Responses!$G$21:$H$26,2,FALSE) -> 0
B16: 3.3 Energy generation | C16: NA | D16: select | E16: =VLOOKUP(D16,[1]Responses!$G$21:$H$26,2,FALSE) -> 0 | F16: select | G16: =VLOOKUP(F16,[1]Responses!$G$21:$H$26,2,FALSE) -> 0
A17: 4. Transportation and service corridors Threats from long narrow transport corridors and the vehicles (and people) that use some of them | B17: 4.1 Roads, railroads and paths/tracks | C17: NA | D17: select | E17: =VLOOKUP(D17,[1]Responses!$G$21:$H$26,2,FALSE) -> 0 | F17: select | G17: =VLOOKUP(F17,[1]Responses!$G$21:$H$26,2,FALSE) -> 0
B18: 4.2 Utility and service lines | C18: NA | D18: select | E18: =VLOOKUP(D18,[1]Responses!$G$21:$H$26,2,FALSE) -> 0 | F18: select | G18: =VLOOKUP(F18,[1]Responses!$G$21:$H$26,2,FALSE) -> 0
B19: 4.3 Shipping lanes and canals | C19: NA | D19: select | E19: =VLOOKUP(D19,[1]Responses!$G$21:$H$26,2,FALSE) -> 0 | F19: select | G19: =VLOOKUP(F19,[1]Responses!$G$21:$H$26,2,FALSE) -> 0
B20: 4.4 Flight paths | C20: NA | D20: select | E20: =VLOOKUP(D20,[1]Responses!$G$21:$H$26,2,FALSE) -> 0 | F20: select | G20: =VLOOKUP(F20,[1]Responses!$G$21:$H$26,2,FALSE) -> 0
A21: 5. Biological resource use and harm within a protected area Threats from the use of "wild" biological resources including both deliberate and unintentional harvesting effects (Note this includes hunting and killing of animals). | B21: 5.1 Hunting, killing and collecting terrestrial (native) animals (including for ceremonial purposes and commercial use) | C21: NA | D21: select | E21: =VLOOKUP(D21,[1]Responses!$G$21:$H$26,2,FALSE) -> 0 | F21: select | G21: =VLOOKUP(F21,[1]Responses!$G$21:$H$26,2,FALSE) -> 0
B22: 5.2 Gathering terrestrial (native) plants or plant products (non-timber) (including for ceremonial purposes and commercial use) | C22: NA | D22: select | E22: =VLOOKUP(D22,[1]Responses!$G$21:$H$26,2,FALSE) -> 0 | F22: select | G22: =VLOOKUP(F22,[1]Responses!$G$21:$H$26,2,FALSE) -> 0
B23: 5.3a Logging and wood harvesting for local/customary use | C23: Yes, mainly in the mangrove forests | D23: Low | E23: =VLOOKUP(D23,[1]Responses!$G$21:$H$26,2,FALSE) -> 1 | F23: Medium | G23: =VLOOKUP(F23,[1]Responses!$G$21:$H$26,2,FALSE) -> 2 | H23: Expanding populations place pressure on extraction of timber for building materials and fire wood. Current awareness only | I23: Require persistent education and awareness on the younger population
B24: 5.3b Logging and wood harvesting – commercial logging | C24: NA | D24: select | E24: =VLOOKUP(D24,[1]Responses!$G$21:$H$26,2,FALSE) -> 0 | F24: select | G24: =VLOOKUP(F24,[1]Responses!$G$21:$H$26,2,FALSE) -> 0
B25: 5.4a Fishing, killing and harvesting (native) aquatic (includes marine?) resources for local/customary use | C25: Yes, due to lack of awareness of conservation measures and during 'kastom wok'. Also knowingly causing destruction by people who are aware of the protection etc, causing harm to Mangroves and seagrass, coral reef network. Occasional event during customary harvest, values affected are Mangroves, Seagrass and Coral network. People from all age groups are involved in this. | D25: High | E25: =VLOOKUP(D25,[1]Responses!$G$21:$H$26,2,FALSE) -> 3 | F25: High | G25: =VLOOKUP(F25,[1]Responses!$G$21:$H$26,2,FALSE) -> 3 | H25: Current management includes: 1.Awareness raising in the communities, 2.monitoring on outrigger canoes, 3.penalising offenders using management rules (not good outcomes) | I25: Seek assistance to train and equip and use of drones/modern equipment to do monitoring | J25: Research and Monitoring, Community opinion, customary landowner knowledge; Occasional event during customary harvest, values affected will be Mangroves, Seagrass and Coral network. Seek assistance from CEPA, UNDP to improve monitoring in future | K25: Some the marine resources harvested for household use apart from fish include seaweed squid/octopus, Crab (Saltwater), Crab (Mangrove), prawns, lobster, turtle, crocodile, Bislama, Trochus Shell, dugong
B26: 5.4b Fishing, killing and harvesting (native) aquatic resources for commercial use | C26: There are only a few trade stores in Bialla and one at Mamota which occasionally purchase fish locally. At time also locals try to sell to the main fish buyer at Kimbe, KBSA. This is done by less than 5% of Household. | D26: Low | E26: =VLOOKUP(D26,[1]Responses!$G$21:$H$26,2,FALSE) -> 1 | F26: Low | G26: =VLOOKUP(F26,[1]Responses!$G$21:$H$26,2,FALSE) -> 1 | H26: Retail fish sales were insignificant across the LMMA community however its importance is quite significant. An agreement was made in 2003 between Tarobi landowners and an expatriate businessman to establish a supermarket (Hamamas Trading) on Tarobi customary land bordering the Kimbe-Bialla road. Part of their agreement with Hamamas Trading was for the latter to provide transport from the village to a newly created market outside the Hamamas Trading supermarket for market vendors. During 2004 until mid 2005, Hamamas Trading provided free transport every Tuesday and Saturday from the village to the Hamamas market for women to sell fish, shellfish, other marine products and betel nut. Tarobi villagers also sold fish to the storeowner. As a remote village with strong fishing culture, many locals tended to be more dependent for income on fish sales at local markets and sold a wider range of species than more accessible villages. The number of fish species sold at local markets ranged from ten to four species. | I26: Incorporate the monitoring of frequently sold fish species into a workplan in the new management plan. (According to TNC, the main fish species sold include Barracuda, Paddletail, Red Emperor, Spanish Mackerel, Sweetlip, Trevally, Tuna)
A27: 6. Human intrusions and disturbance within a protected area Threats from human activities that alter, destroy or disturb habitats and species associated with non-consumptive uses of biological resources | B27: 6.1 Recreational and tourism activities | C27: NA | D27: select | E27: =VLOOKUP(D27,[1]Responses!$G$21:$H$26,2,FALSE) -> 0 | F27: select | G27: =VLOOKUP(F27,[1]Responses!$G$21:$H$26,2,FALSE) -> 0 | J27: Research and Monitoring Community opinion, customary landowner knowledge,,,occasional event during customary harvest, values affected will be Mangroves, Seagrass and Coral network. Need to help from CEPA, UNDP to improve monitoring in future. Everyone including children do harvesting
B28: 6.2 War, civil unrest and military exercises | C28: NA | D28: select | E28: =VLOOKUP(D28,[1]Responses!$G$21:$H$26,2,FALSE) -> 0 | F28: select | G28: =VLOOKUP(F28,[1]Responses!$G$21:$H$26,2,FALSE) -> 0
B29: 6.3 Research, education and other work-related activities in the protected area | C29: NA | D29: select | E29: =VLOOKUP(D29,[1]Responses!$G$21:$H$26,2,FALSE) -> 0 | F29: select | G29: =VLOOKUP(F29,[1]Responses!$G$21:$H$26,2,FALSE) -> 0
B30: 6.4 Activities of the protected area managers (e.g. construction or vehicle use) | C30: NA | D30: select | E30: =VLOOKUP(D30,[1]Responses!$G$21:$H$26,2,FALSE) -> 0 | F30: select | G30: =VLOOKUP(F30,[1]Responses!$G$21:$H$26,2,FALSE) -> 0
B31: 6.5 Deliberate destructive activities or threats to protected area staff and visitors | C31: NA | D31: select | E31: =VLOOKUP(D31,[1]Responses!$G$21:$H$26,2,FALSE) -> 0 | F31: select | G31: =VLOOKUP(F31,[1]Responses!$G$21:$H$26,2,FALSE) -> 0
B32: 6.6 Impacts from cultural and religious tourism | C32: NA | D32: select | E32: =VLOOKUP(D32,[1]Responses!$G$21:$H$26,2,FALSE) -> 0 | F32: select | G32: =VLOOKUP(F32,[1]Responses!$G$21:$H$26,2,FALSE) -> 0
A33: 7. Changes to natural systems Threats from other actions that convert or degrade habitat or change the way the ecosystem functions. | B33: 7.1 Habitat clearing | C33: Yes, affects mangroves, turtle nesting sites and cultural sites for housing purposes by both customary land owners and neighbouring clans. | D33: Low | E33: =VLOOKUP(D33,[1]Responses!$G$21:$H$26,2,FALSE) -> 1 | F33: Low | G33: =VLOOKUP(F33,[1]Responses!$G$21:$H$26,2,FALSE) -> 1 | H33: 1. Awareness to communities, 2. monitoring on outrigger canoes, 3. penalising offenders using management rules (not very effective) | I33: More education and awareness to local communities including the surrounding settlements and villages | J33: Community opinion, Customary Landowner knowledge and Research and monitoring
B34: 7.2 Fire and fire suppression | C34: NA | D34: select | E34: =VLOOKUP(D34,[1]Responses!$G$21:$H$26,2,FALSE) -> 0 | F34: select | G34: =VLOOKUP(F34,[1]Responses!$G$21:$H$26,2,FALSE) -> 0
B35: 7.3 Dams, water flow modification and water management/use | C35: NA | D35: select | E35: =VLOOKUP(D35,[1]Responses!$G$21:$H$26,2,FALSE) -> 0 | F35: select | G35: =VLOOKUP(F35,[1]Responses!$G$21:$H$26,2,FALSE) -> 0
B36: 7.4 Increased fragmentation within the protected area | C36: NA | D36: select | E36: =VLOOKUP(D36,[1]Responses!$G$21:$H$26,2,FALSE) -> 0 | F36: select | G36: =VLOOKUP(F36,[1]Responses!$G$21:$H$26,2,FALSE) -> 0
B37: 7.5 The protected area is separated from other natural habitat | C37: NA | D37: select | E37: =VLOOKUP(D37,[1]Responses!$G$21:$H$26,2,FALSE) -> 0 | F37: select | G37: =VLOOKUP(F37,[1]Responses!$G$21:$H$26,2,FALSE) -> 0
B38: 7.6 Other ‘edge effects’ (impacts) happening on the boundary of the protected area | C38: Yes, expansion of oil palm and logging impacting on the estuaries, and mudflats hardening (shells and other breeding and grass areas like seagrass affected). | D38: Medium | E38: =VLOOKUP(D38,[1]Responses!$G$21:$H$26,2,FALSE) -> 2 | F38: Medium | G38: =VLOOKUP(F38,[1]Responses!$G$21:$H$26,2,FALSE) -> 2 | H38: No current actions | I38: Need to establish working relationships with the industry to consider and support the LMMA | J38: Community Opinion, Customary Landowner knowledge
B39: 7.7 Loss of keystone species | C39: NA | D39: select | E39: =VLOOKUP(D39,[1]Responses!$G$21:$H$26,2,FALSE) -> 0 | F39: select | G39: =VLOOKUP(F39,[1]Responses!$G$21:$H$26,2,FALSE) -> 0
A40: 8. Invasive and other problematic species and genes. Threats from terrestrial and aquatic non-native and native plants, animals, pathogens/microbes or genetic materials that have, or are predicted to have, harmful effects on biodiversity following introduction, spread and/or increase | B40: 8.1 Introduced (pest) plants | C40: NA | D40: select | E40: =VLOOKUP(D40,[1]Responses!$G$21:$H$26,2,FALSE) -> 0 | F40: select | G40: =VLOOKUP(F40,[1]Responses!$G$21:$H$26,2,FALSE) -> 0
B41: 8.2 Introduced (pest) animals | C41: NA | D41: select | E41: =VLOOKUP(D41,[1]Responses!$G$21:$H$26,2,FALSE) -> 0 | F41: select | G41: =VLOOKUP(F41,[1]Responses!$G$21:$H$26,2,FALSE) -> 0
B42: 8.3 Diseases such as fungus or viruses that make native plants or animals sick | C42: NA | D42: select | E42: =VLOOKUP(D42,[1]Responses!$G$21:$H$26,2,FALSE) -> 0 | F42: select | G42: =VLOOKUP(F42,[1]Responses!$G$21:$H$26,2,FALSE) -> 0
B43: 8.4 Introduced genetic material | C43: NA | D43: select | E43: =VLOOKUP(D43,[1]Responses!$G$21:$H$26,2,FALSE) -> 0 | F43: select | G43: =VLOOKUP(F43,[1]Responses!$G$21:$H$26,2,FALSE) -> 0
A44: 9. Pollution entering or generated Threats from pollution and/or excess materials or energy from specific sites or more general sources | B44: 9.1 Household sewage and urban/village waste water | C44: NA | D44: select | E44: =VLOOKUP(D44,[1]Responses!$G$21:$H$26,2,FALSE) -> 0 | F44: select | G44: =VLOOKUP(F44,[1]Responses!$G$21:$H$26,2,FALSE) -> 0
B45: 9.2 Sewage and waste water from protected area facilities | C45: NA | D45: select | E45: =VLOOKUP(D45,[1]Responses!$G$21:$H$26,2,FALSE) -> 0 | F45: select | G45: =VLOOKUP(F45,[1]Responses!$G$21:$H$26,2,FALSE) -> 0
B46: 9.3 Industrial, mining and military effluents and discharges | C46: NA | D46: select | E46: =VLOOKUP(D46,[1]Responses!$G$21:$H$26,2,FALSE) -> 0 | F46: select | G46: =VLOOKUP(F46,[1]Responses!$G$21:$H$26,2,FALSE) -> 0
B47: 9.4 Agricultural and forestry effluents | C47: Yes,-Logging and oil palm development causing increased sedimentation, resulting in harder surface within the sandy flats habitats | D47: Medium | E47: =VLOOKUP(D47,[1]Responses!$G$21:$H$26,2,FALSE) -> 2 | F47: Medium | G47: =VLOOKUP(F47,[1]Responses!$G$21:$H$26,2,FALSE) -> 2 | H47: Currently nothing is being done | I47: Write to the Logging company and Hargy to discuss this matter for inclusion as part of their environment monitoring plan (copy to CEPA and Provincial Government. | J47: Staff experience; community opinion
B48: 9.5 Garbage and solid waste | C48: NA | D48: select | E48: =VLOOKUP(D48,[1]Responses!$G$21:$H$26,2,FALSE) -> 0 | F48: select | G48: =VLOOKUP(F48,[1]Responses!$G$21:$H$26,2,FALSE) -> 0
B49: 9.6 Air-borne pollutants | C49: NA | D49: select | E49: =VLOOKUP(D49,[1]Responses!$G$21:$H$26,2,FALSE) -> 0 | F49: select | G49: =VLOOKUP(F49,[1]Responses!$G$21:$H$26,2,FALSE) -> 0
B50: 9.7 Excess energy | C50: NA | D50: select | E50: =VLOOKUP(D50,[1]Responses!$G$21:$H$26,2,FALSE) -> 0 | F50: select | G50: =VLOOKUP(F50,[1]Responses!$G$21:$H$26,2,FALSE) -> 0
B51: 9.8 Sound pollution (especially from roads) | C51: NA | D51: select | E51: =VLOOKUP(D51,[1]Responses!$G$21:$H$26,2,FALSE) -> 0 | F51: select | G51: =VLOOKUP(F51,[1]Responses!$G$21:$H$26,2,FALSE) -> 0
A52: 10. Geological events Geological events may be part of natural disturbance regimes in many ecosystems. However, they can be a threat if a species or habitat is damaged and has lost its resilience and is vulnerable to disturbance. Management capacity to respond to some of these changes may be limited. | B52: 10.1 Volcanoes (ash and lava) | C52: NA | D52: select | E52: =VLOOKUP(D52,[1]Responses!$G$21:$H$26,2,FALSE) -> 0 | F52: select | G52: =VLOOKUP(F52,[1]Responses!$G$21:$H$26,2,FALSE) -> 0
B53: 10.2 Earthquakes/Tsunamis | C53: Yes, Coral network and sea grass | D53: Low | E53: =VLOOKUP(D53,[1]Responses!$G$21:$H$26,2,FALSE) -> 1 | F53: Low | G53: =VLOOKUP(F53,[1]Responses!$G$21:$H$26,2,FALSE) -> 1 | H53: Close communication and contact with Office Disaster and Management | I53: Maintain Close communication and contact with Office Disaster and Management | J53: Community opinion, External Expert opinion
B54: 10.3 Avalanches/ Landslides | C54: Yes, causing run-off and wash down of sediments into the mud flats and Coral network | D54: Low | E54: =VLOOKUP(D54,[1]Responses!$G$21:$H$26,2,FALSE) -> 1 | F54: Low | G54: =VLOOKUP(F54,[1]Responses!$G$21:$H$26,2,FALSE) -> 1 | H54: Close communication and contact with Office Disaster and Management | I54: Maintain Close communication and contact with Office Disaster and Management | J54: Community opinion, External Expert opinion
B55: 10.4 Erosion and deposition | C55: NA | D55: Low | E55: =VLOOKUP(D55,[1]Responses!$G$21:$H$26,2,FALSE) -> 1 | F55: Medium | G55: =VLOOKUP(F55,[1]Responses!$G$21:$H$26,2,FALSE) -> 2
A56: 11. Climate change and severe weather Threats from long-term climatic changes which may be linked to global warming and other severe climatic/ weather events outside of the natural range of variation | B56: 11.1 Habitat shifting and alteration | C56: Yes, increase and extension of seagrass may be due to sedimentation and rising sea levels. (i.e. extension of brackish water upstream) | D56: Medium | E56: =VLOOKUP(D56,[1]Responses!$G$21:$H$26,2,FALSE) -> 2 | F56: Medium | G56: =VLOOKUP(F56,[1]Responses!$G$21:$H$26,2,FALSE) -> 2 | H56: No action | I56: Need to monitor extent of shifting; assess the cause of this to come up with a practical strategy to mitigate | J56: Community opinion, External Expert opinion
B57: 11.2 Droughts | C57: NA | D57: select | E57: =VLOOKUP(D57,[1]Responses!$G$21:$H$26,2,FALSE) -> 0 | F57: select | G57: =VLOOKUP(F57,[1]Responses!$G$21:$H$26,2,FALSE) -> 0
B58: 11.3 Temperature extremes | C58: NA | D58: select | E58: =VLOOKUP(D58,[1]Responses!$G$21:$H$26,2,FALSE) -> 0 | F58: select | G58: =VLOOKUP(F58,[1]Responses!$G$21:$H$26,2,FALSE) -> 0
B59: 11.4 Storms and flooding | C59: NA | D59: select | E59: =VLOOKUP(D59,[1]Responses!$G$21:$H$26,2,FALSE) -> 0 | F59: select | G59: =VLOOKUP(F59,[1]Responses!$G$21:$H$26,2,FALSE) -> 0
B60: 11.5 Ocean acidification | C60: NA | D60: select | E60: =VLOOKUP(D60,[1]Responses!$G$21:$H$26,2,FALSE) -> 0 | F60: select | G60: =VLOOKUP(F60,[1]Responses!$G$21:$H$26,2,FALSE) -> 0
B61: 11.6 Sea level rise | C61: Yes, High tide mark has extended and causing extension of seagrass area. | D61: High | E61: =VLOOKUP(D61,[1]Responses!$G$21:$H$26,2,FALSE) -> 3 | F61: High | G61: =VLOOKUP(F61,[1]Responses!$G$21:$H$26,2,FALSE) -> 3 | H61: Currently no awareness/discussion | I61: After this workshop, community awareness can be carried out during community meeting | J61: Customary landowner knowledge and community opinion
B62: 11.7 Coral bleaching | C62: Yes, weak coral break away due to high current during observed during the wet season. According to Turak ans Aitsi 2002, very little is directly related to what could be coral bleaching along the eastern side of the bay unlike on the western side of the bay area. | D62: Low | E62: =VLOOKUP(D62,[1]Responses!$G$21:$H$26,2,FALSE) -> 1 | F62: Low | G62: =VLOOKUP(F62,[1]Responses!$G$21:$H$26,2,FALSE) -> 1 | H62: Awareness, on pollution and sustainably harvesting e.g. ban parrot fish | I62: Awareness, on pollution and sustainably harvesting e.g. ban parrot fist | J62: Community opinion, Research and monitoring
B63: 11.8 Saltwater coming into the protected area | C63: NA | D63: select | E63: =VLOOKUP(D63,[1]Responses!$G$21:$H$26,2,FALSE) -> 0 | F63: select | G63: =VLOOKUP(F63,[1]Responses!$G$21:$H$26,2,FALSE) -> 0
B64: 11.9 Other climate changes | C64: Yes, drop in sea temperature, | D64: Medium | E64: =VLOOKUP(D64,[1]Responses!$G$21:$H$26,2,FALSE) -> 2 | F64: Medium | G64: =VLOOKUP(F64,[1]Responses!$G$21:$H$26,2,FALSE) -> 2 | H64: Awareness, now and into future | I64: Awareness now and into the future | J64: Staff experience, community opinion and Customary Landowner knowledge
A65: 12. Cultural and social threats | B65: 12.1 Loss of cultural links, traditional knowledge, language, dress, sing sings, respect and/or management practices | C65: Yes, access to newer more modern tech and ways by the younger population having impact on their interest, respect for traditional ways and believes to the relationship between culture and environment | D65: High | E65: =VLOOKUP(D65,[1]Responses!$G$21:$H$26,2,FALSE) -> 3 | F65: High | G65: =VLOOKUP(F65,[1]Responses!$G$21:$H$26,2,FALSE) -> 3 | H65: Awareness and traditional knowledge transfer | I65: Include as a strategy in the review and update of the management plan | J65: Staff experience, community opinion and Customary Landowner knowledge
B66: 12.2 Natural deterioration of important cultural site values | C66: NA | D66: select | E66: =VLOOKUP(D66,[1]Responses!$G$21:$H$26,2,FALSE) -> 0 | F66: select | G66: =VLOOKUP(F66,[1]Responses!$G$21:$H$26,2,FALSE) -> 0
B67: 12.3 Destruction of cultural heritage buildings, gardens, sites etc | C67: NA | D67: select | E67: =VLOOKUP(D67,[1]Responses!$G$21:$H$26,2,FALSE) -> 0 | F67: select | G67: =VLOOKUP(F67,[1]Responses!$G$21:$H$26,2,FALSE) -> 0
B68: 12.4 Loss of land tenure | C68: NA | D68: select | E68: =VLOOKUP(D68,[1]Responses!$G$21:$H$26,2,FALSE) -> 0 | F68: select | G68: =VLOOKUP(F68,[1]Responses!$G$21:$H$26,2,FALSE) -> 0
B69: 12.5 Other cultural/social threats | C69: Yes, youths of today to very respectful and interested in the traditional ways of doing things and the skill and knowledge. This is impacting on cultural heritage as well as destruction/disturbance to the LMMA | D69: High | E69: =VLOOKUP(D69,[1]Responses!$G$21:$H$26,2,FALSE) -> 3 | F69: High | G69: =VLOOKUP(F69,[1]Responses!$G$21:$H$26,2,FALSE) -> 3 | H69: Awareness and traditional knowledge transfer | I69: Include as a strategy in the review and update of the management plan | J69: Community opinion, Customary Landowner knowledge
A70: 13. Governance problems | B70: 13.1 Conflicting policies across sectors | C70: NA | D70: select | E70: =VLOOKUP(D70,[1]Responses!$G$21:$H$26,2,FALSE) -> 0 | F70: select | G70: =VLOOKUP(F70,[1]Responses!$G$21:$H$26,2,FALSE) -> 0
B71: 13.2 Confusion about government roles and responsibilities | C71: Yes, no clear direction on government roles in supporting the management of the LMMA which affects all key values identified | D71: Very high | E71: =VLOOKUP(D71,[1]Responses!$G$21:$H$26,2,FALSE) -> 4 | F71: Very high | G71: =VLOOKUP(F71,[1]Responses!$G$21:$H$26,2,FALSE) -> 4 | H71: Begin roundtable discussions with the provincial government and ward DDA/councillor | I71: LLG/TLLMA inclusive Policy to be developed to deal with Environment Conservation | J71: Staff experience, Community opinion,
B72: 13.3 Lack of coordination across all levels of government | C72: Yes, affect all key values | D72: Very high | E72: =VLOOKUP(D72,[1]Responses!$G$21:$H$26,2,FALSE) -> 4 | F72: Very high | G72: =VLOOKUP(F72,[1]Responses!$G$21:$H$26,2,FALSE) -> 4 | H72: Nothing in place | I72: Management team to include ward member | J72: Staff experience and community opinion

Sheet Worst threat (T7)
A1: Worst threats (Table 7)
A2: Rank order | B2: Threat | C2: Threat number | D2: Additional comments
B3: (most significant first) | C3: (copy from Table 6 e.g. 11.1)
A4: 1 | B4: Population Increase in the LMMA community and nearby areas | C4: 1.4 | D4: With increase in population people are becoming careless, and are returning to doing over fishing, illegal fishing etc. This is a threat. Even women are doing this. Mainly due to increase in needs for cash. We need our management plan and the committee to be resourced
A5: 2 | B5: Governance: Lack of coordination across all levels of government | C5: 13.3 | D5: Provincial government/LLG to work with TLMMA to review their management plan, have it finalised, endorsed and included in the ward 8 of the Central Nakanai LLG development plan for funding and support. This should pave way also for the LMMA Activities to go up the government levels. The current situation is not helping the LMMA despite being recognised by the LLG.
A6: 3 | B6: Climate Change-sea level rise | C6: 11.6 | D6: High tide mark has extended and causing extension of seagrass area and affecting turtle nesting sites.

Sheet Scorecard (T8)
B1: METT Scorecard (Table 8)
A2: Category | B2: Issue | C2: Question | D2: Select response (from pull down menu) | E2: Response | F2: Score | G2: Possible score | H2: Weighting | I2: Possible Weighted Score | J2: Weighted score | K2: Evidence & Justification (Reasons for choosing the response) | L2: Actions to improve management | M2: Information Source (Select from pull down menu) | N2: Comments on information source (add additional sources here)
A3: Planning | B3: 1. Legal status | C3: Does the protected area have legal status or is it established under “other effective means”? (e.g. in the case of private reserves is it covered by a covenant or similar)? | D3: D. The protected area has been formally gazetted/approved by the national or provincial government or established through ‘other effective means’ | E3: =VLOOKUP(D3,Responses!B2:D7,2,FALSE) -> D | F3: =VLOOKUP(E3,Responses!C17:E22,2,FALSE) -> 3 | G3: =IF(F3="not relevant",0,3) -> 3 | H3: 1 | I3: =G3*H3 -> 3 | J3: =IF(F3="not relevant"," ",F3*H3) -> 3 | K3: It was recognised under the Bialla Local Level Government Marine Environment Management Law 2004, however Tarobi now comes under the Central Nakanai LLG so this needs to be transferred/amended. This work needs to be done. | L3: LMMA to be submitted to Central Nakanai LLG for its recognition or some other arrangement needs to be in place. | M3: planning documents & government data | N3: Management plan has to be revised and endorsed through Central Nakanai LLG, JCU has provided expert information as well to develop the plan
A4: Planning | B4: 2. Protected area objectives | C4: Is protected area management based on agreed objectives? | D4: C. The protected area has agreed objectives, and is only partly managed according to these objectives | E4: =VLOOKUP(D4,Responses!B8:D13,2,FALSE) -> C | F4: =VLOOKUP(E4,Responses!C18:E23,2,FALSE) -> 2 | G4: =IF(F4="not relevant",0,3) -> 3 | H4: 1 | I4: =G4*H4 -> 3 | J4: =IF(F4="not relevant"," ",F4*H4) -> 2 | K4: There is an existing Management Plan that has agree objectives. | L4: The current objectives are specific and are ok and should be maintained and updated if the Management plan is to be reviewed. | M4: planning documents & government data
A5: Process | B5: 3. Protected area regulations or customary laws/rules | C5: Are laws, rules or agreements in place to manage land or marine use and activities in the protected area in accordance with the management objectives? (includes hunting, logging, mining, fishing) | D5: B. Some regulations or customary laws for managing land/sea use and activities in the protected area exist but there are many weaknesses | E5: =VLOOKUP(D5,Responses!B14:D19,2,FALSE) -> B | F5: =VLOOKUP(E5,Responses!C19:E24,2,FALSE) -> 1 | G5: 3 | H5: 1 | I5: 3 | J5: 1 | K5: Yes, Example the traditional way of Merarobu and some rules in the management plan, like fees paid by non-members of Tarobi community to Tarobi LMMA site committee (TLMMASC) before they use, harvest or fish for any resources within Tarobi LMMA. The fees agreed are: • K30.00 for use of marine area or, fish and harvest marine resource • K20.00 for terrestrial (land) resources (e.g. beetle nut) | L5: The management plan needs to be revised/updated and endorsed by the CNLLG for full implementation. | M5: planning documents & government data | N5: having a management plan is very important for effective management of LMMA
A6: Governance | B6: 3a. Clearly defined rules | C6: Are the rules/laws/regulations relating to the protected area clearly defined and documented? | D6: B. Some protected area-related rules/laws/ regulations are clearly defined and documented, but there are some important gaps | E6: =VLOOKUP(D6,Responses!B20:D25,2,FALSE) -> B | F6: =VLOOKUP(E6,Responses!C20:E25,2,FALSE) -> 1 | G6: 3 | H6: 0.5 | I6: 1.5 | J6: 0.5 | K6: Rules exists as agreed to in the Management plan. The biggest gap is resourcing of the TLMMA committees to effectively implement the rules. | L6: Agree on innovative ways to attract resources to actually implement rules in the Management Plan. Education and awareness on the rules need to be done again. | M6: staff experience
A7: Governance | B7: 3b. Clearly defined user/access rights | C7: Are the rights of people to use the protected area and its resources clearly defined and documented? | D7: D. Most of the user/access rights to access resources from the protected area are clearly defined and documented, and anyone who wants to see or learn about this information is able to do so | E7: =VLOOKUP(D7,Responses!B26:D31,2,FALSE) -> D | F7: =VLOOKUP(E7,Responses!C26:E31,2,FALSE) -> 3 | G7: 3 | H7: 0.25 | I7: 0.75 | J7: 0.75 | K7: LMMA has a management plan with access rights documented, however since it is not final and endorsed, implementation is impossible. | L7: Finalise and legalise the management plan so that use rights can be clearly defined and documented. The user/access rights should be clearly made known (again) to the wider community through awareness and workshops to help more people to understand and follow. | M7: staff experience | N7: incomplete management plan is the main stumbling block to the effective implementation of its activities in the plan.
A8: Governance | B8: 3c. Awareness of user/access rights | C8: What percentage of adults in the protected area and local community are aware of their user/access rights (e.g. to hunt, collect, fish etc) | D8: D. Most (more than 75%) | E8: =VLOOKUP(D8,Responses!B32:D37,2,FALSE) -> D | F8: =VLOOKUP(E8,Responses!C32:E37,2,FALSE) -> 3 | G8: 3 | H8: 0.25 | I8: 0.75 | J8: 0.75 | K8: Awareness raising concerning the LMMA was widely done by TNC since 2007 and the community grew up knowing the rules. | L8: Involvement of the community in actual management of the LMMA - Local community members to be identified in each clan to help in consistently educating their members on what the LMMA is all about including what can be done and what not to do. | M8: customary knowledge/Community opinion
A9: Planning | B9: 4. Planning for land use or coastal/marine activities that occur outside the protected area | C9: Does planning for land and coastal/marine uses outside the protected area recognise the protected area and contribute to achieving the management objectives? | D9: B. Planning for the land/marine uses that occur outside the protected area does not take into account the long-term needs of the protected area, but the resulting land/sea uses do not harm the protected area | E9: =VLOOKUP(D9,Responses!B38:D43,2,FALSE) -> B | F9: =VLOOKUP(E9,Responses!C38:EV43,2,FALSE) -> 1 | G9: 1 | H9: 1 | I9: 1 | J9: 1 | K9: There is currently little to no obvious impacts however with logging almost starting nearby and oil palm expanding, there is big potential for the marine environment in the LMMA to be impacted. We already are seeing Illegal fishing by Hargy employees and outsiders. Gardening by these people near the rivers could also contribute to erosion and sedimentation. | L9: The LMMA needs support to ensure the logging development and oil palm expansion take into consideration the potential impact they could have on the LMMA. The LMMA should be considered in their environment plans for monitoring of activities. | M9: customary knowledge/Community opinion | N9: This can be a challenge too as locals could potentially be benefiting economically from such activities therefore some external expert advice and support is need by the locals in future planning
A10: Planning | B10: 4a. Land and water planning for habitat conservation | C10: Planning and management in the wider catchment or landscape containing the protected area incorporates provisions for adequate environmental conditions (e.g. air/water/noise pollution levels etc) to sustain relevant habitats (Y or N) | D10: Yes | E10: =VLOOKUP(D10,Responses!$E$2:$F$4,2,FALSE) -> 1 | F10: =VLOOKUP(D10,Responses!$E$2:$F$4,2,FALSE) -> 1 | G10: 1 | H10: 0.4 | I10: 0.4 | J10: 0.4 | K10: This LMMA is isolated from other communities and so it has provisions of being well protected providing adequate environment conditions | L10: surveillance and monitoring on the LMMA boundaries will protect the wider catchment/landscape | M10: customary knowledge/Community opinion
A11: Planning | B11: 4b. Land and water planning for connectivity | C11: Management of corridors linking the protected area provides for wildlife passage to key habitats outside the protected area (Y or N) | D11: No | E11: =VLOOKUP(D11,Responses!$E$2:$F$4,2,FALSE) -> 0 | F11: =VLOOKUP(D11,Responses!$E$2:$F$4,2,FALSE) -> 0 | G11: 1 | H11: 0.3 | I11: 0.3 | J11: 0 | K11: The current focus is mainly within the LMMA boundaries however there is spill-over observed as a result of LMMA closure areas. This was not factored into the management plan and needs to be looked at | L11: There are initial thoughts of expanding the boundaries of the LMMA to cater for the terrestrial parts near the LMMA starting with a buffer.
A12: Planning | B12: 4c. Land and water planning for ecosystem services and species conservation | C12: Planning addresses ecosystem-specific needs and/or the needs of particular species of concern at an ecosystem scale (Y or N) | D12: Yes | E12: =VLOOKUP(D12,Responses!$E$2:$F$4,2,FALSE) -> 1 | F12: =VLOOKUP(D12,Responses!$E$2:$F$4,2,FALSE) -> 1 | G12: 1 | H12: 0.3 | I12: 0.3 | J12: 0.3 | K12: This is captured in the management targets (in the MP) example mange and reef/coral ecosystem given Tarobi hold a high percent of Mangrove and reef systems in Kimbe Bay | L12: Conditions are good and need to be maintained into the future through good monitoring apart from incidental and local knowledge reports
A13: Planning | B13: 5. Protected area design | C13: Is the protected area the right size and shape to protect species, habitats, ecosystems and water catchments? | D13: C. The protected area size and boundaries (i.e. the design) are okay and allow us to achieve our objectives, but could be better (e.g. in relation to large-scale ecological processes or minimising threats) | E13: =VLOOKUP(D13,Responses!B44:D49,2,FALSE) -> C | F13: =VLOOKUP(D13,Responses!B44:D49,3,FALSE) -> 2 | G13: 3 | H13: 1 | I13: 3 | J13: 2 | K13: The TLMMA contains a rich variety of marine habitats and supports many species including extensive mangroves, and sea-grass areas, and inshore, fringing and offshore barrier reefs. The area also includes two islands: Liliua Island - where the forest is intact and provides a roosting area for pigeons and other sea birds. The islands also have pristine beaches and provide important nesting area for turtles. It is also known to be a breeding and feeding area for dugong and dolphins as well as spawning aggregation sites for fish species. | L13: Monitoring of the LMMA need to be strengthened/revived. Two estuaries exist within the LLMA boundaries and there is thought of extending the buffer inland. | M13: staff experience
A14: Process | B14: 6a. On ground (land/sea) boundary marking of protected area | C14: Is the protected area boundary marked on the ground (land/sea)? | D14: B. Some of the protected area boundary is marked on the ground | E14: =VLOOKUP(D14,Responses!B50:D55,2,FALSE) -> B | F14: =VLOOKUP(E14,Responses!C39:E44,2,FALSE) -> 1 | G14: 3 | H14: 0.3 | I14: 0.9 | J14: 0.3 | K14: LMMA boundaries have been marked on the map as well as physical markers (attributes) that signal the boundaries (not all) are known to locals. These include the Bilomi River mouth to the west and Gea River mouth to the east and also the Eastern and Western Tarobi Bays and the reefs they know E | L14: Descriptions of such indicators to be described in the boundary description of the LMMA in the Management Plan | M14: staff experience
A15: Process | B15: 6b. Map of protected area boundaries | C15: The boundaries of the protected area are marked on a map (Y or N) | D15: Yes | E15: Yes | F15: =VLOOKUP(E15,Responses!$E$2:$F$4,2,FALSE) -> 1 | G15: 1 | H15: 0.4 | I15: 0.4 | J15: 0.4 | K15: LMMA has a map | L15: Map attribute on LLG name to be changed from Bialla to Central Nakanai | M15: planning documents & government data
A16: Process | B16: 6c. GIS mapping of protected area boundaries | C16: The boundaries of the protected area are recorded in a GIS format (Y or N) | D16: Yes | E16: Yes | F16: =VLOOKUP(E16,Responses!$E$2:$F$4,2,FALSE) -> 1 | G16: 1 | H16: 0.3 | I16: 0.3 | J16: 0.3 | K16: Listed in CT Atlas | L16: Update name of the LLG | M16: planning documents & government data
A17: Process | B17: 6d. Boundary awareness of people who own the protected area | C17: What proportion of land owners (e.g. customary landowning adults) are aware of the protected area boundaries? | D17: D. Most (more than 75%) | E17: =VLOOKUP(D17,Responses!B56:D61,2,FALSE) -> D | F17: =VLOOKUP(E17,Responses!C42:E47,2,FALSE) -> 3 | G17: 3 | H17: 0.5 | I17: 1.5 | J17: 1.5 | K17: intensive awareness carried out by TNC | L17: Do awareness to settlers, and visitors and neighbouring villages, e.g. Balla settlers
A18: Process | B18: 6e. Boundary awareness among surrounding communities | C18: What proportion of adults living around or near the protected area know the location of the boundary? | D18: D. Most (more than 75%) | E18: =VLOOKUP(D18,Responses!B56:D61,2,FALSE) -> D | F18: =VLOOKUP(E18,Responses!C43:E48,2,FALSE) -> 3 | G18: 3 | H18: 0.5 | I18: 1.5 | J18: 1.5 | K18: Neighbours still entering despite knowing of the protection boundaries | L18: Go to the communities outside the boundary and carry out awareness so not only adults can be made aware, but also the children and younger generation to know about it growing up, e.g. Western side - Sisimi and Hoskins community, Eastern side side-silanga community | M18: customary knowledge/Community opinion
A19: Process | B19: 6f. Respect of boundary by surrounding communities | C19: What proportion of adults living around or near the protected area respect the boundary? | D19: B. Some (25-50%) | E19: =VLOOKUP(D19,Responses!B56:D61,2,FALSE) -> B | F19: =VLOOKUP(E19,Responses!C44:E49,2,FALSE) -> 1 | G19: 3 | H19: 0.4 | I19: 1.2 | J19: 0.4 | K19: Few are still entering the boundaries even though they are aware of the boundaries. | L19: Continue awareness to enforce rules, also have the management plan endorsed and penalties implemented | M19: customary knowledge/Community opinion
A20: Process | B20: 6g. Respect of boundaries by Local Level Government | C20: Most or all relevant Local Level Governments are aware of the boundaries of the protected area (Y or N) | D20: Yes | E20: =VLOOKUP(D20,Responses!$E$2:$F$4,2,FALSE) -> 1 | F20: =VLOOKUP(D20,Responses!$E$2:$F$4,2,FALSE) -> 1 | G20: 1 | H20: 0.3 | I20: 0.3 | J20: 0.3 | K20: LMMA boundary was known by Bialla LLG, however, after it came under Central Nanaka LLG , CENTRAL Nakanai now does not know about the boundaries. | L20: Revise the management plan and introduce it to Central Nakankai LLG | M20: planning documents & government data
A21: Process | B21: 6h. Respect of boundaries at the District level | C21: Most or all of the relevant District level representatives are aware of the boundaries of the protected area (Y or N) | D21: No | E21: =VLOOKUP(D21,Responses!$E$2:$F$4,2,FALSE) -> 0 | F21: =VLOOKUP(D21,Responses!$E$2:$F$4,2,FALSE) -> 0 | G21: 1 | H21: 0.3 | I21: 0.3 | J21: 0 | K21: The district has very limited knowledge about the LLMA and its boundaries. | L21: The Management Plan needs to be reviewed, finalised and submitted to CNLLG and DDA. (Integrated into the LLG and District rolling 5year plans also) | M21: customary knowledge/Community opinion
A22: Planning | B22: 7. Management planning | C22: Is there a management plan or similar and is it being implemented? | D22: C. A management plan or similar exists but it is being partly implemented because of funding constraints or other problems | E22: =VLOOKUP(D22,Responses!B62:D67,2,FALSE) -> C | F22: =VLOOKUP(E22,Responses!C62:E67,2,FALSE) -> 2 | G22: 3 | H22: 1 | I22: 3 | J22: 2 | K22: There is an existing plan done with TNC but it has been poorly implemented (and is due for review) due to lack of support from LLG (other gov't) and resource constraints | L22: Revise management plan and seek assistance to support its full implementation (including having Central Nakanai commit to recognise and support) | M22: customary knowledge/Community opinion
A23: Planning | B23: 7a. Community/key people input into management plan | C23: The management planning process for the protected area provides adequate and equal opportunity for key people (i.e. includes government, NGO, business etc) to have input into the management plan and to influence it (Do not include customary landowners in this question) (Y or N) | D23: Yes | E23: =VLOOKUP(D23,Responses!$E$2:$F$4,2,FALSE) -> 1 | F23: =VLOOKUP(D23,Responses!$E$2:$F$4,2,FALSE) -> 1 | G23: 1 | H23: 1 | I23: 1 | J23: 1 | K23: The Management plan was developed with the help of TNC and provides the community, TNC, and Bialla LLG Marine Environment Advisory Committee to input in its review every five years | L23: The identified need to be involved with the inclusion of the Central Nakanai LLG now the LMMA is under this LLG boundaries | M23: customary knowledge/Community opinion
A24: Planning | B24: 7b. Plan review of the management plan | C24: There is an established schedule and process for people to regularly review and update the management plan (i.e. including agreed vision, objectives, actions etc) (Y or N) | D24: Yes | E24: =VLOOKUP(D24,Responses!$E$2:$F$4,2,FALSE) -> 1 | F24: =VLOOKUP(D24,Responses!$E$2:$F$4,2,FALSE) -> 1 | G24: 1 | H24: 1 | I24: 1 | J24: 1 | K24: The management plan clearly states that the Management plan (Initial agreed) will be for 30 years and will be reviewed every 5 years. Updating the plan shall be done by the community, TNC, and Bialla LLG Marine Environment Advisory Committee five (5) years after the signing of the Agreement. This has to be reviewed. | L24: The review of the plan should include CNLLG now that Tarobi falls in this LLG and that TNC or other partners should input into this | M24: customary knowledge/Community opinion
A25: Process | B25: 7c. Functioning protected area Management Committee | C25: The Management Committee is formed and meets to discuss issues related to protected area management (Y or N) | D25: Yes | E25: =VLOOKUP(D25,Responses!$E$2:$F$4,2,FALSE) -> 1 | F25: =VLOOKUP(D25,Responses!$E$2:$F$4,2,FALSE) -> 1 | G25: 1 | H25: 0.25 | I25: 0.25 | J25: 0.25 | K25: The current members are new and have met only twice before coming together tot his meeting (METT 2) | L25: Management committed needs to be supported through capacity building to implement the management plan. | M25: customary knowledge/Community opinion
A26: Governance | B26: 7d. Are there clear decision-making structures and processes in relation to the management committee? | C26: Structures and processes in relation to the Management Committee and related protected area decision making are clearly documented (Y or N) | D26: Yes | E26: =VLOOKUP(D26,Responses!$E$2:$F$4,2,FALSE) -> 1 | F26: =VLOOKUP(D26,Responses!$E$2:$F$4,2,FALSE) -> 1 | G26: 1 | H26: 0.25 | I26: 0.25 | J26: 0.25 | K26: This is captured in the management plan with specific reference to Part 3, section 9 to 16 of the Bialla Local Level Government Law 2004, which provides for the establishment of a Locally Managed Marine Area Committee (LMMAC), and spells out the committee’s functions, duties and responsibilities. Section 11 spells out the functions of the LMMAC, which includes assisting in the preparation of management plans, making recommendations to the Bialla LLG to declare areas of high marine value as an LMMA under the Law. | L26: A simple structure to be included into the plan and that the LMMA committee needs to submit to Central Nakanai LLG or have all instruments transferred from Bialla LLG | M26: staff experience
A27: Governance | B27: 7e. Decision-making structures and processes in relation to the management committee | C27: Are the structures and processes for decision-making in the protected area well understood? | D27: D. Structures and processes in relation to the Management Committee and related protected area decision-making are fully known and understood by the protected area owners | E27: =VLOOKUP(D27,Responses!B68:D73,2,FALSE) -> D | F27: =VLOOKUP(E27,Responses!C68:E73,2,FALSE) -> 3 | G27: 3 | H27: 0.25 | I27: 0.75 | J27: 0.75 | K27: The committee is marked by the community and they entrust the decision making (LMMA) to this committee. There are zones based on clans who have representatives in the committee as the channel of communication/decision making. There are also community meetings and community days | L27: Continue to educate and inform the community on any changes as a result of LLG change | M27: customary knowledge/Community opinion | N27: staff experience
A28: Governance | B28: 7f. Access to Management Committee decisions | C28: The decisions of the Management Committee are made available to all people in the protected area community (Y or N) | D28: Yes | E28: =VLOOKUP(D28,Responses!$E$2:$F$4,2,FALSE) -> 1 | F28: =VLOOKUP(D28,Responses!$E$2:$F$4,2,FALSE) -> 1 | G28: 1 | H28: 0.25 | I28: 0.25 | J28: 0.25 | K28: Announcements at community meetings and ward days | L28: maintain constant announcement | M28: customary knowledge/Community opinion | N28: staff experience
A29: Planning | B29: 8. Regular work plan | C29: Is there a regular work plan and is it being implemented? | D29: A. No regular work plan exists | E29: =VLOOKUP(D29,Responses!B74:D79,2,FALSE) -> A | F29: =VLOOKUP(E29,Responses!C74:E79,2,FALSE) -> 0 | G29: 3 | H29: 1 | I29: 3 | J29: 0 | K29: Ad hoc activity rollout on an as needed basis | L29: To develop plans based on the management plan and to inform community of it. | M29: customary knowledge/Community opinion | N29: staff experience
A30: Input | B30: 9. Resource inventory | C30: Do you have enough information to manage the area? | D30: B. There is poor information about the protected area (e.g. critical habitats, species, ecological processes and cultural values) and this makes management difficult | E30: =VLOOKUP(D30,Responses!B80:D85,2,FALSE) -> B | F30: =VLOOKUP(E30,Responses!C55:E60,2,FALSE) -> 1 | G30: 3 | H30: 1 | I30: 3 | J30: 1 | K30: There has not been any survey and assessment in the area since The Nature Conservancy left. Good scientific information on the status of the PA is lacking currently. Locals mainly do monitoring (sightings, incidental finds and use local knowledge, but this is not enough to help in coming up with a good revised plan) | L30: Support is required to update information on current protected areas' resources | M30: staff experience
A31: Input | B31: 10. Staff numbers | C31: Are there enough people employed or paid to manage the protected area? | D31: A. There are no staff/people paid to work on the protected area, but they are ’needed | E31: =VLOOKUP(D31,Responses!B86:D91,2,FALSE) -> A | F31: =VLOOKUP(E31,Responses!C56:E61,2,FALSE) -> 0 | G31: 3 | H31: 1 | I31: 3 | J31: 0 | K31: There is a need for staff, but currently there are no resources and capacity to do so. | L31: Seek support with the community to have youths engage on rotational basis with some allowance. This could be captured in the management plan and paid through the collection of fees and fines | M31: customary knowledge/Community opinion
A32: Input | B32: 10a. Other unpaid people working on the protected area | C32: Are there enough unpaid people (community or customary landowners) helping to manage the protected area? | D32: B. There are a few people to do important management activities in the protected area, but this is inadequate to meet management needs | E32: =VLOOKUP(D32,Responses!B92:D972,2,FALSE) -> B | F32: =VLOOKUP(E32,Responses!C57:E62,2,FALSE) -> 1 | G32: 3 | H32: 1 | I32: 3 | J32: 1 | K32: Monitoring of sites by community e.g., monitoring of turtle nesting | L32: Provide incentives e.g., smoke/buai/tea or cash | M32: staff experience
A33: Input | B33: 11. Knowledge and skills | C33: Do the people involved in managing the protected area have the necessary knowledge and skills? | D33: C. Knowledge and skills are good, but could be improved to better manage the protected area | E33: =VLOOKUP(D33,Responses!B98:D103,2,FALSE) -> C | F33: =VLOOKUP(E33,Responses!C58:E63,2,FALSE) -> 2 | G33: 3 | H33: 1 | I33: 3 | J33: 2 | K33: There is little knowledge and skill amongst community members (those engaged by TNC). However, this knowledge is not used due to lack of equipment. Mainly Incidental observation is done | L33: Need training and education to carry out effective monitoring and surveillance work and committee to do evaluation. | M33: staff experience
A34: Input | B34: 12. Current budget | C34: Is the current budget sufficient (from any source)? | D34: A. There is no money from any source to manage the protected area | E34: =VLOOKUP(D34,Responses!B104:D109,2,FALSE) -> A | F34: =VLOOKUP(E34,Responses!C59:E64,2,FALSE) -> 0 | G34: 3 | H34: 1 | I34: 3 | J34: 0 | K34: No money is received to help with management. | L34: Identify and come up with innovative ways to source funding. Work with the LLG to incorporate the plan into the 5year development plans so budget considers the LMMA activities (priority) | M34: staff experience | N34: A potential source is through the collection of fees, penalties as the current Management plans specifies certain amount to be given to the LLG (Bialla) and the community. The review should consider part of this going to such activities. But this will depend on the full implementation of the plan
A35: Input | B35: 13. Security of budget | C35: Is the budget secure (e.g. over the next 2-5 years)? | D35: A. There is no secure budget to manage the protected area and management is wholly reliant on outside or highly variable funding | E35: =VLOOKUP(D35,Responses!B110:D115,2,FALSE) -> A | F35: =VLOOKUP(E35,Responses!C60:E65,2,FALSE) -> 0 | G35: 3 | H35: 1 | I35: 3 | J35: 0 | K35: There is no budget and no budget into the future. | L35: Identify and come up with innovative ways to source funding. Work with the LLG to incorporate the plan into the 5year development plans so budget considers the LMMA activities (priority) | M35: staff experience | N35: A potential source is through the collection of fees, penalties as the current Management plans specifies certain amount to be given to the LLG (Bialla) and the community. The review should consider part of this going to such activities. But this will depend on the full implementation of the plan
A36: Process | B36: 14. Management of budget | C36: Is the budget managed to meet important management needs? | D36: Not relevant | E36: =VLOOKUP(D36,Responses!B116:D121,2,FALSE) -> NA | F36: =VLOOKUP(E36,Responses!C61:E66,2,FALSE) -> not relevant | G36: 0 | H36: 1 | I36: 0 | K36: There is no budget to manage. | L36: Introduce training in budget management when a budget is available.
A37: Input | B37: 15a. Equipment and facilities | C37: Are equipment and facilities sufficient for management needs? | D37: A. There are little or no equipment and facilities for management needs | E37: =VLOOKUP(D37,Responses!B122:D127,2,FALSE) -> A | F37: =VLOOKUP(E37,Responses!C62:E67,2,FALSE) -> 0 | G37: 3 | H37: 1 | I37: 3 | J37: 0 | K37: There was a dinghy at the establishment of the LMMA, however it broke down and no longer works. | L37: Since the LMMA size is big, its impossible to monitor the entire place all at once so there is need for equipment such as more than one boat, drone | M37: customary knowledge/Community opinion | N37: staff experience
A38: Process | B38: 15b. Maintenance of equipment and facilities | C38: Are equipment and facilities adequately maintained? | D38: A. There is no maintenance of equipment and facilities | E38: =VLOOKUP(D38,Responses!B128:D133,2,FALSE) -> A | F38: =VLOOKUP(E38,Responses!C63:E68,2,FALSE) -> 0 | G38: 3 | H38: 1 | I38: 3 | J38: 0 | K38: The boat is okay, but the motor has been spoiled due to no maintenance on it | L38: If the management committee has a budget the a motor can be purchased to replace the damaged motor | M38: customary knowledge/Community opinion | N38: staff experience
A39: Process | B39: 16. Law enforcement | C39: Can people (e.g. rangers or customary landowners – those with responsibility for managing the area) enforce protected area rules well enough? | D39: A. There is no effective human capacity, resources or authority to enforce protected area legislation and regulations OR community agreements | E39: =VLOOKUP(D39,Responses!B134:D139,2,FALSE) -> A | F39: =VLOOKUP(E39,Responses!C64:E69,2,FALSE) -> 0 | G39: 3 | H39: 1 | I39: 3 | J39: 0 | K39: No budget and resources to enforce laws | L39: If government can realise the efforts made by the LMMA and can allocate some funding that would the good. | M39: staff experience
A40: Governance | B40: 16a. Coordination of law enforcement | C40: How good is the coordination between the protected area Management Committee/managers and other groups who assist with law enforcement? | D40: B. There is some effort to coordinate, but this does not work well | E40: =VLOOKUP(D40,Responses!B140:D145,2,FALSE) -> B | F40: =VLOOKUP(E40,Responses!C65:E70,2,FALSE) -> 1 | G40: 3 | H40: 0.5 | I40: 1.5 | J40: 0.5 | K40: The secretary of the management committee is also the village magistrate which is an existing bridge to some coordination with the government as the Ward councillor is not so involved. | L40: More involvement of the Ward Councillor in the LMMA activities so coordination at the lowest level could start the process up. Community has some existing means of coordination that could be also used | M40: customary knowledge/Community opinion | N40: staff experience
A41: Governance | B41: 16b. Solving disputes or disagreements - documentation of processes | C41: Are there process to solve disputes related to the protected area, and do people know about these processes? | D41: C. Most of the relevant dispute resolution processes are clearly documented or known | E41: =VLOOKUP(D41,Responses!B146:D151,2,FALSE) -> C | F41: =VLOOKUP(E41,Responses!C66:E71,2,FALSE) -> 2 | G41: 3 | H41: 0.5 | I41: 1.5 | J41: 1 | K41: Conflict resolution is identified in our Management Plan however since the management is not effective since TNC left, we are trying to revive all this | L41: Strengthen dispute resolution in the review of the management plan and make these arrangements known to the community | M41: staff experience
A42: Governance | B42: 16c. Solving disputes or disagreements – suitability of the process | C42: How suitable are the processes for resolving disputes or disagreements related to the protected area? | D42: C. Dispute resolution processes are suitable for some protected area-related disputes, but not others | E42: =VLOOKUP(D42,Responses!B152:D157,2,FALSE) -> C | F42: =VLOOKUP(E42,Responses!C67:E72,2,FALSE) -> 2 | G42: 3 | H42: 0.25 | I42: 0.75 | J42: 0.5 | K42: Covers most but we need to look into this again | L42: Strengthen dispute resolution in the review of the management plan and make these arrangements known to the community | M42: staff experience
A43: Governance | B43: 16d. Solving disputes or disagreements - success | C43: How often do dispute resolution processes succeed in resolving protected area-related disputes? | D43: B. Some disputes are resolved (e.g. up to one-third of disputes), but most remain unresolved | E43: =VLOOKUP(D43,Responses!B158:D163,2,FALSE) -> B | F43: =VLOOKUP(E43,Responses!C68:E73,2,FALSE) -> 1 | G43: 3 | H43: 0.25 | I43: 0.75 | J43: 0.25 | K43: Previously when the LMMA started, disputes were resolved, but it is not very effective today | L43: Strengthen dispute resolution in the review of the management plan and make these arrangements known to the community | M43: staff experience
A44: Governance | B44: 16e. Prosecution of law breakers | C44: Are incidents of law breaking dealt with according to the rules/ law/ regulations? | D44: A. Prosecution/dealing with law often does not follow the rules/law/regulations | E44: =VLOOKUP(D44,Responses!B164:D169,2,FALSE) -> A | F44: =VLOOKUP(E44,Responses!C69:E74,2,FALSE) -> 0 | G44: 3 | H44: 0.5 | I44: 1.5 | J44: 0 | K44: No case of prosecutions have been effected as we recently formed the management committee (new committee) | L44: Review management plan and endorsement | M44: staff experience
A45: Governance | B45: 16f. Prosecution of law breakers | C45: All people are treated equally in relation to charges/prosecution for breaching protected area rules/laws/regulations (Y or N) | D45: No | E45: =VLOOKUP(D45,Responses!$E$2:$F$4,2,FALSE) -> 0 | F45: =VLOOKUP(D45,Responses!$E$2:$F$4,2,FALSE) -> 0 | G45: 1 | H45: 0.5 | I45: 0.5 | J45: 0 | K45: People are involved in the breaching of the rules like women, youth and get away with it. Some also collect fees without reporting cases for their benefit when they catch people doing illegal takes/harvest. There is wantok system. This includes colluding with outsiders | L45: Have people to agree to work for the LMMA with some incentives to enforce the rules. Village court should be strengthened as the also enforce Law by LLGs | M45: customary knowledge/Community opinion
A46: Process | B46: 17. Protection systems/law enforcement - effectiveness | C46: Are systems (e.g. patrols, permits, signage etc) in place to control access by ‘outsiders’ and resource use in the protected area | D46: B. Protection systems/law enforcement are partially effective in controlling access/ resource use by ‘outsiders’, but law breaking is still common | E46: =VLOOKUP(D46,Responses!B170:D175,2,FALSE) -> B | F46: =VLOOKUP(E46,Responses!C170:E175,2,FALSE) -> 1 | G46: 3 | H46: 1 | I46: 3 | J46: 1 | K46: People are involved in the breaching of the rules like women, youth and get away with it. Some also collect fees without report cases for their benefit. There is wantok system. This includes colluding with outsiders | L46: Have people to agree to work for the LMMA with some incentives to enforce the rules | M46: customary knowledge/Community opinion
A47: Governance | B47: 17a. Reporting incidents | C47: If people know of a threat to the protected area do they report this to the Management Committee/ authority? | D47: A. No – they keep quiet | E47: =VLOOKUP(D47,Responses!B176:D181,2,FALSE) -> A | F47: =VLOOKUP(E47,Responses!C72:E77,2,FALSE) -> 0 | G47: 3 | H47: 0.5 | I47: 1.5 | J47: 0 | K47: Often the people who witness the crime are also involved and hence they do not report these incidents. Example women, youths and the few that do not support the LMMA | L47: Education and awareness on the key values, threats and benefits for protection | M47: staff experience
A48: Process | B48: 18. Staff safety | C48: Do protected area staff/people doing work or looking after the area have safe working conditions and does management prioritise safety? | D48: C. The working environment for staff and community members is good, but improvements could be made | E48: =VLOOKUP(D48,Responses!B182:D187,2,FALSE) -> C | F48: =VLOOKUP(E48,Responses!C73:E78,2,FALSE) -> 2 | G48: 3 | H48: 1 | I48: 3 | J48: 2 | K48: Generally good as community recognised them however can be risky at times | L48: Regular community meetings and consultations on the work of staff be done. This should be detailed in the MP to be reviewed | M48: staff experience
A49: Process | B49: 19. Research | C49: Is there a programme of management-orientated survey, inventory and research work? | D49: A. There is no survey, inventory or research work taking place in the protected area | E49: =VLOOKUP(D49,Responses!B188:D193,2,FALSE) -> A | F49: =VLOOKUP(E49,Responses!C74:E79,2,FALSE) -> 0 | G49: 3 | H49: 1 | I49: 3 | J49: 0 | K49: Nothing currently | L49: Invite research institutions or partners to carry out surveys or train the locals to do this. This can be part of the management committees tasks/roles in the MP | M49: staff experience
A50: Process | B50: 20. Monitoring and evaluation (of management activities) | C50: Are management activities monitored, evaluated and acted on (or adapted)? | D50: A. There is no monitoring and evaluation in the protected area | E50: =VLOOKUP(D50,Responses!B194:D199,2,FALSE) -> A | F50: =VLOOKUP(E50,Responses!C75:E80,2,FALSE) -> 0 | G50: 3 | H50: 1 | I50: 3 | J50: 0 | K50: Ad-hoc activities are not evaluated. | L50: Seek support or engage in a partnership arrangement to have locals trained to do this | M50: staff experience
A51: Process | B51: 21. Resource management | C51: Is active resource management of biodiversity and cultural activities (e.g. gardens, fishing areas, resource extraction sites) being undertaken? | D51: B. Some active management of the protected area is being implemented | E51: =VLOOKUP(D51,Responses!B200:D205,2,FALSE) -> B | F51: =VLOOKUP(E51,Responses!C76:E81,2,FALSE) -> 1 | G51: 3 | H51: 1 | I51: 3 | J51: 1 | K51: Done on ad hoc basis | L51: Have the management plan revised and endorsed | M51: staff experience
A52: Process | B52: 22. Climate change | C52: Is the protected area consciously managed to adapt to climate change? | D52: B. Some initial thought has taken place about likely impacts of climate change, but his has yet to be translated into management plans or actions | E52: =VLOOKUP(D52,Responses!B206:D211,2,FALSE) -> B | F52: =VLOOKUP(E52,Responses!C77:E82,2,FALSE) -> 1 | G52: 3 | H52: 1 | I52: 3 | J52: 1 | K52: This was not included in the initial management plan. | L52: Should be considered in the review of the MP but seek advice/support from the Provincial administration Climate change division | M52: staff experience
A53: Process | B53: 23a. Carbon capture | C53: Is the protected area being consciously managed to prevent carbon loss? | D53: A. Preventing carbon loss has not been considered in protected area management | E53: =VLOOKUP(D53,Responses!B212:D217,2,FALSE) -> A | F53: =VLOOKUP(E53,Responses!C78:E83,2,FALSE) -> 0 | G53: 3 | H53: 0.5 | I53: 1.5 | J53: 0 | K53: Nothing taking place currently. | L53: Should be considered in the review of the MP but seek advice/support from the Provincial administration Climate change division | M53: staff experience
A54: Process | B54: 23b. Carbon storage | C54: Is the protected area being consciously managed to encourage carbon storage? | D54: A. Carbon storage has not been considered in management of the protected area. | E54: =VLOOKUP(D54,Responses!B218:D223,2,FALSE) -> A | F54: =VLOOKUP(E54,Responses!C79:E84,2,FALSE) -> 0 | G54: 3 | H54: 0.5 | I54: 1.5 | J54: 0 | K54: Nothing taking place currently. | L54: Should be considered in the review of the MP but seek advice/support from the Provincial administration Climate change division | M54: staff experience
A55: Process | B55: 24. Ecosystem services – benefits are known | C55: The ecosystem services provided by the protected area are well known (Y or N) | D55: Yes | E55: =VLOOKUP(D55,Responses!$E$2:$F$4,2,FALSE) -> 1 | F55: =VLOOKUP(D55,Responses!$E$2:$F$4,2,FALSE) -> 1 | G55: 1 | H55: 0.5 | I55: 0.5 | J55: 0.5 | K55: There is some knowledge of what the ecosystems can provide and how it supports our customs, traditions and Tok ples. | L55: Awareness raising is important in relation to ecosystem services and for the management plan to be finalised and implemented | M55: staff experience
A56: Process | B56: 24a. Ecosystem services | C56: Does management of the protected area take into account actions to enhance the protected area’s provision of ecosystem services? | D56: C. Most ecosystem services delivered by the protected area are managed to ensure their continued delivery | E56: =VLOOKUP(D56,Responses!B224:D229,2,FALSE) -> C | F56: =VLOOKUP(E56,Responses!C224:E229,2,FALSE) -> 2 | G56: 3 | H56: 0.5 | I56: 1.5 | J56: 1 | K56: We are the new Management committee members trying to revive the management of the LMMA. We also need to review the Management plan | L56: Revive management plan and the committee members and endorsement | M56: staff experience
A57: Process | B57: 25. Education and awareness | C57: Is there a planned education and awareness programme about the protected area and linked to its objectives and needs? | D57: B. There is a limited and irregular education and awareness programme linked to the protected area’s objectives and needs | E57: =VLOOKUP(D57,Responses!B230:D235,2,FALSE) -> B | F57: =VLOOKUP(E57,Responses!C82:E87,2,FALSE) -> 1 | G57: 3 | H57: 1 | I57: 3 | J57: 1 | K57: Education and awareness to target communities is a strategy in our management plan but is not effectively carried out | L57: There is a need to review this and strengthen the efforts | M57: staff experience
A58: Process | B58: 26. Government and commercial neighbour cooperation | C58: Is there co-operation with adjacent government and commercial land/water users? | D58: A. There is no contact between the Management Committee/managers and neighbouring government and commercial land/water users | E58: =VLOOKUP(D58,Responses!B236:D241,2,FALSE) -> A | F58: =VLOOKUP(E58,Responses!C83:E88,2,FALSE) -> 0 | G58: 3 | H58: 1 | I58: 3 | J58: 0 | K58: A factor is that the Ward Councillor is not very supportive (taking issues up) and also Hargy Bialla and Bilomi companies do not consider the LMMA in their environment sustainability work | L58: The Management committee needs to establish contact so the LMMA is considered in their planning | M58: staff experience
A59: Process | B59: 27. Commercial tourism operators | C59: Do commercial tour operators cooperate and contribute to protected area management and provide benefits to the community? | D59: A. There is little or no contact between the Management Committee/ managers and tourism operators using the protected area | E59: =VLOOKUP(D59,Responses!B242:D247,2,FALSE) -> A | F59: =VLOOKUP(E59,Responses!C84:E89,2,FALSE) -> 0 | G59: 3 | H59: 1 | I59: 3 | J59: 0 | K59: No contact at the moment | L59: Seek support to assess the extent of tourism potential (ecotourism activities) than try to partner with operators using the assessment as the basis for viability | M59: staff experience
A60: Process | B60: 28. Fees | C60: If fees (i.e. entry fees or fines) are applied, do they help protected area management? | D60: A. Although fees can be applied, they are not collected | E60: =VLOOKUP(D60,Responses!B248:D253,2,FALSE) -> A | F60: =VLOOKUP(E60,Responses!C85:E90,2,FALSE) -> 0 | G60: 3 | H60: 1 | I60: 3 | J60: 0 | K60: The committee is new, LLG has changed, MP needs to be reviewed and recognised by the LLG. There is weak enforcement of fees. | L60: Have people to enforce after education and awareness of the penalties are reviewed and made known to everyone. | M60: staff experience
A61: Output | B61: 29. Visitor facilities and services | C61: Are visitor facilities and services adequate? | D61: A. There are no visitor facilities and services despite an identified need | E61: =VLOOKUP(D61,Responses!B254:D259,2,FALSE) -> A | F61: =VLOOKUP(E61,Responses!C86:E91,2,FALSE) -> 0 | G61: 3 | H61: 1 | I61: 3 | J61: 0 | K61: No facilities currently. | L61: The profile of the LMMA needs to be raised by using innovative means and as identified in the assessment of tourism potential. (this could determine the appropriateness and location of facilities) | M61: staff experience
A62: Process | B62: 30. Customary landowners | C62: Do customary landowners, who reside in or regularly use the protected area, have input into management decisions? | D62: B. Customary landowners have some input into discussions relating to management, but no direct role in management | E62: =VLOOKUP(D62,Responses!B260:D265,2,FALSE) -> B | F62: =VLOOKUP(E62,Responses!C87:E92,2,FALSE) -> 1 | G62: 3 | H62: 1 | I62: 3 | J62: 1 | K62: Decision making process is not clear but they (customary LOs) contribute through their clans and respective zone meetings | L62: need to finalise the management plan | M62: staff experience
A63: Process | B63: 31. Local communities and others with access or user ‘rights’ | C63: Do local communities and other rights’ holders living in or near the protected area, have input into relevant management decisions? | D63: B. Local communities and others with ‘access/user rights’ have some input into discussions relating to the management of the protected area, but no direct role in management | E63: =VLOOKUP(D63,Responses!B266:D271,2,FALSE) -> B | F63: =VLOOKUP(E63,Responses!C88:E93,2,FALSE) -> 1 | G63: 3 | H63: 1 | I63: 3 | J63: 1 | K63: Input are in the form of suggestions and contributions during village meeting or ward days. Traditionally also is through their matrilineal ties with the landowners | L63: A representative should be considered in the Management committee or in any sub-committee. A decision structure should also be developed by the committee
A64: Governance | B64: 31a. Proportion of women involved in decision making related to the protected area | C64: What percentage of women in the protected area community are involved in decision making about the protected area? | D64: A. Very few (less than 25%) | E64: =VLOOKUP(D64,Responses!B272:D277,2,FALSE) -> A | F64: =VLOOKUP(E64,Responses!C89:E94,2,FALSE) -> 0 | G64: 3 | H64: 0.25 | I64: 0.75 | J64: 0 | K64: Many women are also involved in harvesting of resources, e.g. corals harvesting so feel defensive | L64: Empower the women to see the importance of protection by doing awareness to women groups. (This can be also translated into skills training in sewing or allowing access for market purposes) This should be considered in the review of the MP. Also include women in the protection work. | M64: staff experience
A65: Governance | B65: 31b. Participation of women in the full range of protected area decisions | C65: Women are involved in protected area decision making in relation to all issues relevant to protected area management (Y or N) | D65: No | E65: =VLOOKUP(D65,Responses!$E$2:$F$4,2,FALSE) -> 0 | F65: =VLOOKUP(D65,Responses!$E$2:$F$4,2,FALSE) -> 0 | G65: 1 | H65: 0.25 | I65: 0.25 | J65: 0 | K65: Generally NO despite having a women's representative on the Committee | L65: Clearly identify the role of the women's representative which should include engaging and conducting women's meeting or discussing LMMA issues in such group meetings | M65: staff experience
A66: Governance | B66: 31c. Influence of women in decision making | C66: How much influence do women have on protected-area related decisions? | D66: B. Women have a small influence on protected area decisions | E66: =VLOOKUP(D66,Responses!B278:D283,2,FALSE) -> B | F66: =VLOOKUP(E66,Responses!C278:E283,2,FALSE) -> 1 | G66: 3 | H66: 0.25 | I66: 0.75 | J66: 0.25 | K66: Women are also involved in harvesting of resources, e.g. corals harvesting so feel defensive. Traditionally in matrilineal societies, women provide the advice to their brothers who become the mouth piece | L66: Educate women to understand the LMMA better so they can participate in activities be | M66: staff experience
A67: Governance | B67: 31d. Participation of young people in the full range of protected area decisions | C67: Young people (under 20 years of age) are involved in protected area decision making in relation to all issues relevant to protected area management (Y or N) | D67: No | E67: =VLOOKUP(D67,Responses!$E$2:$F$4,2,FALSE) -> 0 | F67: =VLOOKUP(D67,Responses!$E$2:$F$4,2,FALSE) -> 0 | G67: 1 | H67: 0.25 | I67: 0.25 | J67: 0 | K67: Youths are not involved in decision making but a few help implement them while many others are involved in destroying these values/resources | L67: Awareness and involvement | M67: staff experience
A68: Governance | B68: 31e. Influence of young people in decision making | C68: How much influence do young people (under 20 years of age) have on protected-area related decisions? | D68: B. Young people have a small influence on protected area decisions | E68: =VLOOKUP(D68,Responses!B284:D289,2,FALSE) -> B | F68: =VLOOKUP(E68,Responses!C93:E98,2,FALSE) -> 1 | G68: 3 | H68: 0.25 | I68: =G68*H68 -> 0.75 | J68: =IF(F68="not relevant"," ",F68*H68) -> 0.25 | K68: Youths have little or no influence but a few help implement them while many others are involved in destroying these values/resources | L68: Awareness and involvement | M68: staff experience
A69: Governance | B69: 31f. Overall participation of people in the full range of protected area decisions | C69: There is opportunity for any person or group in the protected area and wider community to become involved in protected area decision making (Y or N) | D69: No | E69: =VLOOKUP(D69,Responses!$E$2:$F$4,2,FALSE) -> 0 | F69: =VLOOKUP(D69,Responses!$E$2:$F$4,2,FALSE) -> 0 | G69: 1 | H69: 0.25 | I69: 0.25 | J69: 0 | K69: Not clearly identified apart from the traditional decision making means | L69: Awareness and involvement | M69: staff experience
A70: Output | B70: 31g. Communication and trust between the customary landowners and … | C70: 1. CEPA (Y or N) | D70: No | E70: =VLOOKUP(D70,Responses!$E$2:$F$4,2,FALSE) -> 0 | F70: =VLOOKUP(D70,Responses!$E$2:$F$4,2,FALSE) -> 0 | G70: 1 | H70: 0.5 | I70: 0.5 | J70: 0 | K70: There is no communication | L70: to establish contact | M70: staff experience
A71: Output | C71: 2. Provincial Government (Y or N) | D71: No | E71: =VLOOKUP(D71,Responses!$E$2:$F$4,2,FALSE) -> 0 | F71: =VLOOKUP(D71,Responses!$E$2:$F$4,2,FALSE) -> 0 | G71: 1 | H71: 0.5 | I71: 0.5 | J71: 0 | K71: There is no communication | L71: to establish contact | M71: staff experience
A72: Output | C72: 3. Local Level Government (Y or N) | D72: No | E72: =VLOOKUP(D72,Responses!$E$2:$F$4,2,FALSE) -> 0 | F72: =VLOOKUP(D72,Responses!$E$2:$F$4,2,FALSE) -> 0 | G72: 1 | H72: 0.25 | I72: 0.25 | J72: 0 | K72: Currently nothing with the Central Nakanai LLG | L72: to establish contact | M72: staff experience
A73: Output | C73: 4. District representatives (e.g. District Development Authority) (Y or N) | D73: No | E73: =VLOOKUP(D73,Responses!$E$2:$F$4,2,FALSE) -> 0 | F73: =VLOOKUP(D73,Responses!$E$2:$F$4,2,FALSE) -> 0 | G73: 1 | H73: 0.25 | I73: 0.25 | J73: 0 | K73: There is no communication | L73: to establish contact | M73: staff experience
A74: Output | C74: 5. Ward representatives (e.g. Ward Development Committee) (Y or N) | D74: Yes | E74: =VLOOKUP(D74,Responses!$E$2:$F$4,2,FALSE) -> 1 | F74: =VLOOKUP(D74,Responses!$E$2:$F$4,2,FALSE) -> 1 | G74: 1 | H74: 0.25 | I74: 0.25 | J74: 0.25 | K74: The Ward councillor is listed as a member in the Committee composition agreed to in the Management plan (one to be reviewed) but currently is not active. | L74: Re-engage the ward councillor and identify his/her role clearly. This could also mean educate the Tarobi representative to the Ward Development Committee to advocate for the LMMA in meetings | M74: staff experience
A75: Output | C75: 6. NGOs (Y or N) | D75: No | E75: =VLOOKUP(D75,Responses!$E$2:$F$4,2,FALSE) -> 0 | F75: =VLOOKUP(D75,Responses!$E$2:$F$4,2,FALSE) -> 0 | G75: 1 | H75: 0.25 | I75: 0.25 | J75: 0 | K75: There is no communication | L75: to establish contact | M75: staff experience
A76: Output | B76: 31h. Community welfare | C76: Programmes are being implemented to improve community/customary landowners’ welfare, while conserving protected area resources (Y or N) | D76: Yes | E76: =VLOOKUP(D76,Responses!$E$2:$F$4,2,FALSE) -> 1 | F76: =VLOOKUP(D76,Responses!$E$2:$F$4,2,FALSE) -> 1 | G76: 1 | H76: 1 | I76: 1 | J76: 1 | K76: This is a core reason for the establishment of the LMMA. To continue to support community livelihoods through better resource use and management (LMMA) | L76: Identify and implement value adding activities to improve on what is happening now. Example - assist in linking markets and bring in financial trainings to locals. Hargy Oil Palm should be contacted as many community members also earn cash income from oil palm. | M76: external expert opinion
A77: Output | B77: 31i. Level of support | C77: The local community and customary landowners actively support the protected area (Y or N) | D77: Yes | E77: =VLOOKUP(D77,Responses!$E$2:$F$4,2,FALSE) -> 1 | F77: =VLOOKUP(D77,Responses!$E$2:$F$4,2,FALSE) -> 1 | G77: 1 | H77: 1 | I77: 1 | J77: 1 | K77: Very limited support, level of support has dropped since LMMA has dropped down, many community members are involved in destroying the resources | L77: management plan to be revived, workshops/assessments such as the METT can also be run at the PA site for wider participation | M77: staff experience
A78: Output | B78: 32. Livelihood benefits | C78: Are the protected area and related conservation and development projects providing sustained livelihood benefits to local communities/customary landowners, e.g. income/ employment? | D78: C. Benefits to local communities/customary landowners from the protected area and related conservation and development projects make a moderate contribution to livelihoods (many people benefit) | E78: =VLOOKUP(D78,Responses!B290:D295,2,FALSE) -> C | F78: =VLOOKUP(E78,Responses!C290:E295,2,FALSE) -> 2 | G78: =IF(F78="not relevant",0,3) -> 3 | H78: 1 | I78: 3 | J78: 2 | K78: Access to market is limited , transport factors, market day, catch size, seasonal harvest e.g., sea cucumber | L78: Provide transport to market, financial and literacy training, to assist communities to manage their incomes, introduce alternated activities | M78: customary knowledge/Community opinion | N78: The management plan also allows for a portion of the fees/fine to be paid back to local owners
A79: Governance | B79: 32a. Benefit-sharing arrangements - effectiveness | C79: How effective are benefit-sharing arrangements in delivering benefits to all in the protected area? | D79: A. There are no benefit-sharing arrangements in place | E79: =VLOOKUP(D79,Responses!B296:D301,2,FALSE) -> A | F79: =VLOOKUP(E79,Responses!C105:E110,2,FALSE) -> 0 | G79: 3 | H79: 0.5 | I79: 1.5 | J79: 0 | K79: Mainly based on the agreed customary access and limitations but there is increase in people taking as they wish. The management plan identified how fees/fine will be distributed but this is not being implement as no collection or fines have been duly made. | L79: Distribution of benefits should be updated in the review of the plan to clearly identify the types and level of benefits. Example how fees/fines will be distributed, How surplus catches can be distributed to reduce disturbance and footprint in the zones (LMMA) | M79: customary knowledge/Community opinion
A80: Governance | B80: 32b. Distribution of livelihood benefits | C80: Are the livelihood benefits from the protected area equitably shared? | D80: A. The livelihood benefits provided by the protected area are not shared equitably by the local communities/customary landowners | E80: =VLOOKUP(D80,Responses!B302:D307,2,FALSE) -> A | F80: =VLOOKUP(E80,Responses!C106:E111,2,FALSE) -> 0 | G80: 3 | H80: 0.25 | I80: 0.75 | J80: 0 | K80: Mainly due to the reason that benefits derived are consumed at household or family units | L80: Include into the MP a process, or allowance for communal activities (like fishing and selling) where after some time part of this could be distributed as assistance to community member indirectly, e.g.; school fee payment | M80: staff experience
A81: Governance | B81: 32c Change in livelihoods over the past five years | C81: There has been an improvement in livelihood outcomes for the community over the past five years? (Y or N) | D81: No | E81: =VLOOKUP(D81,Responses!$E$2:$F$4,2,FALSE) -> 0 | G81: 1 | H81: 0.25 | I81: 0.25 | J81: 0 | K81: Access to market is limited , transport factors, market day, catch size restrictions, seasonal harvest e.g., sea cucumber. Also use of marine resources is mainly for household consumption | L81: Livelihoods programs to be considered in the review of the MP (indicators to be identified and agreed to for inclusion)
A82: Output | B82: 33. Threats | C82: Are the threats to the main values of the protected area being effectively addressed? | D82: B. The threats to the main values are only being managed at a minimal level | E82: =VLOOKUP(D82,Responses!B308:D313,2,FALSE) -> B | F82: =VLOOKUP(E82,Responses!C108:E113,2,FALSE) -> 1 | G82: 3 | H82: 1 | I82: 3 | J82: 1 | K82: Monitoring and surveillance committee are not resourced to carry out assessment on the stresses and threats. | L82: Mobilise through consultation youth to work as volunteers to help manage values by doing monitoring/surveillance (potentially seek support from Provincial Gov't)
A83: Output | B83: 34. Connectivity (linkages to other natural systems) | C83: Have the requirements for connectivity (i.e. direct linkages to other natural ecosystems) been assessed and implemented? | D83: D. The requirements for connectivity have been assessed and necessary actions have been taken to achieve functional connectivity | E83: =VLOOKUP(D83,Responses!B314:D319,2,FALSE) -> D | F83: =VLOOKUP(E83,Responses!C109:E114,2,FALSE) -> 3 | G83: 3 | H83: 1 | I83: 3 | J83: 3 | K83: Connectivity was incorporated in most Kimbe Bay LMMAs by TNC including Tarobi. Example it included system wide approach that recognised patterns of connectivity within and amongst ecosystems and where possible included entire biological units (e.g.: reef systems, mangroves etc.) that possibly have buffers. Tarobi does include this and has functional connectivity (Green, A, et al. 2007) | L83: Seek advice from external experts for monitoring and assessment of functional connectivity
A84: Outcome | B84: 35. Condition of natural values | C84: What is the condition of the important natural values of the protected area, as compared to five to ten years ago? | D84: C. Some natural values are being partly degraded, but the most important natural values have not been significantly impacted | E84: =VLOOKUP(D84,Responses!B320:D325,2,FALSE) -> C | F84: =VLOOKUP(E84,Responses!C110:E115,2,FALSE) -> 2 | G84: 3 | H84: 1 | I84: 3 | J84: 2 | K84: Increase in population continues to see more want for cash where fishing pressure increased (not a big threat) that has seen impacts of fish stocks (rabbit fish) nilpis, and a few others. Impact of Climate change on the mangroves and turtle nesting areas. | L84: Consider current and future population trends and changing resource use in the management plan review
A85: Process | B85: 35a. Condition of natural values - assessment based on research and/or monitoring and evaluation | C85: The assessment of the condition of natural values is based on research and/or monitoring (this includes both western science and traditional methods) (Y or N) | D85: Yes | E85: =VLOOKUP(D85,Responses!$E$2:$F$4,2,FALSE) -> 1 | F85: =VLOOKUP(D85,Responses!$E$2:$F$4,2,FALSE) -> 1 | G85: 1 | H85: 1 | I85: 1 | J85: 1 | K85: Mainly limited to turtle nesting areas. Most others are just observation by locals during visits and based on their local knowledge | L85: Develop a routine program to patrol and invite local NGOs, Prov. Administration to assist in training and assessment. | M85: customary knowledge/Community opinion | N85: Staff experience
A86: Process | B86: 35b. Management programmes | C86: Specific management programmes or approaches are being implemented to address threats to natural values (Y or N) | D86: Yes | E86: =VLOOKUP(D86,Responses!$E$2:$F$4,2,FALSE) -> 1 | F86: =VLOOKUP(D86,Responses!$E$2:$F$4,2,FALSE) -> 1 | G86: 1 | H86: 1 | I86: 1 | J86: 1 | K86: This are done on ad-hoc basis. | L86: Develop a routine program to patrol and invite local NGOs, Prov. Administration to assist in training and assessment.
A87: Process | B87: 35c. Actions implemented as routine part of management | C87: Activities to maintain natural values are a routine part of protected area management (Y or N) | D87: No | E87: =VLOOKUP(D87,Responses!$E$2:$F$4,2,FALSE) -> 0 | F87: =VLOOKUP(D87,Responses!$E$2:$F$4,2,FALSE) -> 0 | G87: 1 | H87: 1 | I87: 1 | J87: 0 | K87: Activities are not routine but on needs basis as seen by concerned members. This are done on ad-hoc basis due to lack of resources and new committee members just starting | L87: Develop a routine program to patrol and invite local NGOs, Prov. Administration to assist in training and assessment.
A88: Outcome | B88: 36. Condition of cultural values | C88: What is the condition of the important cultural values of the protected area, as compared to five to ten years ago? | D88: D. Cultural values are predominantly intact | E88: =VLOOKUP(D88,Responses!B326:D331,2,FALSE) -> D | F88: =VLOOKUP(E88,Responses!C114:E119,2,FALSE) -> 3 | G88: =IF(F88="not relevant",0,3) -> 3 | H88: 1 | I88: 3 | J88: 3 | K88: Locals still practice and respect their cultural values example the traditional practice of closures reefs/fishing grounds help manage culturally important fish species like the groupers, snappers. | L88: Recognise traditional practices that help continue to preserve cultural values
A89: Process | B89: 36a. Condition of cultural values - assessment based on research and/or monitoring and evaluation | C89: The assessment of the condition of cultural values is based on research and/or monitoring (this includes both western science and traditional methods) (Y or N) | D89: Yes | E89: =VLOOKUP(D89,Responses!$E$2:$F$4,2,FALSE) -> 1 | F89: =VLOOKUP(D89,Responses!$E$2:$F$4,2,FALSE) -> 1 | G89: 1 | H89: 1 | I89: 1 | J89: 1 | K89: Mainly done by local based on the traditional ways and custom in respective clans/groups | L89: Recognise traditional practices that help continue to preserve cultural values
A90: Process | B90: 36b. Management programmes for cultural values | C90: Specific management programmes or approaches are being implemented to address threats to cultural values (Y or N) | D90: No | E90: =VLOOKUP(D90,Responses!$E$2:$F$4,2,FALSE) -> 0 | F90: =VLOOKUP(D90,Responses!$E$2:$F$4,2,FALSE) -> 0 | G90: 1 | H90: 1 | I90: 1 | J90: 0 | K90: Similar to the natural values. However because it is cultural people understand and fear | L90: Recognise traditional practices that help continue to preserve cultural values
A91: Process | B91: 36c. Actions implemented as routine part of management to protect cultural values | C91: Activities to maintain cultural values are a routine part of protected area management (Y or N) | D91: No | E91: =VLOOKUP(D91,Responses!$E$2:$F$4,2,FALSE) -> 0 | F91: =VLOOKUP(D91,Responses!$E$2:$F$4,2,FALSE) -> 0 | G91: 1 | H91: 1 | I91: 1 | J91: 0 | K91: Similar to the natural values. However because it is cultural people understand and fear | L91: Recognise traditional practices that help continue to preserve cultural values
A92: Outcome | B92: 37. Conservation status of key plant or animal species | C92: Has the status of key species changed over the last five (5) years? | D92: D. The conservation status of key species is desirable or has significantly improved over the last five years | E92: =VLOOKUP(D92,Responses!B332:D337,2,FALSE) -> D | F92: =VLOOKUP(E92,Responses!C118:E123,2,FALSE) -> 3 | G92: =IF(F92="not relevant",0,3) -> 3 | H92: 1 | I92: 3 | J92: 3 | K92: People still have a good sense of the zones | L92: Enter into partnership with Mahonia Dari to provide training and awareness
A93: Outcome | B93: 38. Conservation status of habitats | C93: Has the status of habitats changed over the last five (5) years? | D93: D. The conservation status of habitats is desirable or has significantly improved over the last five years | E93: =VLOOKUP(D93,Responses!B338:D343,2,FALSE) -> D | F93: =VLOOKUP(E93,Responses!C343:E348,2,FALSE) -> 3 | G93: 3 | H93: 1 | I93: 3 | J93: 3 | K93: People still have a good sense of the zones | L93: Enter into partnership with Mahonia Dari to provide training and awareness
A94: Input | B94: 39a. Level of support - CEPA | C94: What support has CEPA provided to enhance the management effectiveness of the protected area over the last five years? | D94: A. None | E94: =VLOOKUP(D94,Responses!B344:D349,2,FALSE) -> A | F94: =VLOOKUP(E94,Responses!C344:E349,2,FALSE) -> 0 | G94: 3 | H94: 0.2 | I94: 0.6 | J94: 0 | K94: Since DEC and now CEPA | L94: Seek to establish or strengthen partnership through working programs
A95: Input | B95: 39b. Level of support – Provincial Government(s) | C95: What support has/have the provincial government(s) provided to enhance the management effectiveness of the protected area over the last five years? | D95: A. None | E95: =VLOOKUP(D95,Responses!B344:D349,2,FALSE) -> A | F95: =VLOOKUP(E95,Responses!C345:E350,2,FALSE) -> 0 | G95: 3 | H95: 0.2 | I95: 0.6 | J95: 0 | K95: No support has been given to the LMMA | L95: Seek to establish or strengthen partnership through working programs
A96: Input | B96: 39c. Level of support – District(s) | C96: What support has/have the District(s) provided to enhance the management effectiveness of the protected area over the last five years? | D96: A. None | E96: =VLOOKUP(D96,Responses!B344:D349,2,FALSE) -> A | F96: =VLOOKUP(E96,Responses!C345:E350,2,FALSE) -> 0 | G96: 3 | H96: 0.2 | I96: 0.6 | J96: 0 | K96: No support has been given to the LMMA | L96: Seek to establish or strengthen partnership through working programs
A97: Input | B97: 39d. Level of support – LLG(s) | C97: What support has/have the LLG(s) provided to enhance the management effectiveness of the protected area over the last five years? | D97: A. None | E97: =VLOOKUP(D97,Responses!B344:D349,2,FALSE) -> A | F97: =VLOOKUP(E97,Responses!C344:E349,2,FALSE) -> 0 | G97: 3 | H97: 0.2 | I97: 0.6 | J97: 0 | K97: No support from Central Nakanai LLG. The LMMA was recognised under Bialla Rural LLG however no further support was given | L97: Seek to establish or strengthen partnership through working programs
A98: Input | B98: 39e. Level of support – NGOs | C98: What support have NGOs provided to enhance the management effectiveness of the protected area over the last five years? | D98: A. None | E98: =VLOOKUP(D98,Responses!B344:D349,2,FALSE) -> A | F98: =VLOOKUP(E98,Responses!C344:E349,2,FALSE) -> 0 | G98: 3 | H98: 0.2 | I98: 0.6 | J98: 0 | K98: Not since TNC came in to help establish this LMMA. JCU did some research which we hope to improve our LMMA | L98: Seek to establish or strengthen partnership through working programs
B99: TOTAL | F99: =SUM(F3:F98) -> 85 | G99: =SUM(G3:G98) -> 219 | I99: =SUM(I3:I98) -> 151.4 | J99: =SUM(J3:J98) -> 60.4

Sheet Responses (hidden)
A1: Question | H1: Condition | I1: Trend | K1: select
A2: 1 | B2: select | C2: blank | D2: blank | E2: select | F2: blank | H2: Very good | I2: Increasing | K2: A lot | L2: 2
B3: A. The protected area is not gazetted/approved by national or provincial government or has not been established through ‘other effective means’ | C3: A | D3: 0 | E3: Yes | F3: 1 | H3: Good | I3: Stable | K3: Some | L3: 1
B4: B. There is agreement that the protected area should be established but the process has not begun | C4: B | D4: 1 | E4: No | F4: 0 | H4: Fair | I4: Decreasing | K4: None | L4: 0
B5: C. The protected area is in the process of being established, but the process is incomplete | C5: C | D5: 2 | H5: Poor | I5: Don't know | K5: Don't know | L5: DK
B6: D. The protected area has been formally gazetted/approved by the national or provincial government or established through ‘other effective means’ | C6: D | D6: 3 | H6: Don't know
B7: Not relevant | C7: NA | D7: not relevant
A8: 2 | B8: select | C8: blank | D8: blank
B9: A. No firm objectives have been agreed for the protected area to guide management | C9: A | D9: 0
B10: B. The protected area has agreed objectives, but is not managed according to these objectives | C10: B | D10: 1
B11: C. The protected area has agreed objectives, and is only partly managed according to these objectives | C11: C | D11: 2 | G11: research & monitoring
B12: D. The protected area has agreed objectives and is fully managed to meet these objectives | C12: D | D12: 3 | G12: planning documents & government data
B13: Not relevant | C13: NA | D13: not relevant | G13: staff experience
A14: 3 | B14: select | C14: blank | D14: blank | G14: external expert opinion
B15: A. There are no regulations or customary laws or agreements for managing land and marine use and activities in the protected area | C15: A | D15: 0 | G15: customary knowledge/Community opinion
B16: B. Some regulations or customary laws for managing land/sea use and activities in the protected area exist but there are many weaknesses | C16: B | D16: 1 | G16: other (specify)
B17: C. Regulations or customary laws for managing land use and activities in the protected area exist, but there are some weaknesses or gaps | C17: C | D17: 2
B18: D. Regulations or customary laws for managing land use and activities in the protected area exist and provide an excellent basis for management | C18: D | D18: 3
B19: Not relevant | C19: NA | D19: not relevant | G19: threat severity
A20: 3a | B20: select | C20: blank | D20: blank
B21: A. Protected area-related rules/laws/regulations are not clearly defined and documented | C21: A | D21: 0 | G21: select
B22: B. Some protected area-related rules/laws/ regulations are clearly defined and documented, but there are some important gaps | C22: B | D22: 1 | G22: Very high
B23: C. Most protected area-related rules/laws/ regulations are clearly defined and documented, with no important gaps | C23: C | D23: 2 | G23: High
B24: D. Most protected area-related rules/laws/ regulations are clearly defined and documented and anyone who wants to see/review/or know this information is able to do so | C24: D | D24: 3 | G24: Medium
B25: Not relevant | C25: NA | D25: not relevant | G25: Low
A26: 3b | B26: select | C26: blank | D26: blank | G26: none
B27: A. The customary landowners/local community do not have any protected area-related user/access rights relating to accessing resources from the protected area (i.e. ability to hunt, fish or gather) | C27: A | D27: 0
B28: B. Some of the rights to use/access resources from the protected area are clearly defined and documented, but others are not | C28: B | D28: 1
B29: C. Most of the user/access rights to access resources from the protected area are clearly defined and documented | C29: C | D29: 2
B30: D. Most of the user/access rights to access resources from the protected area are clearly defined and documented, and anyone who wants to see or learn about this information is able to do so | C30: D | D30: 3
B31: Not relevant | C31: NA | D31: not relevant
A32: 3c | B32: select | C32: blank | D32: blank
B33: A. Very few (less than 25%) | C33: A | D33: 0
B34: B. Some (25-50%) | C34: B | D34: 1
B35: C. Many (51-75%) | C35: C | D35: 2
B36: D. Most (more than 75%) | C36: D | D36: 3
B37: Not relevant | C37: NA | D37: not relevant
A38: 4 | B38: select | C38: blank | D38: blank
B39: A. Planning for the land/marine uses that occur outside the protected area does not take into account the needs of the protected area and the resulting land/sea uses and policies harm the protected area | C39: A | D39: 0
B40: B. Planning for the land/marine uses that occur outside the protected area does not take into account the long-term needs of the protected area, but the resulting land/sea uses do not harm the protected area | C40: B | D40: 1
B41: C. Planning for the land/marine uses that occur outside the protected area takes into account some of the long-term needs of the protected area, and the resulting land/sea uses partially support the protected area | C41: C | D41: 2
B42: D. Planning for land/marine uses that occur outside the protected area fully takes into account the long-term needs of the protected area and seeks to support the protected area | C42: D | D42: 3
B43: Not relevant | C43: NA | D43: not relevant
A44: 5 | B44: select | C44: blank | D44: blank
B45: A. The protected area is too small, or the boundaries are not a good shape (i.e. poor design), and this makes achieving the major management objectives very difficult | C45: A | D45: 0
B46: B. The protected area is too small, or the boundaries are not a good shape (i.e. poor design), but we are working to make it better (e.g. agreements with adjacent land/sea owners for wildlife corridors, or improving water catchment management) | C46: B | D46: 1
B47: C. The protected area size and boundaries (i.e. the design) are okay and allow us to achieve our objectives, but could be better (e.g. in relation to large-scale ecological processes or minimising threats) | C47: C | D47: 2
B48: D. Protected area size and the boundaries (i.e. the design) are very good and we can achieve our objectives | C48: D | D48: 3
B49: Not relevant | C49: NA | D49: not relevant
A50: 6a | B50: select | C50: blank | D50: blank
B51: A. None or only a small section of the protected area boundary is marked on the ground | C51: A | D51: 0
B52: B. Some of the protected area boundary is marked on the ground | C52: B | D52: 1
B53: C. Most of the protected area boundary is marked on the ground | C53: C | D53: 2
B54: D. All of the protected area boundary is marked on the ground (this could include a fence) | C54: D | D54: 3
B55: Not relevant | C55: NA | D55: not relevant
A56: 6def | B56: select | C56: blank | D56: blank
B57: A. Very few (less than 25%) | C57: A | D57: 0
B58: B. Some (25-50%) | C58: B | D58: 1
B59: C. Many (51-75%) | C59: C | D59: 2
B60: D. Most (more than 75%) | C60: D | D60: 3
B61: Not relevant | C61: NA | D61: not relevant
A62: 7 | B62: select | C62: blank | D62: blank
B63: A. There is no management plan for the protected area, or the management plan was produced a long time ago and is not being implemented | C63: A | D63: 0
B64: B. A management plan or similar is being prepared or has been prepared but is not being implemented | C64: B | D64: 1
B65: C. A management plan or similar exists but it is being partly implemented because of funding constraints or other problems | C65: C | D65: 2
B66: D. A management plan or similar exists and is being fully implemented | C66: D | D66: 3
B67: Not relevant | C67: NA | D67: not relevant
A68: 7e | B68: select | C68: blank | D68: blank
B69: A. Structures and processes in relation to the Management Committee and related protected area decision-making are not known or understood by the protected area owners | C69: A | D69: 0
B70: B. Structures and processes in relation to the Management Committee and related protected area decision-making are little known or understood by the protected area owners | C70: B | D70: 1
B71: C. Structures and processes in relation to the Management Committee and related protected area decision-making are mostly known and understood by the protected area owners | C71: C | D71: 2
B72: D. Structures and processes in relation to the Management Committee and related protected area decision-making are fully known and understood by the protected area owners | C72: D | D72: 3
B73: Not relevant | C73: NA | D73: not relevant
A74: 8 | B74: select | C74: blank | D74: blank
B75: A. No regular work plan exists | C75: A | D75: 0
B76: B. A regular work plan exists but only some of the activities are implemented | C76: B | D76: 1
B77: C. A regular work plan exists, and many activities are implemented | C77: C | D77: 2
B78: D. A regular work plan exists, and all activities are implemented | C78: D | D78: 3
B79: Not relevant | C79: NA | D79: not relevant
A80: 9 | B80: select | C80: blank | D80: blank
B81: A. There is little or no information available about the protected area (e.g. critical habitats, species, ecological process and cultural values) and this makes management difficult | C81: A | D81: 0
B82: B. There is poor information about the protected area (e.g. critical habitats, species, ecological processes and cultural values) and this makes management difficult | C82: B | D82: 1
B83: C. There is good Information about the protected area (e.g. critical habitats, species, ecological processes and cultural values) for most areas of planning and decision making | C83: C | D83: 2
B84: D. There is very good Information on the protected area (e.g. critical habitats, species, ecological processes and cultural values) to support all areas of planning and decision making | C84: D | D84: 3
B85: Not relevant | C85: NA | D85: not relevant
A86: 10 | B86: select | C86: blank | D86: blank
B87: A. There are no staff/people paid to work on the protected area, but they are ’needed | C87: A | D87: 0
B88: B. There are some paid staff/people who are responsible for important management activities, but this is inadequate to meet management needs | C88: B | D88: 1
B89: C. Paid staff numbers are good and support management of the protected area, but this is below what is required to meet management needs | C89: C | D89: 2
B90: D. Paid staff/people numbers are very good and fully meet the management needs of the protected area | C90: D | D90: 3
B91: Not relevant | C91: NA | D91: not relevant
A92: 10a | B92: select | C92: blank | D92: blank
B93: A. There are no community members or customary landowners helping to manage the protected area, but they are needed | C93: A | D93: 0
B94: B. There are a few people to do important management activities in the protected area, but this is inadequate to meet management needs | C94: B | D94: 1
B95: C. There are some people to do important management activities in the protected area, but this is below what is required to fully meet management needs | C95: C | D95: 2
B96: D. There are plenty of people helping to manage the protected area and fully meet the management needs of the protected area | C96: D | D96: 3
B97: Not relevant | C97: NA | D97: not relevant
A98: 11 | B98: select | C98: blank | D98: blank
B99: A. Knowledge and skills needed to manage the protected area are very poor or inadequate | C99: A | D99: 0
B100: B. Knowledge and skills are poor relative to the needs of the protected area | C100: B | D100: 1
B101: C. Knowledge and skills are good, but could be improved to better manage the protected area | C101: C | D101: 2
B102: D. Knowledge and skills to manage the protected area are very good and they meet the management needs of the area | C102: D | D102: 3
B103: Not relevant | C103: NA | D103: not relevant
A104: 12 | B104: select | C104: blank | D104: blank
B105: A. There is no money from any source to manage the protected area | C105: A | D105: 0
B106: B. There is some money, but this is a serious problem that limits management effectiveness and should be increased to fully meet management needs | C106: B | D106: 1
B107: C. The available budget is acceptable but could be increased to fully meet management needs | C107: C | D107: 2
B108: D. The available budget is sufficient and fully meets the management needs of the protected area | C108: D | D108: 3
B109: Not relevant | C109: NA | D109: not relevant
A110: 13 | B110: select | C110: blank | D110: blank
B111: A. There is no secure budget to manage the protected area and management is wholly reliant on outside or highly variable funding | C111: A | D111: 0
B112: B. There is very little budget security, and the protected area could not meet its management needs without outside funding | C112: B | D112: 1
B113: C. There is a reasonably secure budget for regular operation of the protected area to enable it to meet its management needs, but many initiatives are reliant on outside funding | C113: C | D113: 2
B114: D. There is a secure budget for the protected area and its management needs | C114: D | D114: 3
B115: Not relevant | C115: NA | D115: not relevant
A116: 14 | B116: select | C116: blank | D116: blank
B117: A. Budget management is very poor and significantly undermines management effectiveness | C117: A | D117: 0
B118: B. Budget management is poor and constrains management effectiveness | C118: B | D118: 1
B119: C. Budget management is good but could be improved | C119: C | D119: 2
B120: D. Budget management is very good and meets management needs | C120: D | D120: 3
B121: Not relevant | C121: NA | D121: not relevant
A122: 15a | B122: select | C122: blank | D122: blank
B123: A. There are little or no equipment and facilities for management needs | C123: A | D123: 0
B124: B. There are some equipment and facilities, but these are inadequate for most management needs | C124: B | D124: 1
B125: C. There are sufficient equipment and facilities, and these enable us to undertake most management tasks, but there are some gaps | C125: C | D125: 2
B126: D. There are very good equipment and facilities, and these enable us to undertake all management tasks | C126: D | D126: 3
B127: Not relevant | C127: NA | D127: not relevant
A128: 15b | B128: select | C128: blank | D128: blank
B129: A. There is no maintenance of equipment and facilities | C129: A | D129: 0
B130: B. There is some occasional maintenance of equipment and facilities | C130: B | D130: 1
B131: C. There is much ongoing, basic maintenance of equipment and facilities | C131: C | D131: 2
B132: D. Equipment and facilities are fully maintained | C132: D | D132: 3
B133: Not relevant | C133: NA | D133: not relevant
A134: 16 | B134: select | C134: blank | D134: blank
B135: A. There is no effective human capacity, resources or authority to enforce protected area legislation and regulations OR community agreements | C135: A | D135: 0
B136: B. There is some human capacity, resources or authority to enforce protected area legislation and regulations OR community agreements, but there are big gaps or deficiencies | C136: B | D136: 1
B137: C. There is acceptable human capacity, resources or authority to enforce protected area legislation and regulations OR community agreements, but there are a few gaps or deficiencies | C137: C | D137: 2
B138: D. There is excellent human capacity, resources or authority to enforce protected area legislation and regulations OR community agreements | C138: D | D138: 3
B139: Not relevant | C139: NA | D139: not relevant
A140: 16a | B140: select | C140: blank | D140: blank
B141: A. There is no coordination | C141: A | D141: 0
B142: B. There is some effort to coordinate, but this does not work well | C142: B | D142: 1
B143: C. Coordination is good, but with some occasional problems | C143: C | D143: 2
B144: D. Coordination is very good | C144: D | D144: 3
B145: Not relevant | C145: NA | D145: not relevant
A146: 16b | B146: select | C146: blank | D146: blank
B147: A. There are no processes for dispute resolution and hence no documentation | C147: A | D147: 0
B148: B. Some of the relevant dispute resolution processes are clearly documented or known, but others are not | C148: B | D148: 1
B149: C. Most of the relevant dispute resolution processes are clearly documented or known | C149: C | D149: 2
B150: D. Most of the relevant dispute resolution processes are clearly documented or known and anyone who wants to see and review/discuss this information is able to do so | C150: D | D150: 3
B151: Not relevant | C151: NA | D151: not relevant
A152: 16c | B152: select | C152: blank | D152: blank
B153: A. There are no processes for dispute resolution | C153: A | D153: 0
B154: B. Dispute resolution processes are not suitable for solving protected area-related disputes | C154: B | D154: 1
B155: C. Dispute resolution processes are suitable for some protected area-related disputes, but not others | C155: C | D155: 2
B156: D. Dispute resolution processes are suitable for most or all types of protected area-related disputes | C156: D | D156: 3
B157: Not relevant | C157: NA | D157: not relevant
A158: 16d | B158: select | C158: blank | D158: blank
B159: A. Almost never as very few people are aware of the processes and are able to use them | C159: A | D159: 0
B160: B. Some disputes are resolved (e.g. up to one-third of disputes), but most remain unresolved | C160: B | D160: 1
B161: C. Most disputes are resolved, but often there are some people who remain dissatisfied | C161: C | D161: 2
B162: D. Almost all disputes are resolved and normally all people in the dispute are satisfied with the outcome | C162: D | D162: 3
B163: Not relevant | C163: NA | D163: not relevant
A164: 16e | B164: select | C164: blank | D164: blank
B165: A. Prosecution/dealing with law often does not follow the rules/law/regulations | C165: A | D165: 0
B166: B. Some incidents are handled according to the rules/law/regulations, but irregularities are common | C166: B | D166: 1
B167: C. Most incidents are handled according to the rules/law/regulations, but there are occasional irregularities | C167: C | D167: 2
B168: D. All incidents are properly handled according to the rules/law/regulations | C168: D | D168: 3
B169: Not relevant | C169: NA | D169: not relevant
A170: 17 | B170: select | C170: blank | D170: blank
B171: A. Protection systems/law enforcement (patrols, permits etc) do not exist or are not effective in controlling access/ resource use by ‘outsiders’, but are required | C171: A | D171: 0
B172: B. Protection systems/law enforcement are partially effective in controlling access/ resource use by ‘outsiders’, but law breaking is still common | C172: B | D172: 1
B173: C. Protection systems/law enforcement are moderately effective in controlling access/resource use by ‘outsiders’, but there are still occasional cases of law breaking | C173: C | D173: 2
B174: D. Protection systems/law enforcement are largely or wholly effective in controlling access/resource use by ‘outsiders’, so law breaking is very rare | C174: D | D174: 3
B175: Not relevant | C175: NA | D175: not relevant
A176: 17a | B176: select | C176: blank | D176: blank
B177: A. No – they keep quiet | C177: A | D177: 0
B178: B. Sometimes it is reported, but most times not | C178: B | D178: 1
B179: C. Most times it is reported, although sometimes not | C179: C | D179: 2
B180: D. Almost always reported in a timely manner, with very few exceptions | C180: D | D180: 3
B181: Not relevant | C181: NA | D181: not relevant
A182: 18 | B182: select | C182: blank | D182: blank
B183: A. The working environment for staff and community members is very poor | C183: A | D183: 0
B184: B. The working environment for staff and community members is poor | C184: B | D184: 1
B185: C. The working environment for staff and community members is good, but improvements could be made | C185: C | D185: 2
B186: D. The working environment for staff and community members is very good as it is an important consideration for the protected area managers | C186: D | D186: 3
B187: Not relevant | C187: NA | D187: not relevant
A188: 19 | B188: select | C188: blank | D188: blank
B189: A. There is no survey, inventory or research work taking place in the protected area | C189: A | D189: 0
B190: B. There is some survey, inventory or research work but it is not directed towards the needs of protected area management | C190: B | D190: 1
B191: C. There is survey, inventory or research work but it is only partly directed towards the needs of protected area management | C191: C | D191: 2
B192: D. There is a comprehensive, integrated programme of survey, inventory or research work, which is relevant to management needs | C192: D | D192: 3
B193: Not relevant | C193: NA | D193: not relevant
A194: 20 | B194: select | C194: blank | D194: blank
B195: A. There is no monitoring and evaluation in the protected area | C195: A | D195: 0
B196: B. There is some unplanned and irregular monitoring and evaluation of the performance of management activities, but no overall strategy and/or no regular collection of results | C196: B | D196: 1
B197: C. There is agreed and implemented monitoring and evaluation, but results do not feed back into management | C197: C | D197: 2
B198: D. A good system of monitoring and evaluation exists, is well implemented and is used to adapt and improve management | C198: D | D198: 3
B199: Not relevant | C199: NA | D199: not relevant
A200: 21 | B200: select | C200: blank | D200: blank
... 149 more rows

Sheet ConditTrend (T9)
A1: Detailed assessment of values (Condition & Trend) (Table 9)
A2: Key value | B2: Condition | C2: Trend | D2: Justification for the rating | E2: Ways to improve the value | G2: Condition
A3: Values will be inserted from Table 3 | B3: Insert Score | C3: Insert Score | D3: Insert text to explain the score or rating that was selected | G3: VG
B4: Select from pull down menu | C4: Select from pull down menu | G4: G
A5: ='Key Values (T3)'!B4 -> Mangroves (systems) | B5: Very good | C5: Stable | D5: Given the accessibility of the LMMA, and the limited and specific use of mangrove (e.g.; material for certain parts of the house) | E5: Nearby villages Karapi, Rapuri, Vavua, Koimumu other Hoskins villages, Sesimi, Kaiamu, Sulu, Bilomi company employees and Mamota residents need to be made aware not to illegally use/harvest mangroves | G5: F
A6: ='Key Values (T3)'!B5 -> Sea grass (system) | B6: Very good | C6: Increasing | D6: Unlike many other areas/LMMAs, Tarobi people do not depend on or eat seagrass (i.e. there is reduced taking of this resource) | G6: P
A7: ='Key Values (T3)'!B6 -> Coral systems (corals and reefs) | B7: Very good | C7: Increasing | D7: Despite the ineffectiveness of management of the LMMA, most of the users generally observe the zones. It is only mainly a few like some women and the youth who engage in unsustainable practices | E7: It is hard to actually monitor based on local knowledge. There is a need of a monitoring program with help from outside (like JCU or CEPA) | G7: DK
A8: ='Key Values (T3)'!B7 -> Turtle nesting | B8: Good | C8: Stable | D8: Generally is good and stable. Requires better monitoring | E8: Monitor impact of sea level rise on the nesting sites | G8: Score
A9: ='Key Values (T3)'!B8 -> Cultural sites | B9: Very good | C9: Stable | D9: Population is increasing and the young people are not very interest in pasin kastom. Many are also afraid of masalai in the sites. | G9: I

Sheet Recomm (T10)
A1: Recommendations (Table 10)
A2: Recommendations | B2: 1 | C2: 2 | D2: 3 | E2: 4
A3: ='Attributes (T1)'!C10 -> Tarobi Locally Managed Marine Area | B3: Review and update the Management Plan, with help/support from relevant stakeholders like CEPA and NFA and have TLMMA also recognise by Central Nakanai LLG | C3: Equipment including boat and outboard motor. | D3: Support from CEPA/GEF (other relevant agencies/NGO/institutions) to conduct capacity building for PA on site at Tarobi (e.g. tourism, money savings, PA management) also research and monitoring of the LMMA | E3: Carryout awareness to nearby villages and settlement blocks
A5: References
A6: Tarobi Management Committee (nd). Tarobi Marine Resource Use and Management Plan for Tarobi LMMA and Tarobi Community, Bialla RLLG, WNBP
A7: Koczberski, G., G.N. Curry, J. Warku and C. Kwam. 2006. Village-Based Marine Resource Use and Rural Livelihoods: Kimbe Bay, West New Britain, Papua New Guinea. TNC Pacific Island Countries Report No. 5/06.
A8: Green, A., Lokani, P., Sheppard, S., Almany Y, J., Keu , S., Aitsi, J. et al. (2007) Scientific Design of a Resilient Network of Marine Protected Areas, Kimbe Bay, West New Britain, Papua New Guinea. TNC Pacific Island Countries Report No. 2/07

Sheet Str & Challenges (T11)
A1: Strengths and Challenges (Table 11)
A2: ='Attributes (T1)'!C10 -> Tarobi Locally Managed Marine Area | B2: ='Attributes (T1)'!C10 -> Tarobi Locally Managed Marine Area
A3: Strengths | B3: Challenges
A4: The state of the key values is in a very good condition. This is in part due to the establishment of no take zones (and other zones) and the customary practice of "Merarobu", a closure period which can be up to 3 years to honour a death, followed by an opening of the area after customary feasts. | B4: Funding is needed to: review and update the Management Plan; implement training programs and skills development/capacity building (monitoring, surveillance, enforcement, finance, leadership, awareness raising).
A5: Most generations within the community are well aware of the LMMA and its different zones and the reasons for creating the LMMA. This gives them the advantage of understanding the values of their marine environment over those who don't have LMMAs | B5: Negotiating and receiving support from industry (Oil Palm and Logging) whose effluents impacts on the waterways that lead into the LMMA.
A6: The LMMA already has a management plan which is well set up with its objectives, various zones usage types, fines to generate funds for self sustaining etc and is all set up under the LLG laws | B6: Implementation, enforcement, monitoring, administration.
A7: The marine environment is in relatively good condition (but some decline in dugong numbers and reef bleaching). | B7: To prevent the illegal entry into the LMMA and the take of resources – the challenge is that the LMMA lacks equipment and logistics.
A8: Management strategies (e.g. bans on turtle harvesting, dugong hunting) have resulted in increased species numbers and larger species (over the last nine years). | B8: Getting support from all levels of government to provide support and funding.
A9: The LMMA is located away from the main road and is quite remote. Access to Kimbe town takes a few hours to the main road to catch PMVs. Therefore very limited access by settlers to the site apart from nearby village to put pressure on the values/resources | B9: Initial Management Committee members are no longer around (some died) and the plan has not been finalised and endorsed. This is difficult to legally impose penalties/fines and to even seek support from relevant authorities. The plan also needs to be revised to current situation and be endorsed and presented to the Provincial government, District DDA office, UNDP/GEF, CEPA etc
B10: Access to market in town is a problem. Local community market is usually once a week so there is less income benefit from their marine resources accept for sea cucumber where buyers go to them. Even though, much income is made from sea cucumber, the community lacks financial literacy training to better managed their income.
B11: Due to lack of funding and support, monitoring is a challenge and is not done regularly with a clear schedule and also when carried out there is lack of data collection due to lack of training and capacity building. With the lack of resources, it is hard to full implement anything to get good outcomes
B12: The community needs awareness to understand that activities outside the LMMA boundary on the mainland such as land clearing, logging, oil palm etc can affect the marine environment and so they also need better management of the activities on the mainland outside the LMMA boundary.

Sheet GEF METT
A1: Tracking Tool for GEF-6 Biodiversity Projects
A4: GEF:6 Objective 1: Catalyzing Sustainability of Protected Area Systems
A5: SECTION II: Management Effectiveness Tracking Tool for Protected Areas
A6: Note: Please complete the management effectiveness tracking tool for EACH protected area that is the target of the GEF intervention to improve management effectiveness and create a new worksheet for each. Structure and content of the Tracking Tool - Objective 1. Section II: The Tracking Tool has five data sheets: Data Sheet 1: Records details of the assessment and some basic information about the site, such as name, size and location etc. Data Sheet 2: Provides a specific list of threats that the project is addressing. Data Sheet 3: Condition of biodiversity in the protected area. Data Sheet 4: Assessment Form: the assessment is structured around 30 questions presented in table format which includes three columns for recording details of the assessment, all of which should be completed. Data Sheet 5: Datasources and methods on which above assessments of condition of biodiversity in the protected area in Question 30 are based.
A7: PLEASE NOTE THAT THIS TOOL IS FOR USE ONLY IN GEF-6 PROJECTS
A9: Data Sheet 1: Reporting Progress at Protected Area Sites
A10: Questions | B10: Please indicate your answers here | G10: Notes
B11: Project Start-up | E11: Midterm | F11: Project Completion
A12: Name, affiliation and contact details for person responsible for completing the METT (email etc.) | B12: Elton Kaitokai, Senior Program Officer, Terrestrial Ecosystems Management; ekaitokai@gmail.com | G12: P.O 6601, Boroko, National Capital District, ekaitokai@gmail.com , 3014500, 7550 8539
A13: Date assessment carried out | B13: ='Attributes (T1)'!C75 -> 19-20/07/2021 | G13: Month DD, YYYY (e.g., May 12, 2010)
A14: Name of protected area | B14: ='Attributes (T1)'!C10 -> Tarobi Locally Managed Marine Area | E14: ='[2]METT4 PA attributes'!C5 -> 0 | F14: ='[2]METT4 PA attributes'!D5 -> 0
A15: WDPA site code (these codes can be found on www.protectedplanet.net) | B15: ='[2]METT4 PA attributes'!B6 -> xxx
A16: Country | B16: ='[2]METT4 PA attributes'!B3 -> Papua New Guinea
A17: Location of protected area (province and if possible map reference) | B17: ='Attributes (T1)'!C6 -> West New Britain
A18: Date of establishment | B18: ='Attributes (T1)'!C13 -> 2007-12-11
A19: Ownership details (please choose 1-4) | B19: ='Attributes (T1)'!C25 -> Customary Landowners | G19: 1: State 2: Private 3: Community 4: Other
A20: Management Authority | B20: Management Committee
A21: Size of protected area (ha) | B21: 22054
A22: Number of Permanent staff | B22: ='Attributes (T1)'!C37 -> 0
A23: Number of Temporary staff | B23: ='Attributes (T1)'!C38 -> 0
A24: Annual budget (US$) for recurrent (operational) funds – excluding staff salary costs | B24: ='Attributes (T1)'!C41 -> 0
A25: Annual budget (US$) for project or other supplementary funds – excluding staff salary costs | B25: ='Attributes (T1)'!C44 -> 0
A26: What are the main values for which the area is designated | B26: ='Attributes (T1)'!C48 -> Mangroves (systems)
B27: ='Attributes (T1)'!C49 -> Sea grass (system)
B28: ='Attributes (T1)'!C50 -> Coral systems (corals and reefs)
B29: ='Attributes (T1)'!C51 -> Turtle nesting
B30: ='Attributes (T1)'!C52 -> Cultural sites
A31: List the two primary protected area management objectives in below:
A32: Management objective 1 | B32: ='Attributes (T1)'!C54 -> To use our marine resources in a more sustainable way with consideration for our future generation
A33: Management objective 2 | B33: ='Attributes (T1)'!C55 -> To protect our culture and traditions that connect us to the marine environment
A34: No. of people involved in completing assessment | B34: ='Attributes (T1)'!C58 -> 7
A35: Including: (please choose 1-8) | B35: 1, 2 and 7 | G35: 1: PA manager 2: PA staff 3: Other PA agency staff 4: Donors 5: NGOs 6: External experts 7: Local community 8: Other
A39: Data Sheet 2: Key Biodiversity Indicators Used in This Protected Area
A40: At project start-up, identify and list up to five key biodiversity indicators that are monitored on a regular basis in the protected area; these indicators can relate to any/all trophic levels OR using other indicators. For each identified indicator, provide the current (project start-up) status of that indicator in numerical terms or with a short description (see examples below), as appropriate. The examples are only illustrative and the protected area manager should use the indicators that currently are being monitored and/or will be monitored. At project midterm and at project completion, provide updates on the status of the same indicator(s) identified at project start. The overall condition of biodiversity -- based on the status of the indicator(s) identified here -- will be reported on in Question 30 in Data Sheet 4 (METT Assessment Form). Therefore the inputs here require focused analysis to assess whether trends are positive, negative or neutral.
A41: Indicator | B41: Project Start-up | E41: Midterm | F41: Project Completion | G41: Comments (optional)
A42: Example Indicator 1: Degree of soil compaction and/or erosion, as indicated by test sites compared with exclosures Example Indicator 2: Average total area of grassland burnt by fire per year, as indicated by plotting GPS points following fire events Example Indicator 3: Total area deforested or with forest significantly degraded, as indicated by satellite imagery Example Indicator 4: Estimated population of a key herbivore species as indicated by dung counts Example Indicator 5: Estimated population of a key carnivore species as indicated by camera traps
A43: Indicator 1
A44: Indicator 2
A45: Indicator 3
A46: Indicator 4
A47: Indicator 5
A51: Data Sheet 3: Protected Areas Threats
A52: Please describe each threat that the project is directly addressing and provide the threat reduction indicator that the project is using from the project logframe to measure progress in reducing each threat. An example is provided.
A53: Questions | B53: Please enter your answers in this column. | G53: Comments (optional)
A54: Example Threat | B54: Illegal hunting for bushmeat
A55: Threat reduction indicator | B55: Quantity of bushmeant coming from Xanadu PA sold in markets
A56: Baseline status | B56: At the start of project bushmeat sales in markets are 20 tons/per year (baseline upon which progress will be measured).
A57: Target | B57: Quantities of bushmeat coming from "Xanadu Protected Area" sold in markets are reduced by 70% over the project period
A58: Midterm status | B58: Bushmeat sales are recorded to be 14 tons per year.
A59: End of project status | B59: Bushmeat sales are recorded to be 12 tons per year.
A60: Threat 1 | B60: Rising sea-level
A61: Threat reduction indicator
A62: Baseline status
A63: Target
A64: Midterm status
A65: End of project status
A66: Threat 2 | B66: Population Increase
A67: Threat reduction indicator
A68: Baseline status
A69: Target
A70: Midterm status
A71: End of project status
A72: Threat 3 | B72: Lack of coordination across all levels of government
A73: Threat reduction indicator
A74: Baseline status
A75: Target
A76: Midterm status
A77: End of project status
A81: Data Sheet 4: METT Assessment Form
A82: Please select a score from the drop-down list for each question. If a question is not applicable, then do not select a score and enter "N/A" in the comments space along with a brief explanation.
A83: Questions | B83: Project start-up | C83: Justification | D83: Actions to improve management | E83: Midterm | F83: Project Completion | G83: Criteria and Scores
A84: 1. Legal status: Does the protected area have legal status (or in the case of private reserves is covered by a covenant or similar)? | B84: ='Scorecard (T8)'!F3 -> 3 | C84: ='Scorecard (T8)'!K3 -> It was recognised under the Bialla Local Level Government Marine Environment Management Law 2004, however Tarobi now comes under the Central Nakanai LLG so this needs to be transferred/amended. This work needs to be done. | D84: ='Scorecard (T8)'!L3 -> LMMA to be submitted to Central Nakanai LLG for its recognition or some other arrangement needs to be in place. | G84: 0: The protected area is not gazetted/covenanted 1: There is agreement that the protected area should be gazetted/covenanted but the process has not yet begun 2: The protected area is in the process of being gazetted/covenanted but the process is still incomplete (includes sites designated under international conventions, such as Ramsar, or local/traditional law such as community conserved areas, which do not yet have national legal status or covenant) 3: The protected area has been formally gazetted/covenanted
A85: Comments and Next Steps
A86: 2. Protected area regulations: Are appropriate regulations in place to control land use and activities (e.g. hunting)? | B86: ='Scorecard (T8)'!F5 -> 1 | C86: ='Scorecard (T8)'!K5 -> Yes, Example the traditional way of Merarobu and some rules in the management plan, like fees paid by non-members of Tarobi community to Tarobi LMMA site committee (TLMMASC) before they use, harvest or fish for any resources within Tarobi LMMA. The fees agreed are: • K30.00 for use of marine area or, fish and harvest marine resource • K20.00 for terrestrial (land) resources (e.g. beetle nut) | D86: ='Scorecard (T8)'!L5 -> The management plan needs to be revised/updated and endorsed by the CNLLG for full implementation. | G86: 0: There are no regulations for controlling land use and activities in the protected area 1: Some regulations for controlling land use and activities in the protected area exist but these are major weaknesses 2: Regulations for controlling land use and activities in the protected area exist but there are some weaknesses or gaps 3: Regulations for controlling inappropriate land use and activities in the protected area exist and provide an excellent basis for management
A87: Comments and Next Steps
A88: 3. Law Enforcement: Can staff (i.e. those with responsibility for managing the site) enforce protected area rules well enough? | B88: ='Scorecard (T8)'!F39 -> 0 | C88: ='Scorecard (T8)'!K39 -> No budget and resources to enforce laws | D88: ='Scorecard (T8)'!L39 -> If government can realise the efforts made by the LMMA and can allocate some funding that would the good. | G88: 0: The staff have no effective capacity/resources to enforce protected area legislation and regulations 1: There are major deficiencies in staff capacity/resources to enforce protected area legislation and regulations (e.g. lack of skills, no patrol budget, lack of institutional support) 2: The staff have acceptable capacity/resources to enforce protected area legislation and regulations but some deficiencies remain 3: The staff have excellent capacity/resources to enforce protected area legislation and regulations
A89: Comments and Next Steps
A90: 4. Protected area objectives: Is management undertaken according to agreed objectives? | B90: ='Scorecard (T8)'!F4 -> 2 | C90: ='Scorecard (T8)'!K4 -> There is an existing Management Plan that has agree objectives. | D90: ='Scorecard (T8)'!L4 -> The current objectives are specific and are ok and should be maintained and updated if the Management plan is to be reviewed. | G90: 0: No firm objectives have been agreed for the protected area 1: The protected area has agreed objectives, but is not managed according to these objectives 2: The protected area has agreed objectives, but is only partially managed according to these objectives 3: The protected area has agreed objectives and is managed to meet these objectives
A91: Comments and Next Steps
A92: 5. Protected area design: Is the protected area the right size and shape to protect species, habitats, ecological processes and water catchments of key conservation concern? | B92: ='Scorecard (T8)'!F13 -> 2 | C92: ='Scorecard (T8)'!K13 -> The TLMMA contains a rich variety of marine habitats and supports many species including extensive mangroves, and sea-grass areas, and inshore, fringing and offshore barrier reefs. The area also includes two islands: Liliua Island - where the forest is intact and provides a roosting area for pigeons and other sea birds. The islands also have pristine beaches and provide important nesting area for turtles. It is also known to be a breeding and feeding area for dugong and dolphins as well as spawning aggregation sites for fish species. | D92: ='Scorecard (T8)'!L13 -> Monitoring of the LMMA need to be strengthened/revived. Two estuaries exist within the LLMA boundaries and there is thought of extending the buffer inland. | G92: 0: Inadequacies in protected area design mean achieving the major objectives of the protected area is very difficult 1: Inadequacies in protected area design mean that achievement of major objectives is difficult but some mitigating actions are being taken (e.g. agreements with adjacent land owners for wildlife corridors or introduction of appropriate catchment management) 2: Protected area design is not significantly constraining achievement of objectives, but could be improved (e.g. with respect to larger scale ecological processes) 3: Protected area design helps achievement of objectives; it is appropriate for species and habitat conservation; and maintains ecological processes such as surface and groundwater flows at a catchment scale, natural disturbance patterns etc
A93: Comments and Next Steps
A94: 6. Protected area boundary demarcation: Is the boundary known and demarcated? | B94: ='Scorecard (T8)'!F14 -> 1 | C94: ='Scorecard (T8)'!K14 -> LMMA boundaries have been marked on the map as well as physical markers (attributes) that signal the boundaries (not all) are known to locals. These include the Bilomi River mouth to the west and Gea River mouth to the east and also the Eastern and Western Tarobi Bays and the reefs they know E | D94: ='Scorecard (T8)'!L14 -> Descriptions of such indicators to be described in the boundary description of the LMMA in the Management Plan | G94: 0: The boundary of the protected area is not known by the management authority or local residents/neighbouring land users 1: The boundary of the protected area is known by the management authority but is not known by local residents/neighbouring land users 2: The boundary of the protected area is known by both the management authority and local residents/neighbouring land users but is not appropriately demarcated 3: The boundary of the protected area is known by the management authority and local residents/neighbouring land users and is appropriately demarcated
A95: Comments and Next Steps | B95: NOTE - you may have to insert other information related to boundaries - go back to Q 6.
A96: 7. Management plan: Is there a management plan and is it being implemented? | B96: ='Scorecard (T8)'!F22 -> 2 | C96: ='Scorecard (T8)'!K22 -> There is an existing plan done with TNC but it has been poorly implemented (and is due for review) due to lack of support from LLG (other gov't) and resource constraints | D96: ='Scorecard (T8)'!L22 -> Revise management plan and seek assistance to support its full implementation (including having Central Nakanai commit to recognise and support) | G96: 0: There is no management plan for the protected area 1: A management plan is being prepared or has been prepared but is not being implemented 2: A management plan exists but it is only being partially implemented because of funding constraints or other problems 3: A management plan exists and is being implemented
A97: Comments and Next Steps
A98: 7.a Planning process: The planning process allows adequate opportunity for key stakeholders to influence the management plan | B98: ='Scorecard (T8)'!F23 -> 1 | C98: ='Scorecard (T8)'!K23 -> The Management plan was developed with the help of TNC and provides the community, TNC, and Bialla LLG Marine Environment Advisory Committee to input in its review every five years | D98: ='Scorecard (T8)'!L23 -> The identified need to be involved with the inclusion of the Central Nakanai LLG now the LMMA is under this LLG boundaries | G98: 0: No 1: Yes
A99: Comments and Next Steps
A100: 7.b Planning process: There is an established schedule and process for periodic review and updating of the management plan | B100: ='Scorecard (T8)'!F24 -> 1 | C100: ='Scorecard (T8)'!K24 -> The management plan clearly states that the Management plan (Initial agreed) will be for 30 years and will be reviewed every 5 years. Updating the plan shall be done by the community, TNC, and Bialla LLG Marine Environment Advisory Committee five (5) years after the signing of the Agreement. This has to be reviewed. | D100: ='Scorecard (T8)'!L24 -> The review of the plan should include CNLLG now that Tarobi falls in this LLG and that TNC or other partners should input into this | G100: 0: No 1: Yes
A101: Comments and Next Steps
A102: 7.c Planning process: The results of monitoring, research and evaluation are routinely incorporated into planning | B102: ='Scorecard (T8)'!F50 -> 0 | C102: ='Scorecard (T8)'!K50 -> Ad-hoc activities are not evaluated. | D102: ='Scorecard (T8)'!L50 -> Seek support or engage in a partnership arrangement to have locals trained to do this | G102: 0: No 1: Yes
A103: Comments and Next Steps
A104: 8. Regular work plan: Is there a regular work plan and is it being implemented | B104: ='Scorecard (T8)'!F29 -> 0 | C104: ='Scorecard (T8)'!K29 -> Ad hoc activity rollout on an as needed basis | D104: ='Scorecard (T8)'!L29 -> To develop plans based on the management plan and to inform community of it. | G104: 0: No regular work plan exists 1: A regular work plan exists but few of the activities are implemented 2: A regular work plan exists and many activities are implemented 3: A regular work plan exists and all activities are implemented
A105: Comments and Next Steps
A106: 9. Resource inventory: Do you have enough information to manage the area? | B106: ='Scorecard (T8)'!F30 -> 1 | C106: ='Scorecard (T8)'!K30 -> There has not been any survey and assessment in the area since The Nature Conservancy left. Good scientific information on the status of the PA is lacking currently. Locals mainly do monitoring (sightings, incidental finds and use local knowledge, but this is not enough to help in coming up with a good revised plan) | D106: ='Scorecard (T8)'!L30 -> Support is required to update information on current protected areas' resources | G106: 0: There is little or no information available on the critical habitats, species and cultural values of the protected area 1: Information on the critical habitats, species, ecological processes and cultural values of the protected area is not sufficient to support planning and decision making 2: Information on the critical habitats, species, ecological processes and cultural values of the protected area is sufficient for most key areas of planning and decision making 3: Information on the critical habitats, species, ecological processes and cultural values of the protected area is sufficient to support all areas of planning and decision making
A107: Comments and Next Steps
A108: 10. Protection systems: Are systems in place to control access/resource use in the protected area? | B108: ='Scorecard (T8)'!F46 -> 1 | C108: ='Scorecard (T8)'!K46 -> People are involved in the breaching of the rules like women, youth and get away with it. Some also collect fees without report cases for their benefit. There is wantok system. This includes colluding with outsiders | D108: ='Scorecard (T8)'!L46 -> Have people to agree to work for the LMMA with some incentives to enforce the rules | G108: 0: Protection systems (patrols, permits etc) do not exist or are not effective in controlling access/resource use 1: Protection systems are only partially effective in controlling access/resource use 2: Protection systems are moderately effective in controlling access/resource use 3: Protection systems are largely or wholly effective in controlling access/ resource use
A109: Comments and Next Steps
A110: 11. Research: Is there a programme of management-orientated survey and research work? | B110: ='Scorecard (T8)'!F49 -> 0 | C110: ='Scorecard (T8)'!K49 -> Nothing currently | D110: ='Scorecard (T8)'!L49 -> Invite research institutions or partners to carry out surveys or train the locals to do this. This can be part of the management committees tasks/roles in the MP | G110: 0: There is no survey or research work taking place in the protected area 1: There is a small amount of survey and research work but it is not directed towards the needs of protected area management 2: There is considerable survey and research work but it is not directed towards the needs of protected area management 3:There is a comprehensive, integrated programme of survey and research work, which is relevant to management needs
A111: Comments and Next Steps
A112: 12. Resource management: Is active resource management being undertaken? | B112: ='Scorecard (T8)'!F51 -> 1 | C112: ='Scorecard (T8)'!K51 -> Done on ad hoc basis | D112: ='Scorecard (T8)'!L51 -> Have the management plan revised and endorsed | G112: 0: Active resource management is not being undertaken 1: Very few of the requirements for active management of critical habitats, species, ecological processes and cultural values are being implemented 2: Many of the requirements for active management of critical habitats, species, ecological processes and, cultural values are being implemented but some key issues are not being addressed 3: Requirements for active management of critical habitats, species, ecological processes and, cultural values are being substantially or fully implemented
A113: Comments and Next Steps
A114: 13. Staff numbers: Are there enough people employed to manage the protected area? | B114: ='Scorecard (T8)'!F31 -> 0 | C114: ='Scorecard (T8)'!K31 -> There is a need for staff, but currently there are no resources and capacity to do so. | D114: ='Scorecard (T8)'!L31 -> Seek support with the community to have youths engage on rotational basis with some allowance. This could be captured in the management plan and paid through the collection of fees and fines | G114: 0: There are no staff 1: Staff numbers are inadequate for critical management activities 2: Staff numbers are below optimum level for critical management activities 3: Staff numbers are adequate for the management needs of the protected area
A115: Comments and Next Steps
A116: 14. Staff training: Are staff adequately trained to fulfill management objectives? | B116: ='Scorecard (T8)'!F33 -> 2 | C116: ='Scorecard (T8)'!K33 -> There is little knowledge and skill amongst community members (those engaged by TNC). However, this knowledge is not used due to lack of equipment. Mainly Incidental observation is done | D116: ='Scorecard (T8)'!L33 -> Need training and education to carry out effective monitoring and surveillance work and committee to do evaluation. | G116: 0: Staff lack the skills needed for protected area management 1: Staff training and skills are low relative to the needs of the protected area 2: Staff training and skills are adequate, but could be further improved to fully achieve the objectives of management 3: Staff training and skills are aligned with the management needs of the protected area
A117: Comments and Next Steps
A118: 15. Current budget: Is the current budget sufficient? | B118: ='Scorecard (T8)'!F34 -> 0 | C118: ='Scorecard (T8)'!K34 -> No money is received to help with management. | D118: ='Scorecard (T8)'!L34 -> Identify and come up with innovative ways to source funding. Work with the LLG to incorporate the plan into the 5year development plans so budget considers the LMMA activities (priority) | G118: 0: There is no budget for management of the protected area 1: The available budget is inadequate for basic management needs and presents a serious constraint to the capacity to manage 2: The available budget is acceptable but could be further improved to fully achieve effective management 3: The available budget is sufficient and meets the full management needs of the protected area
A119: Comments and Next Steps
A120: 16. Security of budget: Is the budget secure? | B120: ='Scorecard (T8)'!F35 -> 0 | C120: ='Scorecard (T8)'!K35 -> There is no budget and no budget into the future. | D120: ='Scorecard (T8)'!L35 -> Identify and come up with innovative ways to source funding. Work with the LLG to incorporate the plan into the 5year development plans so budget considers the LMMA activities (priority) | G120: 0: There is no secure budget for the protected area and management is wholly reliant on outside or highly variable funding 1: There is very little secure budget and the protected area could not function adequately without outside funding 2: There is a reasonably secure core budget for regular operation of the protected area but many innovations and initiatives are reliant on outside funding 3: There is a secure budget for the protected area and its management needs
A121: Comments and Next Steps
A122: 17. Management of budget: Is the budget managed to meet critical management needs? | B122: ='Scorecard (T8)'!F36 -> not relevant | C122: ='Scorecard (T8)'!K36 -> There is no budget to manage. | D122: ='Scorecard (T8)'!L36 -> Introduce training in budget management when a budget is available. | G122: 0: Budget management is very poor and significantly undermines effectiveness (e.g. late release of budget in financial year) 1: Budget management is poor and constrains effectiveness 2: Budget management is adequate but could be improved 3: Budget management is excellent and meets management needs
A123: Comments and Next Steps
A124: 18. Equipment: Is equipment sufficient for management needs? | B124: ='Scorecard (T8)'!F37 -> 0 | C124: ='Scorecard (T8)'!K37 -> There was a dinghy at the establishment of the LMMA, however it broke down and no longer works. | D124: ='Scorecard (T8)'!L37 -> Since the LMMA size is big, its impossible to monitor the entire place all at once so there is need for equipment such as more than one boat, drone | G124: 0: There are little or no equipment and facilities for management needs 1: There are some equipment and facilities but these are inadequate for most management needs 2: There are equipment and facilities, but still some gaps that constrain management 3: There are adequate equipment and facilities
A125: Comments and Next Steps
A126: 19. Maintenance of equipment: Is equipment adequately maintained? | B126: ='Scorecard (T8)'!F38 -> 0 | C126: ='Scorecard (T8)'!K38 -> The boat is okay, but the motor has been spoiled due to no maintenance on it | D126: ='Scorecard (T8)'!L38 -> If the management committee has a budget the a motor can be purchased to replace the damaged motor | G126: 0: There is little or no maintenance of equipment and facilities 1: There is some ad hoc maintenance of equipment and facilities 2: There is basic maintenance of equipment and facilities 3: Equipment and facilities are well maintained
A127: Comments and Next Steps
A128: 20. Education and awareness: Is there a planned education programme linked to the objectives and needs? | B128: ='Scorecard (T8)'!F57 -> 1 | C128: ='Scorecard (T8)'!K57 -> Education and awareness to target communities is a strategy in our management plan but is not effectively carried out | D128: ='Scorecard (T8)'!L57 -> There is a need to review this and strengthen the efforts | G128: 0: There is no education and awareness programme 1: There is a limited and ad hoc education and awareness programme 2: There is an education and awareness programme but it only partly meets needs and could be improved 3: There is an appropriate and fully implemented education and awareness programme
A129: Comments and Next Steps
A130: 21. Planning for land and water use: Does land and water use planning recognise the protected area and aid the achievement of objectives? | B130: ='Scorecard (T8)'!F9 -> 1 | C130: ='Scorecard (T8)'!K9 -> There is currently little to no obvious impacts however with logging almost starting nearby and oil palm expanding, there is big potential for the marine environment in the LMMA to be impacted. We already are seeing Illegal fishing by Hargy employees and outsiders. Gardening by these people near the rivers could also contribute to erosion and sedimentation. | D130: ='Scorecard (T8)'!L9 -> The LMMA needs support to ensure the logging development and oil palm expansion take into consideration the potential impact they could have on the LMMA. The LMMA should be considered in their environment plans for monitoring of activities. | G130: 0: Adjacent land and water use planning does not take into account the needs of the protected area and activities/policies are detrimental to the survival of the area 1: Adjacent land and water use planning does not takes into account the long term needs of the protected area, but activities are not detrimental the area 2: Adjacent land and water use planning partially takes into account the long term needs of the protected area 3: Adjacent land and water use planning fully takes into account the long term needs of the protected area
A131: Comments and Next Steps
A132: 21a. Land and water planning for habitat conservation: Planning and management in the catchment or landscape containing the protected area incorporates provision for adequate environmental conditions (e.g. volume, quality and timing of water flow, air pollution levels etc) to sustain relevant habitats. | B132: ='Scorecard (T8)'!F10 -> 1 | C132: ='Scorecard (T8)'!K10 -> This LMMA is isolated from other communities and so it has provisions of being well protected providing adequate environment conditions | D132: ='Scorecard (T8)'!L10 -> surveillance and monitoring on the LMMA boundaries will protect the wider catchment/landscape | G132: 0: No 1: Yes
A133: Comments and Next Steps
A134: 21b. Land and water planning for connectivity: Management of corridors linking the protected area provides for wildlife passage to key habitats outside the protected area (e.g. to allow migratory fish to travel between freshwater spawning sites and the sea, or to allow animal migration). | B134: ='Scorecard (T8)'!F11 -> 0 | C134: ='Scorecard (T8)'!K11 -> The current focus is mainly within the LMMA boundaries however there is spill-over observed as a result of LMMA closure areas. This was not factored into the management plan and needs to be looked at | D134: ='Scorecard (T8)'!L11 -> There are initial thoughts of expanding the boundaries of the LMMA to cater for the terrestrial parts near the LMMA starting with a buffer. | G134: 0: No 1: Yes
A135: Comments and Next Steps
A136: 21c. Land and water planning for ecosystem services and species conservation: "Planning adresses ecosystem-specific needs and/or the needs of particular species of concern at an ecosystem scale (e.g. volume, quality and timing of freshwater flow to sustain particular species, fire management to maintain savannah habitats etc.)" | B136: ='Scorecard (T8)'!F12 -> 1 | C136: ='Scorecard (T8)'!K12 -> This is captured in the management targets (in the MP) example mange and reef/coral ecosystem given Tarobi hold a high percent of Mangrove and reef systems in Kimbe Bay | D136: ='Scorecard (T8)'!L12 -> Conditions are good and need to be maintained into the future through good monitoring apart from incidental and local knowledge reports | G136: 0: No 1: Yes
A137: Comments and Next Steps
A138: 22. State and commercial neighbours:Is there co-operation with adjacent land and water users? | B138: ='Scorecard (T8)'!F58 -> 0 | C138: ='Scorecard (T8)'!K58 -> A factor is that the Ward Councillor is not very supportive (taking issues up) and also Hargy Bialla and Bilomi companies do not consider the LMMA in their environment sustainability work | D138: ='Scorecard (T8)'!L58 -> The Management committee needs to establish contact so the LMMA is considered in their planning | G138: 0: There is no contact between managers and neighbouring official or corporate land and water users 1: There is contact between managers and neighbouring official or corporate land and water users but little or no cooperation 2: There is contact between managers and neighbouring official or corporate land and water users, but only some co-operation 3: There is regular contact between managers and neighbouring official or corporate land and water users, and substantial co-operation on management
A139: Comments and Next Steps
A140: 23. Indigenous people: Do indigenous and traditional peoples resident or regularly using the protected area have input to management decisions? | B140: ='Scorecard (T8)'!F62 -> 1 | C140: ='Scorecard (T8)'!K62 -> Decision making process is not clear but they (customary LOs) contribute through their clans and respective zone meetings | D140: ='Scorecard (T8)'!L62 -> need to finalise the management plan | G140: 0: Indigenous and traditional peoples have no input into decisions relating to the management of the protected area 1: Indigenous and traditional peoples have some input into discussions relating to management but no direct role in management 2: Indigenous and traditional peoples directly contribute to some relevant decisions relating to management but their involvement could be improved 3: Indigenous and traditional peoples directly participate in all relevant decisions relating to management, e.g. co-management
A141: Comments and Next Steps
A142: 24. Local communities: Do local communities resident or near the protected area have input to management decisions? | B142: ='Scorecard (T8)'!F63 -> 1 | C142: ='Scorecard (T8)'!K63 -> Input are in the form of suggestions and contributions during village meeting or ward days. Traditionally also is through their matrilineal ties with the landowners | D142: ='Scorecard (T8)'!L63 -> A representative should be considered in the Management committee or in any sub-committee. A decision structure should also be developed by the committee | G142: 0: Local communities have no input into decisions relating to the management of the protected area 1: Local communities have some input into discussions relating to management but no direct role in management 2: Local communities directly contribute to some relevant decisions relating to management but their involvement could be improved 3: Local communities directly participate in all relevant decisions relating to management, e.g. co-management
A143: Comments and Next Steps
A144: 24 a. Impact on communities: There is open communication and trust between local and/or indigenous people, stakeholders and protected area managers | B144: ='Scorecard (T8)'!F70 -> 0 | C144: ='Scorecard (T8)'!K70 -> There is no communication | D144: ='Scorecard (T8)'!L70 -> to establish contact | G144: 0: No 1: Yes
A145: Comments and Next Steps
A146: 24 b. Impact on communities: Programmes to enhance community welfare, while conserving protected area resources, are being implemented | B146: ='Scorecard (T8)'!F76 -> 1 | C146: ='Scorecard (T8)'!K76 -> This is a core reason for the establishment of the LMMA. To continue to support community livelihoods through better resource use and management (LMMA) | D146: ='Scorecard (T8)'!L76 -> Identify and implement value adding activities to improve on what is happening now. Example - assist in linking markets and bring in financial trainings to locals. Hargy Oil Palm should be contacted as many community members also earn cash income from oil palm. | G146: 0: No 1: Yes
A147: Comments and Next Steps
A148: 24 c. Impact on communities: Local and/or indigenous people actively support the protected area | B148: ='Scorecard (T8)'!F77 -> 1 | C148: ='Scorecard (T8)'!K77 -> Very limited support, level of support has dropped since LMMA has dropped down, many community members are involved in destroying the resources | D148: ='Scorecard (T8)'!L77 -> management plan to be revived, workshops/assessments such as the METT can also be run at the PA site for wider participation | G148: 0: No 1: Yes
A149: Comments and Next Steps
A150: 25. Economic benefit: Is the protected area providing economic benefits to local communities, e.g. income, employment, payment for environmental services? | B150: ='Scorecard (T8)'!F78 -> 2 | C150: ='Scorecard (T8)'!K78 -> Access to market is limited , transport factors, market day, catch size, seasonal harvest e.g., sea cucumber | D150: ='Scorecard (T8)'!L78 -> Provide transport to market, financial and literacy training, to assist communities to manage their incomes, introduce alternated activities | G150: 0: The protected area does not deliver any economic benefits to local communities 1: Potential economic benefits are recognised and plans to realise these are being developed 2: There is some flow of economic benefits to local communities 3: There is a major flow of economic benefits to local communities from activities associated with the protected area
A151: Comments and Next Steps
A152: 26. Monitoring and evaluation: Are management activities monitored against performance? | B152: ='Scorecard (T8)'!F50 -> 0 | C152: ='Scorecard (T8)'!K50 -> Ad-hoc activities are not evaluated. | D152: ='Scorecard (T8)'!L50 -> Seek support or engage in a partnership arrangement to have locals trained to do this | G152: 0: There is no monitoring and evaluation in the protected area 1: There is some ad hoc monitoring and evaluation, but no overall strategy and/or no regular collection of results 2: There is an agreed and implemented monitoring and evaluation system but results do not feed back into management 3: A good monitoring and evaluation system exists, is well implemented and used in adaptive management
A153: Comments and Next Steps
A154: 27. Visitor facilities: Are visitor facilities adequate? | B154: ='Scorecard (T8)'!F61 -> 0 | C154: ='Scorecard (T8)'!K61 -> No facilities currently. | D154: ='Scorecard (T8)'!L61 -> The profile of the LMMA needs to be raised by using innovative means and as identified in the assessment of tourism potential. (this could determine the appropriateness and location of facilities) | G154: 0: There are no visitor facilities and services despite an identified need 1: Visitor facilities and services are inappropriate for current levels of visitation 2: Visitor facilities and services are adequate for current levels of visitation but could be improved 3: Visitor facilities and services are excellent for current levels of visitation
A155: Comments and Next Steps
A156: 28. Commercial tourism operators: Do commercial tour operators contribute to protected area management? | B156: ='Scorecard (T8)'!F59 -> 0 | C156: ='Scorecard (T8)'!K59 -> No contact at the moment | D156: ='Scorecard (T8)'!L59 -> Seek support to assess the extent of tourism potential (ecotourism activities) than try to partner with operators using the assessment as the basis for viability | G156: 0: There is little or no contact between managers and tourism operators using the protected area 1: There is contact between managers and tourism operators but this is largely confined to administrative or regulatory matters 2: There is limited co-operation between managers and tourism operators to enhance visitor experiences and maintain protected area values 3: There is good co-operation between managers and tourism operators to enhance visitor experiences, and maintain protected area values
A157: Comments and Next Steps
A158: 29. Fees: If fees (i.e. entry fees or fines) are applied, do they help protected area management? | B158: ='Scorecard (T8)'!F60 -> 0 | C158: ='Scorecard (T8)'!K60 -> The committee is new, LLG has changed, MP needs to be reviewed and recognised by the LLG. There is weak enforcement of fees. | D158: ='Scorecard (T8)'!L60 -> Have people to enforce after education and awareness of the penalties are reviewed and made known to everyone. | G158: 0: Although fees are theoretically applied, they are not collected 1: Fees are collected, but make no contribution to the protected area or its environs 2: Fees are collected, and make some contribution to the protected area and its environs 3: Fees are collected and make a substantial contribution to the protected area and its environs
A159: Comments and Next Steps
A160: 30. What is the overall condition of the biodiversity of the protected area in terms of the indicator(s) indicated in Data Sheet 2 above? | B160: ='Scorecard (T8)'!F84 -> 2 | C160: ='Scorecard (T8)'!K84 -> Increase in population continues to see more want for cash where fishing pressure increased (not a big threat) that has seen impacts of fish stocks (rabbit fish) nilpis, and a few others. Impact of Climate change on the mangroves and turtle nesting areas. | D160: ='Scorecard (T8)'!L84 -> Consider current and future population trends and changing resource use in the management plan review | G160: 0: Severely degraded 1: Partially degraded 2: Mostly intact 3: Completely intact
A161: Comments and Next Steps | B161: Please complete Data Sheet 5 for Question 30 that follows below.
A162: Total METT Score (automatically calculated) | B162: =SUM(B84:B161) -> 30 | E162: =SUM(E84:E161) -> 0 | F162: =SUM(F84:F161) -> 0 | G162: Provide comments here (optional)
A166: Data Sheet 5: Data sources and methods used to assess the present overall condition of biodiversity in the protected area (METT Question 30, above).
A167: Summarize the data sources used to track the indicator(s) given in Data Sheet 2, and outline the method for assessing the indicator results. The indicator(s) will automatically appear in this table once entered in Data Sheet 2. This table (Data Sheet 5) should be updated, as appropriate, during each application of the METT. An example is provided.
A168: Indicator | B168: Summarize the data sources used to track this indicator | F168: Outline the method used for assessing the indicator results and what these show about the condition of biodiversity
A169: Example: Average total area of grassland burnt by fire per year | B169: Records of fire events during the period of monitoring - showing the extent of the area burnt, as recorded by park rangers using hand-held GPS devices to plot boundaries of area and calculate total number of hectares | F169: - Observation of overall trend – more, less or same amount of fire disturbance - Reference to scientific literature on ecosystem types to understand optimum fire intervals - Examination of fire record to determine historical trends in fires in the PA - Analysis of pattern to determine fire frequency in particular parts of PA in and beyond monitoring period
A170: =A43 -> Indicator 1 | B170: NO current indicators
A171: =A44 -> Indicator 2
A172: =A45 -> Indicator 3
A173: =A46 -> Indicator 4
A174: =A47 -> Indicator 5
